Workbook

Sheet Curtailment Record
A1: Maximum of 4000 Curtailment Entries | E1: Curtailment Records | K1: Warning: Cannot Undo a Clear
A3: Event Hour Mapping | B3: Event | C3: Event Hour counter | D3: Event-Hour Counter mapping | E3: Sim | F3: Month | G3: Day | H3: Hour | I3: Curt | J3: Rviol | K3: Wat Yr | L3: Temp Yr | M3: Wind Yr | N3: Load | O3: Rreq | P3: Arsrv | Q3: Thr | R3: Hydro | S3: Wind | T3: FO MW | U3: Per FO | V3: WCF | W3: Sliceacc
A4: =CONCATENATE(B4,"_",H4) -> 1_9 | B4: 1 | C4: 1 | D4: =CONCATENATE(B4,"_",C4) -> 1_1 | E4: 2 | F4: 4 | G4: 14 | H4: 9 | I4: 461.8 | J4: 0 | K4: 1930 | L4: 1930 | M4: 2 | N4: 36042 | O4: 2760 | P4: 0 | Q4: 14535 | R4: 2500 | S4: 19562 | T4: 0 | U4: 939 | V4: 0.051 | W4: 0 | X4: 0
A5: =CONCATENATE(B5,"_",H5) -> 1_10 | B5: =IF(E5=E4, (IF(F5=F4, (IF(G5=G4, (IF(H5=H4+1,B4,B4+1)), (IF(AND(G5=G4+1,H5=1,H4=24),B4,B4+1)))), B4+1)), B4+1) -> 1 | C5: =IF(B5=B4,C4+1,1) -> 2 | D5: =CONCATENATE(B5,"_",C5) -> 1_2 | E5: 2 | F5: 4 | G5: 14 | H5: 10 | I5: 944 | J5: 0 | K5: 1930 | L5: 1930 | M5: 2 | N5: 35547 | O5: 2760 | P5: 0 | Q5: 14535 | R5: 2500 | S5: 18585 | T5: 0 | U5: 939 | V5: 0.051 | W5: 0 | X5: 0
A6: 1_11 | B6: =IF(E6=E5, (IF(F6=F5, (IF(G6=G5, (IF(H6=H5+1,B5,B5+1)), (IF(AND(G6=G5+1,H6=1,H5=24),B5,B5+1)))), B5+1)), B5+1) -> 1 | C6: =IF(B6=B5,C5+1,1) -> 3 | D6: =CONCATENATE(B6,"_",C6) -> 1_3 | E6: 2 | F6: 4 | G6: 14 | H6: 11 | I6: 944 | J6: 0 | K6: 1930 | L6: 1930 | M6: 2 | N6: 34358 | O6: 2760 | P6: 0 | Q6: 14535 | R6: 2500 | S6: 17396 | T6: 0 | U6: 939 | V6: 0.051 | W6: 0 | X6: 0
A7: 1_12 | B7: 1 | C7: 4 | D7: 1_4 | E7: 2 | F7: 4 | G7: 14 | H7: 12 | I7: 944 | J7: 0 | K7: 1930 | L7: 1930 | M7: 2 | N7: 32595 | O7: 2760 | P7: 0 | Q7: 14535 | R7: 2500 | S7: 15236 | T7: 0 | U7: 939 | V7: 0.051 | W7: 0 | X7: 0
A8: 1_13 | B8: 1 | C8: 5 | D8: 1_5 | E8: 2 | F8: 4 | G8: 14 | H8: 13 | I8: 944 | J8: 0 | K8: 1930 | L8: 1930 | M8: 2 | N8: 31003 | O8: 2760 | P8: 0 | Q8: 14535 | R8: 2500 | S8: 13511 | T8: 0 | U8: 939 | V8: 0.051 | W8: 0 | X8: 0
A9: 1_14 | B9: 1 | C9: 6 | D9: 1_6 | E9: 2 | F9: 4 | G9: 14 | H9: 14 | I9: 943.1 | J9: 0 | K9: 1930 | L9: 1930 | M9: 2 | N9: 29733 | O9: 2760 | P9: 0 | Q9: 14536 | R9: 2500 | S9: 12109 | T9: 0 | U9: 938 | V9: 0.051 | W9: 0 | X9: 0
A10: 1_15 | B10: 1 | C10: 7 | D10: 1_7 | E10: 2 | F10: 4 | G10: 14 | H10: 15 | I10: 937.8 | J10: 0 | K10: 1930 | L10: 1930 | M10: 2 | N10: 28922 | O10: 2760 | P10: 0 | Q10: 14541 | R10: 2500 | S10: 11298 | T10: 0 | U10: 932 | V10: 0.05 | W10: 0 | X10: 0
A11: 1_16 | B11: 1 | C11: 8 | D11: 1_8 | E11: 2 | F11: 4 | G11: 14 | H11: 16 | I11: 952 | J11: 0 | K11: 1930 | L11: 1930 | M11: 2 | N11: 29494 | O11: 2760 | P11: 0 | Q11: 14527 | R11: 2500 | S11: 11857 | T11: 13 | U11: 947 | V11: 0.051 | W11: 0.003 | X11: 0
A12: 1_17 | B12: 1 | C12: 9 | D12: 1_9 | E12: 2 | F12: 4 | G12: 14 | H12: 17 | I12: 952 | J12: 0 | K12: 1930 | L12: 1930 | M12: 2 | N12: 32596 | O12: 2760 | P12: 0 | Q12: 14527 | R12: 2500 | S12: 15060 | T12: 44 | U12: 947 | V12: 0.051 | W12: 0.009 | X12: 0
A13: 1_18 | B13: 1 | C13: 10 | D13: 1_10 | E13: 2 | F13: 4 | G13: 14 | H13: 18 | I13: 952 | J13: 0 | K13: 1930 | L13: 1930 | M13: 2 | N13: 36346 | O13: 2760 | P13: 0 | Q13: 14527 | R13: 2500 | S13: 19302 | T13: 82 | U13: 947 | V13: 0.051 | W13: 0.017 | X13: 0
A14: 1_19 | B14: 1 | C14: 11 | D14: 1_11 | E14: 2 | F14: 4 | G14: 14 | H14: 19 | I14: 952 | J14: 0 | K14: 1930 | L14: 1930 | M14: 2 | N14: 36513 | O14: 2760 | P14: 0 | Q14: 14527 | R14: 2500 | S14: 19518 | T14: 33 | U14: 947 | V14: 0.051 | W14: 0.007 | X14: 0
A15: 1_20 | B15: 1 | C15: 12 | D15: 1_12 | E15: 2 | F15: 4 | G15: 14 | H15: 20 | I15: 952 | J15: 0 | K15: 1930 | L15: 1930 | M15: 2 | N15: 35220 | O15: 2760 | P15: 0 | Q15: 14527 | R15: 2500 | S15: 18218 | T15: 40 | U15: 947 | V15: 0.051 | W15: 0.008 | X15: 0
A16: 1_21 | B16: 1 | C16: 13 | D16: 1_13 | E16: 2 | F16: 4 | G16: 14 | H16: 21 | I16: 952 | J16: 0 | K16: 1930 | L16: 1930 | M16: 2 | N16: 33157 | O16: 2760 | P16: 0 | Q16: 14527 | R16: 2500 | S16: 15643 | T16: 22 | U16: 947 | V16: 0.051 | W16: 0.005 | X16: 0
A17: 1_22 | B17: 1 | C17: 14 | D17: 1_14 | E17: 2 | F17: 4 | G17: 14 | H17: 22 | I17: 954.8 | J17: 0 | K17: 1930 | L17: 1930 | M17: 2 | N17: 29677 | O17: 2760 | P17: 0 | Q17: 14524 | R17: 2500 | S17: 11976 | T17: 1 | U17: 950 | V17: 0.051 | W17: 0 | X17: 0
A18: 1_23 | B18: 1 | C18: 15 | D18: 1_15 | E18: 2 | F18: 4 | G18: 14 | H18: 23 | I18: 86.6 | J18: 0 | K18: 1930 | L18: 1930 | M18: 2 | N18: 25468 | O18: 2760 | P18: 0 | Q18: 14523 | R18: 3400 | S18: 7354 | T18: 3 | U18: 951 | V18: 0.051 | W18: 0.001 | X18: 0
A19: 2_7 | B19: 2 | C19: 1 | D19: 2_1 | E19: 2 | F19: 4 | G19: 15 | H19: 7 | I19: 763.1 | J19: 0 | K19: 1930 | L19: 1930 | M19: 2 | N19: 29968 | O19: 3502 | P19: 0 | Q19: 14523 | R19: 2500 | S19: 12792 | T19: 10 | U19: 951 | V19: 0.051 | W19: 0.002 | X19: 0
A20: 2_8 | B20: 2 | C20: 2 | D20: 2_2 | E20: 2 | F20: 4 | G20: 15 | H20: 8 | I20: 885.8 | J20: 0 | K20: 1930 | L20: 1930 | M20: 2 | N20: 34367 | O20: 2760 | P20: 0 | Q20: 14400 | R20: 2500 | S20: 17591 | T20: 8 | U20: 1074 | V20: 0.058 | W20: 0.002 | X20: 0
A21: 2_9 | B21: 2 | C21: 3 | D21: 2_3 | E21: 2 | F21: 4 | G21: 15 | H21: 9 | I21: 877.5 | J21: 0 | K21: 1930 | L21: 1930 | M21: 2 | N21: 35422 | O21: 2760 | P21: 0 | Q21: 14408 | R21: 2500 | S21: 18650 | T21: 3 | U21: 1065 | V21: 0.058 | W21: 0.001 | X21: 0
A22: 2_10 | B22: 2 | C22: 4 | D22: 2_4 | E22: 2 | F22: 4 | G22: 15 | H22: 10 | I22: 871.1 | J22: 0 | K22: 1930 | L22: 1930 | M22: 2 | N22: 35023 | O22: 2760 | P22: 0 | Q22: 14415 | R22: 2500 | S22: 18252 | T22: 2 | U22: 1059 | V22: 0.057 | W22: 0.001 | X22: 0
A23: 2_11 | B23: 2 | C23: 5 | D23: 2_5 | E23: 2 | F23: 4 | G23: 15 | H23: 11 | I23: 871.1 | J23: 0 | K23: 1930 | L23: 1930 | M23: 2 | N23: 33867 | O23: 2760 | P23: 0 | Q23: 14415 | R23: 2500 | S23: 17092 | T23: 6 | U23: 1059 | V23: 0.057 | W23: 0.001 | X23: 0
A24: 2_12 | B24: 2 | C24: 6 | D24: 2_6 | E24: 2 | F24: 4 | G24: 15 | H24: 12 | I24: 871.1 | J24: 0 | K24: 1930 | L24: 1930 | M24: 2 | N24: 32122 | O24: 2760 | P24: 0 | Q24: 14415 | R24: 2500 | S24: 14939 | T24: 17 | U24: 1059 | V24: 0.057 | W24: 0.003 | X24: 0
A25: 2_13 | B25: 2 | C25: 7 | D25: 2_7 | E25: 2 | F25: 4 | G25: 15 | H25: 13 | I25: 871.1 | J25: 0 | K25: 1930 | L25: 1930 | M25: 2 | N25: 30529 | O25: 2760 | P25: 0 | Q25: 14415 | R25: 2500 | S25: 13217 | T25: 13 | U25: 1059 | V25: 0.057 | W25: 0.003 | X25: 0
A26: 2_14 | B26: 2 | C26: 8 | D26: 2_8 | E26: 2 | F26: 4 | G26: 15 | H26: 14 | I26: 871.1 | J26: 0 | K26: 1930 | L26: 1930 | M26: 2 | N26: 29250 | O26: 2760 | P26: 0 | Q26: 14415 | R26: 2500 | S26: 11809 | T26: 10 | U26: 1059 | V26: 0.057 | W26: 0.002 | X26: 0
A27: 2_15 | B27: 2 | C27: 9 | D27: 2_9 | E27: 2 | F27: 4 | G27: 15 | H27: 15 | I27: 871.1 | J27: 0 | K27: 1930 | L27: 1930 | M27: 2 | N27: 28429 | O27: 2760 | P27: 0 | Q27: 14415 | R27: 2500 | S27: 10987 | T27: 11 | U27: 1059 | V27: 0.057 | W27: 0.002 | X27: 0
A28: 2_16 | B28: 2 | C28: 10 | D28: 2_10 | E28: 2 | F28: 4 | G28: 15 | H28: 16 | I28: 871.1 | J28: 0 | K28: 1930 | L28: 1930 | M28: 2 | N28: 28978 | O28: 2760 | P28: 0 | Q28: 14415 | R28: 2500 | S28: 11527 | T28: 20 | U28: 1059 | V28: 0.057 | W28: 0.004 | X28: 0
A29: 2_17 | B29: 2 | C29: 11 | D29: 2_11 | E29: 2 | F29: 4 | G29: 15 | H29: 17 | I29: 871.1 | J29: 0 | K29: 1930 | L29: 1930 | M29: 2 | N29: 32006 | O29: 2760 | P29: 0 | Q29: 14415 | R29: 2500 | S29: 14656 | T29: 51 | U29: 1059 | V29: 0.057 | W29: 0.011 | X29: 0
A30: 2_18 | B30: 2 | C30: 12 | D30: 2_12 | E30: 2 | F30: 4 | G30: 15 | H30: 18 | I30: 871.1 | J30: 0 | K30: 1930 | L30: 1930 | M30: 2 | N30: 35760 | O30: 2760 | P30: 0 | Q30: 14415 | R30: 2500 | S30: 18942 | T30: 49 | U30: 1059 | V30: 0.057 | W30: 0.01 | X30: 0
A31: 2_19 | B31: 2 | C31: 13 | D31: 2_13 | E31: 2 | F31: 4 | G31: 15 | H31: 19 | I31: 871.1 | J31: 0 | K31: 1930 | L31: 1930 | M31: 2 | N31: 36014 | O31: 2760 | P31: 0 | Q31: 14415 | R31: 2500 | S31: 19170 | T31: 75 | U31: 1059 | V31: 0.057 | W31: 0.015 | X31: 0
A32: 2_20 | B32: 2 | C32: 14 | D32: 2_14 | E32: 2 | F32: 4 | G32: 15 | H32: 20 | I32: 871.1 | J32: 0 | K32: 1930 | L32: 1930 | M32: 2 | N32: 34750 | O32: 2760 | P32: 0 | Q32: 14415 | R32: 2500 | S32: 17768 | T32: 213 | U32: 1059 | V32: 0.057 | W32: 0.044 | X32: 0
A33: 2_21 | B33: 2 | C33: 15 | D33: 2_15 | E33: 2 | F33: 4 | G33: 15 | H33: 21 | I33: 871.1 | J33: 0 | K33: 1930 | L33: 1930 | M33: 2 | N33: 32710 | O33: 2760 | P33: 0 | Q33: 14415 | R33: 2500 | S33: 15049 | T33: 362 | U33: 1059 | V33: 0.057 | W33: 0.074 | X33: 0
A34: 2_22 | B34: 2 | C34: 16 | D34: 2_16 | E34: 2 | F34: 4 | G34: 15 | H34: 22 | I34: 871.1 | J34: 0 | K34: 1930 | L34: 1930 | M34: 2 | N34: 29274 | O34: 2760 | P34: 0 | Q34: 14415 | R34: 2500 | S34: 11469 | T34: 299 | U34: 1059 | V34: 0.057 | W34: 0.061 | X34: 0
A35: 2_23 | B35: 2 | C35: 17 | D35: 2_17 | E35: 2 | F35: 4 | G35: 15 | H35: 23 | I35: 1.2 | J35: 0 | K35: 1930 | L35: 1930 | M35: 2 | N35: 25123 | O35: 2760 | P35: 0 | Q35: 14415 | R35: 3400 | S35: 6649 | T35: 557 | U35: 1059 | V35: 0.057 | W35: 0.114 | X35: 0
A36: 3_16 | B36: 3 | C36: 1 | D36: 3_1 | E36: 2 | F36: 4 | G36: 18 | H36: 16 | I36: 878.2 | J36: 0 | K36: 1930 | L36: 1930 | M36: 2 | N36: 30133 | O36: 2760 | P36: 0 | Q36: 13872 | R36: 2500 | S36: 12460 | T36: 778 | U36: 1601 | V36: 0.087 | W36: 0.159 | X36: 0
A37: 3_17 | B37: 3 | C37: 2 | D37: 3_2 | E37: 2 | F37: 4 | G37: 18 | H37: 17 | I37: 696.2 | J37: 0 | K37: 1930 | L37: 1930 | M37: 2 | N37: 33162 | O37: 2760 | P37: 0 | Q37: 14182 | R37: 2500 | S37: 15488 | T37: 783 | U37: 1292 | V37: 0.07 | W37: 0.16 | X37: 0
A38: 3_18 | B38: 3 | C38: 3 | D38: 3_3 | E38: 2 | F38: 4 | G38: 18 | H38: 18 | I38: 335.9 | J38: 0 | K38: 1930 | L38: 1930 | M38: 2 | N38: 37213 | O38: 2760 | P38: 0 | Q38: 14542 | R38: 2500 | S38: 20130 | T38: 722 | U38: 931 | V38: 0.05 | W38: 0.148 | X38: 0
A39: 3_19 | B39: 3 | C39: 4 | D39: 3_4 | E39: 2 | F39: 4 | G39: 18 | H39: 19 | I39: 335.9 | J39: 0 | K39: 1930 | L39: 1930 | M39: 2 | N39: 37753 | O39: 2760 | P39: 0 | Q39: 14542 | R39: 2500 | S39: 20517 | T39: 875 | U39: 931 | V39: 0.05 | W39: 0.179 | X39: 0
A40: 3_20 | B40: 3 | C40: 5 | D40: 3_5 | E40: 2 | F40: 4 | G40: 18 | H40: 20 | I40: 335.9 | J40: 0 | K40: 1930 | L40: 1930 | M40: 2 | N40: 36421 | O40: 2760 | P40: 0 | Q40: 14542 | R40: 2500 | S40: 19380 | T40: 680 | U40: 931 | V40: 0.05 | W40: 0.139 | X40: 0
A41: 3_21 | B41: 3 | C41: 6 | D41: 3_6 | E41: 2 | F41: 4 | G41: 18 | H41: 21 | I41: 335.7 | J41: 0 | K41: 1930 | L41: 1930 | M41: 2 | N41: 34240 | O41: 2760 | P41: 0 | Q41: 14543 | R41: 2500 | S41: 16815 | T41: 534 | U41: 931 | V41: 0.05 | W41: 0.109 | X41: 0
A42: 3_22 | B42: 3 | C42: 7 | D42: 3_7 | E42: 2 | F42: 4 | G42: 18 | H42: 22 | I42: 334.8 | J42: 0 | K42: 1930 | L42: 1930 | M42: 2 | N42: 30534 | O42: 2760 | P42: 0 | Q42: 14543 | R42: 2500 | S42: 13021 | T42: 414 | U42: 930 | V42: 0.05 | W42: 0.085 | X42: 0
A43: 4_20 | B43: 4 | C43: 1 | D43: 4_1 | E43: 2 | F43: 4 | G43: 21 | H43: 20 | I43: 1323.3 | J43: 0 | K43: 1930 | L43: 1930 | M43: 2 | N43: 36136 | O43: 2760 | P43: 0 | Q43: 13984 | R43: 2500 | S43: 18943 | T43: 403 | U43: 1490 | V43: 0.081 | W43: 0.082 | X43: 0
A44: 4_21 | B44: 4 | C44: 2 | D44: 4_2 | E44: 2 | F44: 4 | G44: 21 | H44: 21 | I44: 1882.4 | J44: 0 | K44: 1930 | L44: 1930 | M44: 2 | N44: 33940 | O44: 2760 | P44: 0 | Q44: 14184 | R44: 2500 | S44: 15345 | T44: 516 | U44: 1289 | V44: 0.07 | W44: 0.105 | X44: 0
A45: 4_22 | B45: 4 | C45: 3 | D45: 4_3 | E45: 2 | F45: 4 | G45: 21 | H45: 22 | I45: 1791.8 | J45: 0 | K45: 1930 | L45: 1930 | M45: 2 | N45: 30371 | O45: 2760 | P45: 0 | Q45: 14275 | R45: 2500 | S45: 10934 | T45: 1151 | U45: 1199 | V45: 0.065 | W45: 0.235 | X45: 0
A46: 4_23 | B46: 4 | C46: 4 | D46: 4_4 | E46: 2 | F46: 4 | G46: 21 | H46: 23 | I46: 366.8 | J46: 0 | K46: 1930 | L46: 1930 | M46: 2 | N46: 26033 | O46: 2760 | P46: 0 | Q46: 14275 | R46: 3400 | S46: 6362 | T46: 1528 | U46: 1199 | V46: 0.065 | W46: 0.312 | X46: 0
A47: 5_6 | B47: 5 | C47: 1 | D47: 5_1 | E47: 2 | F47: 4 | G47: 22 | H47: 6 | I47: 889.8 | J47: 0 | K47: 1930 | L47: 1930 | M47: 2 | N47: 25032 | O47: 3502 | P47: 0 | Q47: 14213 | R47: 3400 | S47: 6347 | T47: 81 | U47: 1261 | V47: 0.068 | W47: 0.017 | X47: 0
A48: 5_7 | B48: 5 | C48: 2 | D48: 5_2 | E48: 2 | F48: 4 | G48: 22 | H48: 7 | I48: 2326.9 | J48: 0 | K48: 1930 | L48: 1930 | M48: 2 | N48: 31523 | O48: 3502 | P48: 0 | Q48: 13765 | R48: 2500 | S48: 13438 | T48: 113 | U48: 1709 | V48: 0.093 | W48: 0.023 | X48: 0
A49: 5_8 | B49: 5 | C49: 3 | D49: 5_3 | E49: 2 | F49: 4 | G49: 22 | H49: 8 | I49: 2817.9 | J49: 0 | K49: 1930 | L49: 1930 | M49: 2 | N49: 36100 | O49: 2760 | P49: 0 | Q49: 13274 | R49: 2500 | S49: 18456 | T49: 70 | U49: 2200 | V49: 0.119 | W49: 0.014 | X49: 0
A50: 5_9 | B50: 5 | C50: 4 | D50: 5_4 | E50: 2 | F50: 4 | G50: 22 | H50: 9 | I50: 2879.2 | J50: 0 | K50: 1930 | L50: 1930 | M50: 2 | N50: 36912 | O50: 2760 | P50: 0 | Q50: 13212 | R50: 2500 | S50: 19314 | T50: 24 | U50: 2261 | V50: 0.122 | W50: 0.005 | X50: 0
A51: 5_10 | B51: 5 | C51: 5 | D51: 5_5 | E51: 2 | F51: 4 | G51: 22 | H51: 10 | I51: 2871.9 | J51: 0 | K51: 1930 | L51: 1930 | M51: 2 | N51: 36241 | O51: 2760 | P51: 0 | Q51: 13220 | R51: 2500 | S51: 18656 | T51: 11 | U51: 2254 | V51: 0.122 | W51: 0.002 | X51: 0
A52: 5_11 | B52: 5 | C52: 6 | D52: 5_6 | E52: 2 | F52: 4 | G52: 22 | H52: 11 | I52: 2871.9 | J52: 0 | K52: 1930 | L52: 1930 | M52: 2 | N52: 34880 | O52: 2760 | P52: 0 | Q52: 13220 | R52: 2500 | S52: 17229 | T52: 76 | U52: 2254 | V52: 0.122 | W52: 0.016 | X52: 0
A53: 5_12 | B53: 5 | C53: 7 | D53: 5_7 | E53: 2 | F53: 4 | G53: 22 | H53: 12 | I53: 2871.9 | J53: 0 | K53: 1930 | L53: 1930 | M53: 2 | N53: 32984 | O53: 2760 | P53: 0 | Q53: 13220 | R53: 2500 | S53: 14931 | T53: 81 | U53: 2254 | V53: 0.122 | W53: 0.017 | X53: 0
A54: 5_13 | B54: =IF(E54=E53, (IF(F54=F53, (IF(G54=G53, (IF(H54=H53+1,B53,B53+1)), (IF(AND(G54=G53+1,H54=1,H53=24),B53,B53+1)))), B53+1)), B53+1) -> 5 | C54: 8 | D54: 5_8 | E54: 2 | F54: 4 | G54: 22 | H54: 13 | I54: 2871.9 | J54: 0 | K54: 1930 | L54: 1930 | M54: 2 | N54: 31291 | O54: 2760 | P54: 0 | Q54: 13220 | R54: 2500 | S54: 13117 | T54: 70 | U54: 2254 | V54: 0.122 | W54: 0.014 | X54: 0
A55: 5_14 | B55: =IF(E55=E54, (IF(F55=F54, (IF(G55=G54, (IF(H55=H54+1,B54,B54+1)), (IF(AND(G55=G54+1,H55=1,H54=24),B54,B54+1)))), B54+1)), B54+1) -> 5 | C55: 9 | D55: 5_9 | E55: 2 | F55: 4 | G55: 22 | H55: 14 | I55: 2871.9 | J55: 0 | K55: 1930 | L55: 1930 | M55: 2 | N55: 29945 | O55: 2760 | P55: 0 | Q55: 13220 | R55: 2500 | S55: 11657 | T55: 51 | U55: 2254 | V55: 0.122 | W55: 0.011 | X55: 0
A56: 5_15 | B56: 5 | C56: 10 | D56: 5_10 | E56: 2 | F56: 4 | G56: 22 | H56: 15 | I56: 2872 | J56: 0 | K56: 1930 | L56: 1930 | M56: 2 | N56: 29040 | O56: 2760 | P56: 0 | Q56: 13220 | R56: 2500 | S56: 10687 | T56: 117 | U56: 2254 | V56: 0.122 | W56: 0.024 | X56: 0
A57: 5_16 | B57: 5 | C57: 11 | D57: 5_11 | E57: 2 | F57: 4 | G57: 22 | H57: 16 | I57: 2871.9 | J57: 0 | K57: 1930 | L57: 1930 | M57: 2 | N57: 29485 | O57: 2760 | P57: 0 | Q57: 13220 | R57: 2500 | S57: 11141 | T57: 107 | U57: 2254 | V57: 0.122 | W57: 0.022 | X57: 0
A58: 5_17 | B58: 5 | C58: 12 | D58: 5_12 | E58: 2 | F58: 4 | G58: 22 | H58: 17 | I58: 2872 | J58: 0 | K58: 1930 | L58: 1930 | M58: 2 | N58: 32301 | O58: 2760 | P58: 0 | Q58: 13220 | R58: 2500 | S58: 14145 | T58: 52 | U58: 2254 | V58: 0.122 | W58: 0.011 | X58: 0
A59: 5_18 | B59: 5 | C59: 13 | D59: 5_13 | E59: 2 | F59: 4 | G59: 22 | H59: 18 | I59: 2871.9 | J59: 0 | K59: 1930 | L59: 1930 | M59: 2 | N59: 36423 | O59: 2760 | P59: 0 | Q59: 13220 | R59: 2500 | S59: 18719 | T59: 130 | U59: 2254 | V59: 0.122 | W59: 0.027 | X59: 0
A60: 5_19 | B60: 5 | C60: 14 | D60: 5_14 | E60: 2 | F60: 4 | G60: 22 | H60: 19 | I60: 2871.9 | J60: 0 | K60: 1930 | L60: 1930 | M60: 2 | N60: 37255 | O60: 2760 | P60: 0 | Q60: 13220 | R60: 2500 | S60: 19596 | T60: 85 | U60: 2254 | V60: 0.122 | W60: 0.018 | X60: 0
A61: 5_20 | B61: 5 | C61: 15 | D61: 5_15 | E61: 2 | F61: 4 | G61: 22 | H61: 20 | I61: 2681.4 | J61: 0 | K61: 1930 | L61: 1930 | M61: 2 | N61: 35867 | O61: 2760 | P61: 0 | Q61: 13410 | R61: 2500 | S61: 18207 | T61: 86 | U61: 2064 | V61: 0.112 | W61: 0.018 | X61: 0
A62: 5_21 | B62: 5 | C62: 16 | D62: 5_16 | E62: 2 | F62: 4 | G62: 22 | H62: 21 | I62: 2639.7 | J62: 0 | K62: 1930 | L62: 1930 | M62: 2 | N62: 33682 | O62: 2760 | P62: 0 | Q62: 13452 | R62: 2500 | S62: 15494 | T62: 84 | U62: 2022 | V62: 0.109 | W62: 0.017 | X62: 0
A63: 5_22 | B63: 5 | C63: 17 | D63: 5_17 | E63: 2 | F63: 4 | G63: 22 | H63: 22 | I63: 2640 | J63: 0 | K63: 1930 | L63: 1930 | M63: 2 | N63: 30139 | O63: 2760 | P63: 0 | Q63: 13451 | R63: 2500 | S63: 11771 | T63: 56 | U63: 2022 | V63: 0.109 | W63: 0.012 | X63: 0
A64: 5_23 | B64: 5 | C64: 18 | D64: 5_18 | E64: 2 | F64: 4 | G64: 22 | H64: 23 | I64: 1770.2 | J64: 0 | K64: 1930 | L64: 1930 | M64: 2 | N64: 25833 | O64: 2760 | P64: 0 | Q64: 13451 | R64: 3400 | S64: 7061 | T64: 49 | U64: 2022 | V64: 0.109 | W64: 0.01 | X64: 0
A65: 6_7 | B65: 6 | C65: 1 | D65: 6_1 | E65: 2 | F65: 4 | G65: 23 | H65: 7 | I65: 548.4 | J65: 0 | K65: 1930 | L65: 1930 | M65: 2 | N65: 29815 | O65: 3502 | P65: 0 | Q65: 13451 | R65: 2500 | S65: 12857 | T65: 151 | U65: 2022 | V65: 0.109 | W65: 0.031 | X65: 0
A66: 6_8 | B66: 6 | C66: 2 | D66: 6_2 | E66: 2 | F66: 4 | G66: 23 | H66: 8 | I66: 703.1 | J66: 0 | K66: 1930 | L66: 1930 | M66: 2 | N66: 34138 | O66: 2760 | P66: 0 | Q66: 13454 | R66: 2500 | S66: 17060 | T66: 114 | U66: 2019 | V66: 0.109 | W66: 0.023 | X66: 0
A67: 6_9 | B67: 6 | C67: 3 | D67: 6_3 | E67: 2 | F67: 4 | G67: 23 | H67: 9 | I67: 701.3 | J67: 0 | K67: 1930 | L67: 1930 | M67: 2 | N67: 34868 | O67: 2760 | P67: 0 | Q67: 13456 | R67: 2500 | S67: 17798 | T67: 105 | U67: 2018 | V67: 0.109 | W67: 0.022 | X67: 0
A68: 6_10 | B68: 6 | C68: 4 | D68: 6_4 | E68: 2 | F68: 4 | G68: 23 | H68: 10 | I68: 701.3 | J68: 0 | K68: 1930 | L68: 1930 | M68: 2 | N68: 34204 | O68: 2760 | P68: 0 | Q68: 13456 | R68: 2500 | S68: 17200 | T68: 40 | U68: 2018 | V68: 0.109 | W68: 0.008 | X68: 0
A69: =CONCATENATE(B69,"_",H69) -> 6_11 | B69: 6 | C69: 5 | D69: 6_5 | E69: 2 | F69: 4 | G69: 23 | H69: 11 | I69: 699.6 | J69: 0 | K69: 1930 | L69: 1930 | M69: 2 | N69: 32909 | O69: 2760 | P69: 0 | Q69: 13458 | R69: 2500 | S69: 15911 | T69: 34 | U69: 2016 | V69: 0.109 | W69: 0.007 | X69: 0
A70: 6_12 | B70: =IF(E70=E69, (IF(F70=F69, (IF(G70=G69, (IF(H70=H69+1,B69,B69+1)), (IF(AND(G70=G69+1,H70=1,H69=24),B69,B69+1)))), B69+1)), B69+1) -> 6 | C70: =IF(B70=B69,C69+1,1) -> 6 | D70: =CONCATENATE(B70,"_",C70) -> 6_6 | E70: 2 | F70: 4 | G70: 23 | H70: 12 | I70: 699.4 | J70: 0 | K70: 1930 | L70: 1930 | M70: 2 | N70: 31119 | O70: 2760 | P70: 0 | Q70: 13458 | R70: 2500 | S70: 14138 | T70: 17 | U70: 2016 | V70: 0.109 | W70: 0.003 | X70: 0
A71: 6_13 | B71: 6 | C71: 7 | D71: 6_7 | E71: 2 | F71: 4 | G71: 23 | H71: 13 | I71: 699.4 | J71: 0 | K71: 1930 | L71: 1930 | M71: 2 | N71: 29528 | O71: 2760 | P71: 0 | Q71: 13458 | R71: 2500 | S71: 12543 | T71: 21 | U71: 2016 | V71: 0.109 | W71: 0.004 | X71: 0
A72: 6_14 | B72: 6 | C72: 8 | D72: 6_8 | E72: 2 | F72: 4 | G72: 23 | H72: 14 | I72: 699.4 | J72: 0 | K72: 1930 | L72: 1930 | M72: 2 | N72: 28260 | O72: 2760 | P72: 0 | Q72: 13458 | R72: 2500 | S72: 11264 | T72: 31 | U72: 2016 | V72: 0.109 | W72: 0.006 | X72: 0
A73: 6_15 | B73: 6 | C73: 9 | D73: 6_9 | E73: 2 | F73: 4 | G73: 23 | H73: 15 | I73: 699.4 | J73: 0 | K73: 1930 | L73: 1930 | M73: 2 | N73: 27403 | O73: 2760 | P73: 0 | Q73: 13458 | R73: 2500 | S73: 10394 | T73: 44 | U73: 2016 | V73: 0.109 | W73: 0.009 | X73: 0
A74: 6_16 | B74: 6 | C74: 10 | D74: 6_10 | E74: 2 | F74: 4 | G74: 23 | H74: 16 | I74: 699.4 | J74: 0 | K74: 1930 | L74: 1930 | M74: 2 | N74: 27815 | O74: 2760 | P74: 0 | Q74: 13458 | R74: 2500 | S74: 10797 | T74: 54 | U74: 2016 | V74: 0.109 | W74: 0.011 | X74: 0
A75: 6_17 | B75: 6 | C75: 11 | D75: 6_11 | E75: 2 | F75: 4 | G75: 23 | H75: 17 | I75: 699.4 | J75: 0 | K75: 1930 | L75: 1930 | M75: 2 | N75: 30447 | O75: 2760 | P75: 0 | Q75: 13458 | R75: 2500 | S75: 13431 | T75: 52 | U75: 2016 | V75: 0.109 | W75: 0.011 | X75: 0
A76: 6_18 | B76: 6 | C76: 12 | D76: 6_12 | E76: 2 | F76: 4 | G76: 23 | H76: 18 | I76: 699.4 | J76: 0 | K76: 1930 | L76: 1930 | M76: 2 | N76: 34403 | O76: 2760 | P76: 0 | Q76: 13458 | R76: 2500 | S76: 17419 | T76: 19 | U76: 2016 | V76: 0.109 | W76: 0.004 | X76: 0
A77: 6_19 | B77: 6 | C77: 13 | D77: 6_13 | E77: 2 | F77: 4 | G77: 23 | H77: 19 | I77: 1226.4 | J77: 0 | K77: 1930 | L77: 1930 | M77: 2 | N77: 35293 | O77: 2760 | P77: 0 | Q77: 12931 | R77: 2500 | S77: 18317 | T77: 12 | U77: 2543 | V77: 0.138 | W77: 0.003 | X77: 0
A78: 6_20 | B78: 6 | C78: 14 | D78: 6_14 | E78: 2 | F78: 4 | G78: 23 | H78: 20 | I78: 1229.4 | J78: 0 | K78: 1930 | L78: 1930 | M78: 2 | N78: 33990 | O78: 2760 | P78: 0 | Q78: 12928 | R78: 2500 | S78: 17019 | T78: 6 | U78: 2546 | V78: 0.138 | W78: 0.001 | X78: 0
A79: 6_21 | B79: 6 | C79: 15 | D79: 6_15 | E79: 2 | F79: 4 | G79: 23 | H79: 21 | I79: 1230.8 | J79: 0 | K79: 1930 | L79: 1930 | M79: 2 | N79: 31911 | O79: 2760 | P79: 0 | Q79: 12927 | R79: 2500 | S79: 14943 | T79: 4 | U79: 2547 | V79: 0.138 | W79: 0.001 | X79: 0
A80: 6_22 | B80: 6 | C80: 16 | D80: 6_16 | E80: 2 | F80: 4 | G80: 23 | H80: 22 | I80: 1231.6 | J80: 0 | K80: 1930 | L80: 1930 | M80: 2 | N80: 28523 | O80: 2760 | P80: 0 | Q80: 12926 | R80: 2500 | S80: 11549 | T80: 10 | U80: 2548 | V80: 0.138 | W80: 0.002 | X80: 0
A81: 6_23 | B81: 6 | C81: 17 | D81: 6_17 | E81: 2 | F81: 4 | G81: 23 | H81: 23 | I81: 360.9 | J81: 0 | K81: 1930 | L81: 1930 | M81: 2 | N81: 24396 | O81: 2760 | P81: 0 | Q81: 12927 | R81: 3400 | S81: 7593 | T81: 14 | U81: 2547 | V81: 0.138 | W81: 0.003 | X81: 0
A82: 7_8 | B82: 7 | C82: 1 | D82: 7_1 | E82: 9 | F82: 4 | G82: 8 | H82: 8 | I82: 2658.6 | J82: 0 | K82: 1937 | L82: 1937 | M82: 9 | N82: 38754 | O82: 2760 | P82: 0 | Q82: 15468 | R82: 2500 | S82: 18187 | T82: 957 | U82: 6 | V82: 0 | W82: 0.196 | X82: 0
A83: 7_9 | B83: 7 | C83: 2 | D83: 7_2 | E83: 9 | F83: 4 | G83: 8 | H83: 9 | I83: 3663.9 | J83: 0 | K83: 1937 | L83: 1937 | M83: 9 | N83: 40199 | O83: 2760 | P83: 0 | Q83: 15467 | R83: 2500 | S83: 18936 | T83: 649 | U83: 6 | V83: 0 | W83: 0.133 | X83: 0
A84: 7_10 | B84: 7 | C84: 3 | D84: 7_3 | E84: 9 | F84: 4 | G84: 8 | H84: 10 | I84: 3666.9 | J84: 0 | K84: 1937 | L84: 1937 | M84: 9 | N84: 39963 | O84: 2760 | P84: 0 | Q84: 15464 | R84: 2500 | S84: 18946 | T84: 403 | U84: 9 | V84: 0.001 | W84: 0.082 | X84: 0
A85: 7_11 | B85: 7 | C85: 4 | D85: 7_4 | E85: 9 | F85: 4 | G85: 8 | H85: 11 | I85: 3666.9 | J85: 0 | K85: 1937 | L85: 1937 | M85: 9 | N85: 38779 | O85: 2760 | P85: 0 | Q85: 15464 | R85: 2500 | S85: 17923 | T85: 242 | U85: 9 | V85: 0.001 | W85: 0.05 | X85: 0
A86: 7_12 | B86: 7 | C86: 5 | D86: 7_5 | E86: 9 | F86: 4 | G86: 8 | H86: 12 | I86: 3666.9 | J86: 0 | K86: 1937 | L86: 1937 | M86: 9 | N86: 36864 | O86: 2760 | P86: 0 | Q86: 15464 | R86: 2500 | S86: 15685 | T86: 168 | U86: 9 | V86: 0.001 | W86: 0.034 | X86: 0
A87: 7_13 | B87: 7 | C87: 6 | D87: 7_6 | E87: 9 | F87: 4 | G87: 8 | H87: 13 | I87: 3666.9 | J87: 0 | K87: 1937 | L87: 1937 | M87: 9 | N87: 35090 | O87: 2760 | P87: 0 | Q87: 15464 | R87: 2500 | S87: 13838 | T87: 108 | U87: 9 | V87: 0.001 | W87: 0.022 | X87: 0
A88: 7_14 | B88: 7 | C88: 7 | D88: 7_7 | E88: 9 | F88: 4 | G88: 8 | H88: 14 | I88: 3666.9 | J88: 0 | K88: 1937 | L88: 1937 | M88: 9 | N88: 33650 | O88: 2760 | P88: 0 | Q88: 15464 | R88: 2500 | S88: 12309 | T88: 65 | U88: 9 | V88: 0.001 | W88: 0.013 | X88: 0
A89: 7_15 | B89: 7 | C89: 8 | D89: 7_8 | E89: 9 | F89: 4 | G89: 8 | H89: 15 | I89: 3665.8 | J89: 0 | K89: 1937 | L89: 1937 | M89: 9 | N89: 32777 | O89: 2760 | P89: 0 | Q89: 15465 | R89: 2500 | S89: 11434 | T89: 67 | U89: 8 | V89: 0 | W89: 0.014 | X89: 0
A90: 7_16 | B90: 7 | C90: 9 | D90: 7_9 | E90: 9 | F90: 4 | G90: 8 | H90: 16 | I90: 3664 | J90: 0 | K90: 1937 | L90: 1937 | M90: 9 | N90: 33536 | O90: 2760 | P90: 0 | Q90: 15467 | R90: 2500 | S90: 12092 | T90: 167 | U90: 7 | V90: 0 | W90: 0.034 | X90: 0
A91: 7_17 | B91: 7 | C91: 10 | D91: 7_10 | E91: 9 | F91: 4 | G91: 8 | H91: 17 | I91: 3664 | J91: 0 | K91: 1937 | L91: 1937 | M91: 9 | N91: 37345 | O91: 2760 | P91: 0 | Q91: 15467 | R91: 2500 | S91: 15991 | T91: 211 | U91: 7 | V91: 0 | W91: 0.043 | X91: 0
A92: 7_18 | B92: 7 | C92: 11 | D92: 7_11 | E92: 9 | F92: 4 | G92: 8 | H92: 18 | I92: 3664 | J92: 0 | K92: 1937 | L92: 1937 | M92: 9 | N92: 41414 | O92: 2760 | P92: 0 | Q92: 15467 | R92: 2500 | S92: 20642 | T92: 158 | U92: 7 | V92: 0 | W92: 0.032 | X92: 0
A93: 7_19 | B93: 7 | C93: 12 | D93: 7_12 | E93: 9 | F93: 4 | G93: 8 | H93: 19 | I93: 3664 | J93: 0 | K93: 1937 | L93: 1937 | M93: 9 | N93: 41165 | O93: 2760 | P93: 0 | Q93: 15467 | R93: 2500 | S93: 20407 | T93: 144 | U93: 7 | V93: 0 | W93: 0.029 | X93: 0
A94: 7_20 | B94: 7 | C94: 13 | D94: 7_13 | E94: 9 | F94: 4 | G94: 8 | H94: 20 | I94: 3664 | J94: 0 | K94: 1937 | L94: 1937 | M94: 9 | N94: 39765 | O94: 2760 | P94: 0 | Q94: 15467 | R94: 2500 | S94: 19032 | T94: 119 | U94: 7 | V94: 0 | W94: 0.024 | X94: 0
A95: 7_21 | B95: 7 | C95: 14 | D95: 7_14 | E95: 9 | F95: 4 | G95: 8 | H95: 21 | I95: 3670.6 | J95: 0 | K95: 1937 | L95: 1937 | M95: 9 | N95: 37509 | O95: 2760 | P95: 0 | Q95: 15461 | R95: 2500 | S95: 16258 | T95: 107 | U95: 13 | V95: 0.001 | W95: 0.022 | X95: 0
A96: 7_22 | B96: 7 | C96: 15 | D96: 7_15 | E96: 9 | F96: 4 | G96: 8 | H96: 22 | I96: 3710.5 | J96: 0 | K96: 1937 | L96: 1937 | M96: 9 | N96: 33586 | O96: 2760 | P96: 0 | Q96: 15421 | R96: 2500 | S96: 12177 | T96: 58 | U96: 53 | V96: 0.003 | W96: 0.012 | X96: 0
A97: 7_23 | B97: 7 | C97: 16 | D97: 7_16 | E97: 9 | F97: 4 | G97: 8 | H97: 23 | I97: 2840.6 | J97: 0 | K97: 1937 | L97: 1937 | M97: 9 | N97: 28838 | O97: 2760 | P97: 0 | Q97: 15421 | R97: 3400 | S97: 7041 | T97: 34 | U97: 53 | V97: 0.003 | W97: 0.007 | X97: 0
A98: 8_17 | B98: 8 | C98: 1 | D98: 8_1 | E98: 12 | F98: 13 | G98: 3 | H98: 17 | I98: 1106.2 | J98: 0 | K98: 1940 | L98: 1940 | M98: 12 | N98: 27241 | O98: 1575 | P98: 0 | Q98: 11978 | R98: 0 | S98: 14726 | T98: 267 | U98: 1395 | V98: 0.085 | W98: 0.055 | X98: 0
A99: 8_18 | B99: 8 | C99: 2 | D99: 8_2 | E99: 12 | F99: 13 | G99: 3 | H99: 18 | I99: 1181.2 | J99: 0 | K99: 1940 | L99: 1940 | M99: 12 | N99: 27267 | O99: 1600 | P99: 0 | Q99: 11988 | R99: 0 | S99: 15226 | T99: 237 | U99: 1385 | V99: 0.085 | W99: 0.049 | X99: 0
A100: 8_19 | B100: 8 | C100: 3 | D100: 8_3 | E100: 12 | F100: 13 | G100: 3 | H100: 19 | I100: 1181.2 | J100: 0 | K100: 1940 | L100: 1940 | M100: 12 | N100: 26379 | O100: 1557 | P100: 0 | Q100: 11988 | R100: 0 | S100: 14351 | T100: 225 | U100: 1385 | V100: 0.085 | W100: 0.046 | X100: 0
A101: 8_20 | B101: 8 | C101: 4 | D101: 8_4 | E101: 12 | F101: 13 | G101: 3 | H101: 20 | I101: 1181.2 | J101: 0 | K101: 1940 | L101: 1940 | M101: 12 | N101: 25612 | O101: 1522 | P101: 0 | Q101: 11988 | R101: 0 | S101: 13651 | T101: 158 | U101: 1385 | V101: 0.085 | W101: 0.032 | X101: 0
A102: 8_21 | B102: 8 | C102: 5 | D102: 8_5 | E102: 12 | F102: 13 | G102: 3 | H102: 21 | I102: 1293.5 | J102: 0 | K102: 1940 | L102: 1940 | M102: 12 | N102: 26122 | O102: 1511 | P102: 0 | Q102: 11875 | R102: 0 | S102: 13587 | T102: 70 | U102: 1498 | V102: 0.091 | W102: 0.014 | X102: 0
A103: 8_22 | B103: 8 | C103: 6 | D103: 8_6 | E103: 12 | F103: 13 | G103: 3 | H103: 22 | I103: 1191.9 | J103: 0 | K103: 1940 | L103: 1940 | M103: 12 | N103: 24563 | O103: 1431 | P103: 0 | Q103: 11977 | R103: 0 | S103: 11849 | T103: 18 | U103: 1396 | V103: 0.085 | W103: 0.004 | X103: 0
A104: 9_13 | B104: 9 | C104: 1 | D104: 9_1 | E104: 12 | F104: 13 | G104: 4 | H104: 13 | I104: 582.7 | J104: 0 | K104: 1940 | L104: 1940 | M104: 12 | N104: 25847 | O104: 1526 | P104: 0 | Q104: 11971 | R104: 0 | S104: 13771 | T104: 227 | U104: 1402 | V104: 0.086 | W104: 0.046 | X104: 0
A105: 9_14 | B105: 9 | C105: 2 | D105: 9_2 | E105: 12 | F105: 13 | G105: 4 | H105: 14 | I105: 1106.6 | J105: 0 | K105: 1940 | L105: 1940 | M105: 12 | N105: 26134 | O105: 1513 | P105: 0 | Q105: 11970 | R105: 0 | S105: 13503 | T105: 259 | U105: 1403 | V105: 0.086 | W105: 0.053 | X105: 0
A106: 9_15 | B106: 9 | C106: 3 | D106: 9_3 | E106: 12 | F106: 13 | G106: 4 | H106: 15 | I106: 1098.1 | J106: 0 | K106: 1940 | L106: 1940 | M106: 12 | N106: 26276 | O106: 1520 | P106: 0 | Q106: 11978 | R106: 0 | S106: 13625 | T106: 279 | U106: 1395 | V106: 0.085 | W106: 0.057 | X106: 0
A107: 9_16 | B107: 9 | C107: 4 | D107: 9_4 | E107: 12 | F107: 13 | G107: 4 | H107: 16 | I107: 959.6 | J107: 0 | K107: 1940 | L107: 1940 | M107: 12 | N107: 26396 | O107: 1537 | P107: 0 | Q107: 12117 | R107: 0 | S107: 13775 | T107: 248 | U107: 1256 | V107: 0.077 | W107: 0.051 | X107: 0
A108: 9_17 | B108: 9 | C108: 5 | D108: 9_5 | E108: 12 | F108: 13 | G108: 4 | H108: 17 | I108: 959.6 | J108: 0 | K108: 1940 | L108: 1940 | M108: 12 | N108: 26649 | O108: 1559 | P108: 0 | Q108: 12117 | R108: 0 | S108: 14225 | T108: 183 | U108: 1256 | V108: 0.077 | W108: 0.037 | X108: 0
A109: 9_18 | B109: 9 | C109: 6 | D109: 9_6 | E109: 12 | F109: 13 | G109: 4 | H109: 18 | I109: 732.1 | J109: 0 | K109: 1940 | L109: 1940 | M109: 12 | N109: 26663 | O109: 1600 | P109: 0 | Q109: 12344 | R109: 0 | S109: 14714 | T109: 238 | U109: 1029 | V109: 0.063 | W109: 0.049 | X109: 0
A110: 9_19 | B110: 9 | C110: 7 | D110: 9_7 | E110: 12 | F110: 13 | G110: 4 | H110: 19 | I110: 429.6 | J110: 0 | K110: 1940 | L110: 1940 | M110: 12 | N110: 25803 | O110: 1581 | P110: 0 | Q110: 12647 | R110: 0 | S110: 13915 | T110: 177 | U110: 726 | V110: 0.044 | W110: 0.036 | X110: 0
A111: 9_20 | B111: 9 | C111: 8 | D111: 9_8 | E111: 12 | F111: 13 | G111: 4 | H111: 20 | I111: 429.6 | J111: 0 | K111: 1940 | L111: 1940 | M111: 12 | N111: 25097 | O111: 1549 | P111: 0 | Q111: 12647 | R111: 0 | S111: 13279 | T111: 108 | U111: 726 | V111: 0.044 | W111: 0.022 | X111: 0
A112: 9_21 | B112: 9 | C112: 9 | D112: 9_9 | E112: 12 | F112: 13 | G112: 4 | H112: 21 | I112: 429.6 | J112: 0 | K112: 1940 | L112: 1940 | M112: 12 | N112: 25617 | O112: 1546 | P112: 0 | Q112: 12647 | R112: 0 | S112: 13205 | T112: 39 | U112: 726 | V112: 0.044 | W112: 0.008 | X112: 0
A113: 9_22 | B113: 9 | C113: 10 | D113: 9_10 | E113: 12 | F113: 13 | G113: 4 | H113: 22 | I113: 429.6 | J113: 0 | K113: 1940 | L113: 1940 | M113: 12 | N113: 24056 | O113: 1458 | P113: 0 | Q113: 12647 | R113: 0 | S113: 11448 | T113: 4 | U113: 726 | V113: 0.044 | W113: 0.001 | X113: 0
A114: 10_8 | B114: 10 | C114: 1 | D114: 10_1 | E114: 12 | F114: 14 | G114: 9 | H114: 8 | I114: 5.6 | J114: 0 | K114: 1940 | L114: 1940 | M114: 12 | N114: 21398 | O114: 1360 | P114: 0 | Q114: 11244 | R114: 0 | S114: 11450 | T114: 40 | U114: 2134 | V114: 0.13 | W114: 0.008 | X114: 0
A115: 10_9 | B115: 10 | C115: 2 | D115: 10_2 | E115: 12 | F115: 14 | G115: 9 | H115: 9 | I115: 7.3 | J115: 0 | K115: 1940 | L115: 1940 | M115: 12 | N115: 22943 | O115: 1437 | P115: 0 | Q115: 11243 | R115: 0 | S115: 12994 | T115: 41 | U115: 2136 | V115: 0.13 | W115: 0.008 | X115: 0
A116: 10_10 | B116: 10 | C116: 3 | D116: 10_3 | E116: 12 | F116: 14 | G116: 9 | H116: 10 | I116: 7.3 | J116: 0 | K116: 1940 | L116: 1940 | M116: 12 | N116: 23909 | O116: 1485 | P116: 0 | Q116: 11243 | R116: 0 | S116: 13965 | T116: 36 | U116: 2136 | V116: 0.13 | W116: 0.007 | X116: 0
A117: 10_11 | B117: 10 | C117: 4 | D117: 10_4 | E117: 12 | F117: 14 | G117: 9 | H117: 11 | I117: 7.3 | J117: 0 | K117: 1940 | L117: 1940 | M117: 12 | N117: 24421 | O117: 1485 | P117: 0 | Q117: 11243 | R117: 0 | S117: 13964 | T117: 20 | U117: 2136 | V117: 0.13 | W117: 0.004 | X117: 0
A118: 10_12 | B118: 10 | C118: 5 | D118: 10_5 | E118: 12 | F118: 14 | G118: 9 | H118: 12 | I118: 7.3 | J118: 0 | K118: 1940 | L118: 1940 | M118: 12 | N118: 24413 | O118: 1478 | P118: 0 | Q118: 11243 | R118: 0 | S118: 13830 | T118: 13 | U118: 2136 | V118: 0.13 | W118: 0.003 | X118: 0
A119: 11_18 | B119: 11 | C119: 1 | D119: 11_1 | E119: 37 | F119: 3 | G119: 17 | H119: 18 | I119: 0 | J119: 1268.2 | K119: 1965 | L119: 1965 | M119: 37 | N119: 46257 | O119: 2891 | P119: 0 | Q119: 13844 | R119: 2500 | S119: 30778 | T119: 33 | U119: 1604 | V119: 0.087 | W119: 0.007 | X119: 0
A120: 11_19 | B120: 11 | C120: 2 | D120: 11_2 | E120: 37 | F120: 3 | G120: 17 | H120: 19 | I120: 0 | J120: 169.1 | K120: 1965 | L120: 1965 | M120: 37 | N120: 45130 | O120: 2891 | P120: 0 | Q120: 13844 | R120: 2500 | S120: 29678 | T120: 5 | U120: 1604 | V120: 0.087 | W120: 0.001 | X120: 0
A121: 12_20 | B121: 12 | C121: 1 | D121: 12_1 | E121: 49 | F121: 12 | G121: 3 | H121: 20 | I121: 304.9 | J121: 0 | K121: 1977 | L121: 1977 | M121: 49 | N121: 26967 | O121: 1575 | P121: 0 | Q121: 12843 | R121: 0 | S121: 13513 | T121: 1663 | U121: 530 | V121: 0.032 | W121: 0.34 | X121: 0
A122: 12_21 | B122: 12 | C122: 2 | D122: 12_2 | E122: 49 | F122: 12 | G122: 3 | H122: 21 | I122: 615.9 | J122: 0 | K122: 1977 | L122: 1977 | M122: 49 | N122: 27014 | O122: 1516 | P122: 0 | Q122: 12843 | R122: 0 | S122: 12340 | T122: 2042 | U122: 530 | V122: 0.032 | W122: 0.417 | X122: 0
A123: 12_22 | B123: 12 | C123: 3 | D123: 12_3 | E123: 49 | F123: 12 | G123: 3 | H123: 22 | I123: 615.9 | J123: 0 | K123: 1977 | L123: 1977 | M123: 49 | N123: 26112 | O123: 1460 | P123: 0 | Q123: 12843 | R123: 0 | S123: 11212 | T123: 2069 | U123: 530 | V123: 0.032 | W123: 0.423 | X123: 0
A124: 13_7 | B124: 13 | C124: 1 | D124: 13_1 | E124: 49 | F124: 12 | G124: 4 | H124: 7 | I124: 1073.1 | J124: 0 | K124: 1977 | L124: 1977 | M124: 49 | N124: 17021 | O124: 3376 | P124: 0 | Q124: 11450 | R124: 0 | S124: 5286 | T124: 171 | U124: 1923 | V124: 0.117 | W124: 0.035 | X124: 0
A125: 13_8 | B125: 13 | C125: 2 | D125: 13_2 | E125: 49 | F125: 12 | G125: 4 | H125: 8 | I125: 1742.6 | J125: 0 | K125: 1977 | L125: 1977 | M125: 49 | N125: 19938 | O125: 1200 | P125: 0 | Q125: 11447 | R125: 0 | S125: 7983 | T125: 122 | U125: 1926 | V125: 0.118 | W125: 0.025 | X125: 0
A126: 13_9 | B126: 13 | C126: 3 | D126: 13_3 | E126: 49 | F126: 12 | G126: 4 | H126: 9 | I126: 1804.5 | J126: 0 | K126: 1977 | L126: 1977 | M126: 49 | N126: 22411 | O126: 1324 | P126: 0 | Q126: 11447 | R126: 0 | S126: 10457 | T126: 59 | U126: 1926 | V126: 0.118 | W126: 0.012 | X126: 0
A127: 13_10 | B127: 13 | C127: 4 | D127: 13_4 | E127: 49 | F127: 12 | G127: 4 | H127: 10 | I127: 1780.3 | J127: 0 | K127: 1977 | L127: 1977 | M127: 49 | N127: 24324 | O127: 1423 | P127: 0 | Q127: 11472 | R127: 0 | S127: 12396 | T127: 32 | U127: 1901 | V127: 0.116 | W127: 0.007 | X127: 0
A128: 13_11 | B128: 13 | C128: 5 | D128: 13_5 | E128: 49 | F128: 12 | G128: 4 | H128: 11 | I128: 1703.3 | J128: 0 | K128: 1977 | L128: 1977 | M128: 49 | N128: 25623 | O128: 1474 | P128: 0 | Q128: 11549 | R128: 0 | S128: 13303 | T128: 27 | U128: 1824 | V128: 0.111 | W128: 0.006 | X128: 0
A129: 13_12 | B129: 13 | C129: 6 | D129: 13_6 | E129: 49 | F129: 12 | G129: 4 | H129: 12 | I129: 1703.5 | J129: 0 | K129: 1977 | L129: 1977 | M129: 49 | N129: 26284 | O129: 1500 | P129: 0 | Q129: 11548 | R129: 0 | S129: 13837 | T129: 22 | U129: 1825 | V129: 0.111 | W129: 0.005 | X129: 0
A130: 13_13 | B130: 13 | C130: 7 | D130: 13_7 | E130: 49 | F130: 12 | G130: 4 | H130: 13 | I130: 1703.5 | J130: 0 | K130: 1977 | L130: 1977 | M130: 49 | N130: 26729 | O130: 1515 | P130: 0 | Q130: 11548 | R130: 0 | S130: 14142 | T130: 30 | U130: 1825 | V130: 0.111 | W130: 0.006 | X130: 0
A131: 13_14 | B131: 13 | C131: 8 | D131: 13_8 | E131: 49 | F131: 12 | G131: 4 | H131: 14 | I131: 1703.5 | J131: 0 | K131: 1977 | L131: 1977 | M131: 49 | N131: 27046 | O131: 1530 | P131: 0 | Q131: 11548 | R131: 0 | S131: 14441 | T131: 47 | U131: 1825 | V131: 0.111 | W131: 0.01 | X131: 0
A132: 13_15 | B132: 13 | C132: 9 | D132: 13_9 | E132: 49 | F132: 12 | G132: 4 | H132: 15 | I132: 2009.2 | J132: 0 | K132: 1977 | L132: 1977 | M132: 49 | N132: 27228 | O132: 1518 | P132: 0 | Q132: 11243 | R132: 0 | S132: 14621 | T132: 50 | U132: 2130 | V132: 0.13 | W132: 0.01 | X132: 0
A133: =CONCATENATE(B133,"_",H133) -> 13_16 | B133: 13 | C133: 10 | D133: 13_10 | E133: 49 | F133: 12 | G133: 4 | H133: 16 | I133: 2087.1 | J133: 0 | K133: 1977 | L133: 1977 | M133: 49 | N133: 27407 | O133: 1522 | P133: 0 | Q133: 11165 | R133: 0 | S133: 14802 | T133: 47 | U133: 2208 | V133: 0.135 | W133: 0.01 | X133: 0
A134: 13_17 | B134: =IF(E134=E133, (IF(F134=F133, (IF(G134=G133, (IF(H134=H133+1,B133,B133+1)), (IF(AND(G134=G133+1,H134=1,H133=24),B133,B133+1)))), B133+1)), B133+1) -> 13 | C134: =IF(B134=B133,C133+1,1) -> 11 | D134: =CONCATENATE(B134,"_",C134) -> 13_11 | E134: 49 | F134: 12 | G134: 4 | H134: 17 | I134: 2038.5 | J134: 0 | K134: 1977 | L134: 1977 | M134: 49 | N134: 27768 | O134: 1550 | P134: 0 | Q134: 11213 | R134: 0 | S134: 15310 | T134: 33 | U134: 2160 | V134: 0.132 | W134: 0.007 | X134: 0
A135: 13_18 | B135: 13 | C135: 12 | D135: 13_12 | E135: 49 | F135: 12 | G135: 4 | H135: 18 | I135: 1820.5 | J135: 0 | K135: 1977 | L135: 1977 | M135: 49 | N135: 27796 | O135: 1593 | P135: 0 | Q135: 11431 | R135: 0 | S135: 15865 | T135: 35 | U135: 1942 | V135: 0.119 | W135: 0.007 | X135: 0
A136: 13_19 | B136: 13 | C136: 13 | D136: 13_13 | E136: 49 | F136: 12 | G136: 4 | H136: 19 | I136: 1820.5 | J136: 0 | K136: 1977 | L136: 1977 | M136: 49 | N136: 26884 | O136: 1547 | P136: 0 | Q136: 11431 | R136: 0 | S136: 14928 | T136: 60 | U136: 1942 | V136: 0.119 | W136: 0.012 | X136: 0
A137: 13_20 | B137: 13 | C137: 14 | D137: 13_14 | E137: 49 | F137: 12 | G137: 4 | H137: 20 | I137: 1820.5 | J137: 0 | K137: 1977 | L137: 1977 | M137: 49 | N137: 25684 | O137: 1484 | P137: 0 | Q137: 11431 | R137: 0 | S137: 13684 | T137: 105 | U137: 1942 | V137: 0.119 | W137: 0.021 | X137: 0
A138: 13_21 | B138: 13 | C138: 15 | D138: 13_15 | E138: 49 | F138: 12 | G138: 4 | H138: 21 | I138: 1820.5 | J138: 0 | K138: 1977 | L138: 1977 | M138: 49 | N138: 25780 | O138: 1457 | P138: 0 | Q138: 11431 | R138: 0 | S138: 13146 | T138: 209 | U138: 1942 | V138: 0.119 | W138: 0.043 | X138: 0
A139: 13_22 | B139: 13 | C139: 16 | D139: 13_16 | E139: 49 | F139: 12 | G139: 4 | H139: 22 | I139: 1820.5 | J139: 0 | K139: 1977 | L139: 1977 | M139: 49 | N139: 24904 | O139: 1406 | P139: 0 | Q139: 11431 | R139: 0 | S139: 12117 | T139: 162 | U139: 1942 | V139: 0.119 | W139: 0.033 | X139: 0
A140: 14_7 | B140: 14 | C140: 1 | D140: 14_1 | E140: 49 | F140: 12 | G140: 5 | H140: 7 | I140: 1591.2 | J140: 0 | K140: 1977 | L140: 1977 | M140: 49 | N140: 17269 | O140: 3376 | P140: 0 | Q140: 11050 | R140: 0 | S140: 5286 | T140: 301 | U140: 2323 | V140: 0.142 | W140: 0.061 | X140: 0
A141: 14_8 | B141: 14 | C141: 2 | D141: 14_2 | E141: 49 | F141: 12 | G141: 5 | H141: 8 | I141: 1704.5 | J141: 0 | K141: 1977 | L141: 1977 | M141: 49 | N141: 20244 | O141: 1209 | P141: 0 | Q141: 11050 | R141: 0 | S141: 8718 | T141: 127 | U141: 2323 | V141: 0.142 | W141: 0.026 | X141: 0
A142: 14_9 | B142: 14 | C142: 3 | D142: 14_3 | E142: 49 | F142: 12 | G142: 5 | H142: 9 | I142: 1730 | J142: 0 | K142: 1977 | L142: 1977 | M142: 49 | N142: 22835 | O142: 1338 | P142: 0 | Q142: 11050 | R142: 0 | S142: 11298 | T142: 113 | U142: 2323 | V142: 0.142 | W142: 0.023 | X142: 0
A143: 14_10 | B143: 14 | C143: 4 | D143: 14_4 | E143: 49 | F143: 12 | G143: 5 | H143: 10 | I143: 1730 | J143: 0 | K143: 1977 | L143: 1977 | M143: 49 | N143: 24836 | O143: 1440 | P143: 0 | Q143: 11050 | R143: 0 | S143: 13331 | T143: 81 | U143: 2323 | V143: 0.142 | W143: 0.017 | X143: 0
A144: 14_11 | B144: 14 | C144: 5 | D144: 14_5 | E144: 49 | F144: 12 | G144: 5 | H144: 11 | I144: 1730 | J144: 0 | K144: 1977 | L144: 1977 | M144: 49 | N144: 26170 | O144: 1488 | P144: 0 | Q144: 11050 | R144: 0 | S144: 14289 | T144: 60 | U144: 2323 | V144: 0.142 | W144: 0.012 | X144: 0
A145: 14_12 | B145: 14 | C145: 6 | D145: 14_6 | E145: 49 | F145: 12 | G145: 5 | H145: 12 | I145: 1729.7 | J145: 0 | K145: 1977 | L145: 1977 | M145: 49 | N145: 26840 | O145: 1516 | P145: 0 | Q145: 11051 | R145: 0 | S145: 14843 | T145: 43 | U145: 2322 | V145: 0.142 | W145: 0.009 | X145: 0
A146: 14_13 | B146: 14 | C146: 7 | D146: 14_7 | E146: 49 | F146: 12 | G146: 5 | H146: 13 | I146: 1727.8 | J146: 0 | K146: 1977 | L146: 1977 | M146: 49 | N146: 27279 | O146: 1531 | P146: 0 | Q146: 11053 | R146: 0 | S146: 15156 | T146: 37 | U146: 2320 | V146: 0.142 | W146: 0.008 | X146: 0
A147: 14_14 | B147: 14 | C147: 8 | D147: 14_8 | E147: 49 | F147: 12 | G147: 5 | H147: 14 | I147: 1727.8 | J147: 0 | K147: 1977 | L147: 1977 | M147: 49 | N147: 27592 | O147: 1546 | P147: 0 | Q147: 11053 | R147: 0 | S147: 15451 | T147: 55 | U147: 2320 | V147: 0.142 | W147: 0.011 | X147: 0
A148: 14_15 | B148: 14 | C148: 9 | D148: 14_9 | E148: 49 | F148: 12 | G148: 5 | H148: 15 | I148: 1727.8 | J148: 0 | K148: 1977 | L148: 1977 | M148: 49 | N148: 27770 | O148: 1553 | P148: 0 | Q148: 11053 | R148: 0 | S148: 15596 | T148: 88 | U148: 2320 | V148: 0.142 | W148: 0.018 | X148: 0
A149: 14_16 | B149: 14 | C149: 10 | D149: 14_10 | E149: 49 | F149: 12 | G149: 5 | H149: 16 | I149: 1727.8 | J149: 0 | K149: 1977 | L149: 1977 | M149: 49 | N149: 27949 | O149: 1559 | P149: 0 | Q149: 11053 | R149: 0 | S149: 15697 | T149: 165 | U149: 2320 | V149: 0.142 | W149: 0.034 | X149: 0
A150: 14_17 | B150: 14 | C150: 11 | D150: 14_11 | E150: 49 | F150: 12 | G150: 5 | H150: 17 | I150: 1727.8 | J150: 0 | K150: 1977 | L150: 1977 | M150: 49 | N150: 28311 | O150: 1577 | P150: 0 | Q150: 11053 | R150: 0 | S150: 16062 | T150: 295 | U150: 2320 | V150: 0.142 | W150: 0.06 | X150: 0
A151: 14_18 | B151: 14 | C151: 12 | D151: 14_12 | E151: 49 | F151: 12 | G151: 5 | H151: 18 | I151: 1728 | J151: 0 | K151: 1977 | L151: 1977 | M151: 49 | N151: 28333 | O151: 1592 | P151: 0 | Q151: 11052 | R151: 0 | S151: 16373 | T151: 536 | U151: 2321 | V151: 0.142 | W151: 0.109 | X151: 0
A152: 14_19 | B152: 14 | C152: 13 | D152: 14_13 | E152: 49 | F152: 12 | G152: 5 | H152: 19 | I152: 1718.1 | J152: 0 | K152: 1977 | L152: 1977 | M152: 49 | N152: 27381 | O152: 1522 | P152: 0 | Q152: 11062 | R152: 0 | S152: 14962 | T152: 995 | U152: 2311 | V152: 0.141 | W152: 0.203 | X152: 0
A153: 14_20 | B153: 14 | C153: 14 | D153: 14_14 | E153: 49 | F153: 12 | G153: 5 | H153: 20 | I153: 1689.4 | J153: 0 | K153: 1977 | L153: 1977 | M153: 49 | N153: 26164 | O153: 1439 | P153: 0 | Q153: 11091 | R153: 0 | S153: 13261 | T153: 1480 | U153: 2282 | V153: 0.139 | W153: 0.302 | X153: 0
A154: 14_21 | B154: 14 | C154: 15 | D154: 14_15 | E154: 49 | F154: 12 | G154: 5 | H154: 21 | I154: 1782.1 | J154: 0 | K154: 1977 | L154: 1977 | M154: 49 | N154: 26306 | O154: 1384 | P154: 0 | Q154: 10998 | R154: 0 | S154: 12282 | T154: 2071 | U154: 2375 | V154: 0.145 | W154: 0.423 | X154: 0
A155: 14_22 | B155: 14 | C155: 16 | D155: 14_16 | E155: 49 | F155: 12 | G155: 5 | H155: 22 | I155: 1904.5 | J155: 0 | K155: 1977 | L155: 1977 | M155: 49 | N155: 25391 | O155: 1304 | P155: 0 | Q155: 10876 | R155: 0 | S155: 10857 | T155: 2381 | U155: 2497 | V155: 0.153 | W155: 0.486 | X155: 0
A156: 15_7 | B156: 15 | C156: 1 | D156: 15_1 | E156: 49 | F156: 12 | G156: 6 | H156: 7 | I156: 774 | J156: 0 | K156: 1977 | L156: 1977 | M156: 49 | N156: 16759 | O156: 3376 | P156: 0 | Q156: 10876 | R156: 0 | S156: 5584 | T156: 485 | U156: 2497 | V156: 0.153 | W156: 0.099 | X156: 0
A157: 15_8 | B157: 15 | C157: 2 | D157: 15_2 | E157: 49 | F157: 12 | G157: 6 | H157: 8 | I157: 1225.7 | J157: 0 | K157: 1977 | L157: 1977 | M157: 49 | N157: 19666 | O157: 1192 | P157: 0 | Q157: 10876 | R157: 0 | S157: 8607 | T157: 314 | U157: 2497 | V157: 0.153 | W157: 0.064 | X157: 0
A158: 15_9 | B158: 15 | C158: 3 | D158: 15_3 | E158: 49 | F158: 12 | G158: 6 | H158: 9 | I158: 1151.5 | J158: 0 | K158: 1977 | L158: 1977 | M158: 49 | N158: 22287 | O158: 1332 | P158: 0 | Q158: 10962 | R158: 0 | S158: 11293 | T158: 237 | U158: 2411 | V158: 0.147 | W158: 0.049 | X158: 0
A159: 15_10 | B159: 15 | C159: 4 | D159: 15_4 | E159: 49 | F159: 12 | G159: 6 | H159: 10 | I159: 1022.1 | J159: 0 | K159: 1977 | L159: 1977 | M159: 49 | N159: 24306 | O159: 1449 | P159: 0 | Q159: 11091 | R159: 0 | S159: 13444 | T159: 106 | U159: 2282 | V159: 0.139 | W159: 0.022 | X159: 0
A160: 15_11 | B160: 15 | C160: 5 | D160: 15_5 | E160: 49 | F160: 12 | G160: 6 | H160: 11 | I160: 1022.1 | J160: 0 | K160: 1977 | L160: 1977 | M160: 49 | N160: 25626 | O160: 1498 | P160: 0 | Q160: 11091 | R160: 0 | S160: 14436 | T160: 36 | U160: 2282 | V160: 0.139 | W160: 0.007 | X160: 0
A161: 15_12 | B161: 15 | C161: 6 | D161: 15_6 | E161: 49 | F161: 12 | G161: 6 | H161: 12 | I161: 1022.1 | J161: 0 | K161: 1977 | L161: 1977 | M161: 49 | N161: 26278 | O161: 1524 | P161: 0 | Q161: 11091 | R161: 0 | S161: 14951 | T161: 41 | U161: 2282 | V161: 0.139 | W161: 0.008 | X161: 0
A162: 15_13 | B162: 15 | C162: 7 | D162: 15_7 | E162: 49 | F162: 12 | G162: 6 | H162: 13 | I162: 1022.1 | J162: 0 | K162: 1977 | L162: 1977 | M162: 49 | N162: 26692 | O162: 1538 | P162: 0 | Q162: 11091 | R162: 0 | S162: 15226 | T162: 47 | U162: 2282 | V162: 0.139 | W162: 0.01 | X162: 0
A163: 15_14 | B163: 15 | C163: 8 | D163: 15_8 | E163: 49 | F163: 12 | G163: 6 | H163: 14 | I163: 1008.8 | J163: 0 | K163: 1977 | L163: 1977 | M163: 49 | N163: 26982 | O163: 1553 | P163: 0 | Q163: 11104 | R163: 0 | S163: 15523 | T163: 41 | U163: 2269 | V163: 0.139 | W163: 0.008 | X163: 0
A164: 15_15 | B164: 15 | C164: 9 | D164: 15_9 | E164: 49 | F164: 12 | G164: 6 | H164: 15 | I164: 857.1 | J164: 0 | K164: 1977 | L164: 1977 | M164: 49 | N164: 27151 | O164: 1572 | P164: 0 | Q164: 11256 | R164: 0 | S164: 15679 | T164: 53 | U164: 2117 | V164: 0.129 | W164: 0.011 | X164: 0
A165: 15_16 | B165: 15 | C165: 10 | D165: 15_10 | E165: 49 | F165: 12 | G165: 6 | H165: 16 | I165: 857.1 | J165: 0 | K165: 1977 | L165: 1977 | M165: 49 | N165: 27325 | O165: 1579 | P165: 0 | Q165: 11256 | R165: 0 | S165: 15827 | T165: 79 | U165: 2117 | V165: 0.129 | W165: 0.016 | X165: 0
A166: 15_17 | B166: 15 | C166: 11 | D166: 15_11 | E166: 49 | F166: 12 | G166: 6 | H166: 17 | I166: 857.1 | J166: 0 | K166: 1977 | L166: 1977 | M166: 49 | N166: 27681 | O166: 1602 | P166: 0 | Q166: 11256 | R166: 0 | S166: 16280 | T166: 115 | U166: 2117 | V166: 0.129 | W166: 0.024 | X166: 0
A167: 15_18 | B167: 15 | C167: 12 | D167: 15_12 | E167: 49 | F167: 12 | G167: 6 | H167: 18 | I167: 857.1 | J167: 0 | K167: 1977 | L167: 1977 | M167: 49 | N167: 27707 | O167: 1631 | P167: 0 | Q167: 11256 | R167: 0 | S167: 16871 | T167: 79 | U167: 2117 | V167: 0.129 | W167: 0.016 | X167: 0
A168: 15_19 | B168: 15 | C168: 13 | D168: 15_13 | E168: 49 | F168: 12 | G168: 6 | H168: 19 | I168: 857.1 | J168: 0 | K168: 1977 | L168: 1977 | M168: 49 | N168: 26763 | O168: 1586 | P168: 0 | Q168: 11256 | R168: 0 | S168: 15964 | T168: 43 | U168: 2117 | V168: 0.129 | W168: 0.009 | X168: 0
A169: 15_20 | B169: 15 | C169: 14 | D169: 15_14 | E169: 49 | F169: 12 | G169: 6 | H169: 20 | I169: 1146.5 | J169: 0 | K169: 1977 | L169: 1977 | M169: 49 | N169: 25586 | O169: 1507 | P169: 0 | Q169: 10967 | R169: 0 | S169: 14794 | T169: 35 | U169: 2406 | V169: 0.147 | W169: 0.007 | X169: 0
A170: 15_21 | B170: 15 | C170: 15 | D170: 15_15 | E170: 49 | F170: 12 | G170: 6 | H170: 21 | I170: 982.7 | J170: 0 | K170: 1977 | L170: 1977 | M170: 49 | N170: 25767 | O170: 1503 | P170: 0 | Q170: 11130 | R170: 0 | S170: 14471 | T170: 10 | U170: 2243 | V170: 0.137 | W170: 0.002 | X170: 0
A171: 15_22 | B171: 15 | C171: 16 | D171: 15_16 | E171: 49 | F171: 12 | G171: 6 | H171: 22 | I171: 1169.3 | J171: 0 | K171: 1977 | L171: 1977 | M171: 49 | N171: 24838 | O171: 1433 | P171: 0 | Q171: 10944 | R171: 0 | S171: 13347 | T171: 5 | U171: 2429 | V171: 0.148 | W171: 0.001 | X171: 0
A172: 16_7 | B172: 16 | C172: 1 | D172: 16_1 | E172: 49 | F172: 12 | G172: 9 | H172: 7 | I172: 1563.3 | J172: 0 | K172: 1977 | L172: 1977 | M172: 49 | N172: 17272 | O172: 3376 | P172: 0 | Q172: 11215 | R172: 0 | S172: 5320 | T172: 132 | U172: 2158 | V172: 0.132 | W172: 0.027 | X172: 0
A173: 16_8 | B173: 16 | C173: 2 | D173: 16_2 | E173: 49 | F173: 12 | G173: 9 | H173: 8 | I173: 1615.2 | J173: 0 | K173: 1977 | L173: 1977 | M173: 49 | N173: 20190 | O173: 1214 | P173: 0 | Q173: 11136 | R173: 0 | S173: 8682 | T173: 113 | U173: 2237 | V173: 0.137 | W173: 0.023 | X173: 0
A174: 16_9 | B174: 16 | C174: 3 | D174: 16_3 | E174: 49 | F174: 12 | G174: 9 | H174: 9 | I174: 1642.6 | J174: 0 | K174: 1977 | L174: 1977 | M174: 49 | N174: 22595 | O174: 1335 | P174: 0 | Q174: 11136 | R174: 0 | S174: 11109 | T174: 64 | U174: 2237 | V174: 0.137 | W174: 0.013 | X174: 0
A175: 16_10 | B175: 16 | C175: 4 | D175: 16_4 | E175: 49 | F175: 12 | G175: 9 | H175: 10 | I175: 1642.3 | J175: 0 | K175: 1977 | L175: 1977 | M175: 49 | N175: 24456 | O175: 1431 | P175: 0 | Q175: 11136 | R175: 0 | S175: 13024 | T175: 10 | U175: 2237 | V175: 0.137 | W175: 0.002 | X175: 0
A176: 16_11 | B176: 16 | C176: 5 | D176: 16_5 | E176: 49 | F176: 12 | G176: 9 | H176: 11 | I176: 1640.4 | J176: 0 | K176: 1977 | L176: 1977 | M176: 49 | N176: 25729 | O176: 1475 | P176: 0 | Q176: 11138 | R176: 0 | S176: 13903 | T176: 7 | U176: 2235 | V176: 0.136 | W176: 0.001 | X176: 0
A177: 16_12 | B177: 16 | C177: 6 | D177: 16_6 | E177: 49 | F177: 12 | G177: 9 | H177: 12 | I177: 1640.4 | J177: 0 | K177: 1977 | L177: 1977 | M177: 49 | N177: 26374 | O177: 1499 | P177: 0 | Q177: 11138 | R177: 0 | S177: 14390 | T177: 32 | U177: 2235 | V177: 0.136 | W177: 0.007 | X177: 0
A178: 16_13 | B178: 16 | C178: 7 | D178: 16_7 | E178: 49 | F178: 12 | G178: 9 | H178: 13 | I178: 1640.4 | J178: 0 | K178: 1977 | L178: 1977 | M178: 49 | N178: 26831 | O178: 1513 | P178: 0 | Q178: 11138 | R178: 0 | S178: 14669 | T178: 77 | U178: 2235 | V178: 0.136 | W178: 0.016 | X178: 0
A179: 16_14 | B179: 16 | C179: 8 | D179: 16_8 | E179: 49 | F179: 12 | G179: 9 | H179: 14 | I179: 1640.4 | J179: 0 | K179: 1977 | L179: 1977 | M179: 49 | N179: 27175 | O179: 1526 | P179: 0 | Q179: 11138 | R179: 0 | S179: 14933 | T179: 158 | U179: 2235 | V179: 0.136 | W179: 0.032 | X179: 0
A180: 16_15 | B180: 16 | C180: 9 | D180: 16_9 | E180: 49 | F180: 12 | G180: 9 | H180: 15 | I180: 1640.4 | J180: 0 | K180: 1977 | L180: 1977 | M180: 49 | N180: 27373 | O180: 1538 | P180: 0 | Q180: 11138 | R180: 0 | S180: 15159 | T180: 130 | U180: 2235 | V180: 0.136 | W180: 0.027 | X180: 0
A181: 16_16 | B181: 16 | C181: 10 | D181: 16_10 | E181: 49 | F181: 12 | G181: 9 | H181: 16 | I181: 1640.4 | J181: 0 | K181: 1977 | L181: 1977 | M181: 49 | N181: 27560 | O181: 1549 | P181: 0 | Q181: 11138 | R181: 0 | S181: 15378 | T181: 97 | U181: 2235 | V181: 0.136 | W181: 0.02 | X181: 0
A182: 16_17 | B182: 16 | C182: 11 | D182: 16_11 | E182: 49 | F182: 12 | G182: 9 | H182: 17 | I182: 1640.4 | J182: 0 | K182: 1977 | L182: 1977 | M182: 49 | N182: 27925 | O182: 1574 | P182: 0 | Q182: 11138 | R182: 0 | S182: 15878 | T182: 94 | U182: 2235 | V182: 0.136 | W182: 0.019 | X182: 0
A183: 16_18 | B183: 16 | C183: 12 | D183: 16_12 | E183: 49 | F183: 12 | G183: 9 | H183: 18 | I183: 1640.4 | J183: 0 | K183: 1977 | L183: 1977 | M183: 49 | N183: 27991 | O183: 1604 | P183: 0 | Q183: 11138 | R183: 0 | S183: 16492 | T183: 77 | U183: 2235 | V183: 0.136 | W183: 0.016 | X183: 0
A184: 16_19 | B184: 16 | C184: 13 | D184: 16_13 | E184: 49 | F184: 12 | G184: 9 | H184: 19 | I184: 1640.4 | J184: 0 | K184: 1977 | L184: 1977 | M184: 49 | N184: 27049 | O184: 1556 | P184: 0 | Q184: 11138 | R184: 0 | S184: 15535 | T184: 92 | U184: 2235 | V184: 0.136 | W184: 0.019 | X184: 0
A185: 16_20 | B185: 16 | C185: 14 | D185: 16_14 | E185: 49 | F185: 12 | G185: 9 | H185: 20 | I185: 1640.4 | J185: 0 | K185: 1977 | L185: 1977 | M185: 49 | N185: 25943 | O185: 1500 | P185: 0 | Q185: 11138 | R185: 0 | S185: 14405 | T185: 116 | U185: 2235 | V185: 0.136 | W185: 0.024 | X185: 0
A186: 16_21 | B186: 16 | C186: 15 | D186: 16_15 | E186: 49 | F186: 12 | G186: 9 | H186: 21 | I186: 1640.4 | J186: 0 | K186: 1977 | L186: 1977 | M186: 49 | N186: 26219 | O186: 1488 | P186: 0 | Q186: 11138 | R186: 0 | S186: 14162 | T186: 105 | U186: 2235 | V186: 0.136 | W186: 0.022 | X186: 0
A187: 16_22 | B187: 16 | C187: 16 | D187: 16_16 | E187: 49 | F187: 12 | G187: 9 | H187: 22 | I187: 1640.4 | J187: 0 | K187: 1977 | L187: 1977 | M187: 49 | N187: 25060 | O187: 1419 | P187: 0 | Q187: 11138 | R187: 0 | S187: 12790 | T187: 118 | U187: 2235 | V187: 0.136 | W187: 0.024 | X187: 0
A188: 17_7 | B188: 17 | C188: 1 | D188: 17_1 | E188: 49 | F188: 12 | G188: 10 | H188: 7 | I188: 1737.4 | J188: 0 | K188: 1977 | L188: 1977 | M188: 49 | N188: 18138 | O188: 3376 | P188: 0 | Q188: 11343 | R188: 0 | S188: 6002 | T188: 16 | U188: 2030 | V188: 0.124 | W188: 0.003 | X188: 0
A189: 17_8 | B189: 17 | C189: 2 | D189: 17_2 | E189: 49 | F189: 12 | G189: 10 | H189: 8 | I189: 1230.8 | J189: 0 | K189: 1977 | L189: 1977 | M189: 49 | N189: 21179 | O189: 1301 | P189: 0 | Q189: 11849 | R189: 0 | S189: 9441 | T189: 15 | U189: 1524 | V189: 0.093 | W189: 0.003 | X189: 0
A190: 17_9 | B190: 17 | C190: 3 | D190: 17_3 | E190: 49 | F190: 12 | G190: 10 | H190: 9 | I190: 1101.1 | J190: 0 | K190: 1977 | L190: 1977 | M190: 49 | N190: 23625 | O190: 1434 | P190: 0 | Q190: 11979 | R190: 0 | S190: 11901 | T190: 0 | U190: 1394 | V190: 0.085 | W190: 0 | X190: 0
A191: 17_10 | B191: 17 | C191: 4 | D191: 17_4 | E191: 49 | F191: 12 | G191: 10 | H191: 10 | I191: 1281.6 | J191: 0 | K191: 1977 | L191: 1977 | M191: 49 | N191: 25515 | O191: 1515 | P191: 0 | Q191: 11798 | R191: 0 | S191: 13791 | T191: 0 | U191: 1575 | V191: 0.096 | W191: 0 | X191: 0
A192: 17_11 | B192: 17 | C192: 5 | D192: 17_5 | E192: 49 | F192: 12 | G192: 10 | H192: 11 | I192: 1337.1 | J192: 0 | K192: 1977 | L192: 1977 | M192: 49 | N192: 26812 | O192: 1556 | P192: 0 | Q192: 11743 | R192: 0 | S192: 14682 | T192: 9 | U192: 1630 | V192: 0.1 | W192: 0.002 | X192: 0
A193: 17_12 | B193: 17 | C193: 6 | D193: 17_6 | E193: 49 | F193: 12 | G193: 10 | H193: 12 | I193: 1337.1 | J193: 0 | K193: 1977 | L193: 1977 | M193: 49 | N193: 27465 | O193: 1580 | P193: 0 | Q193: 11743 | R193: 0 | S193: 15157 | T193: 55 | U193: 1630 | V193: 0.1 | W193: 0.011 | X193: 0
A194: 17_13 | B194: 17 | C194: 7 | D194: 17_7 | E194: 49 | F194: 12 | G194: 10 | H194: 13 | I194: 1337.1 | J194: 0 | K194: 1977 | L194: 1977 | M194: 49 | N194: 27933 | O194: 1594 | P194: 0 | Q194: 11743 | R194: 0 | S194: 15440 | T194: 107 | U194: 1630 | V194: 0.1 | W194: 0.022 | X194: 0
A195: 17_14 | B195: 17 | C195: 8 | D195: 17_8 | E195: 49 | F195: 12 | G195: 10 | H195: 14 | I195: 1337.1 | J195: 0 | K195: 1977 | L195: 1977 | M195: 49 | N195: 28295 | O195: 1611 | P195: 0 | Q195: 11743 | R195: 0 | S195: 15776 | T195: 134 | U195: 1630 | V195: 0.1 | W195: 0.027 | X195: 0
A196: 17_15 | B196: 17 | C196: 9 | D196: 17_9 | E196: 49 | F196: 12 | G196: 10 | H196: 15 | I196: 1337.1 | J196: 0 | K196: 1977 | L196: 1977 | M196: 49 | N196: 28504 | O196: 1622 | P196: 0 | Q196: 11743 | R196: 0 | S196: 16007 | T196: 111 | U196: 1630 | V196: 0.1 | W196: 0.023 | X196: 0
A197: =CONCATENATE(B197,"_",H197) -> 17_16 | B197: 17 | C197: 10 | D197: 17_10 | E197: 49 | F197: 12 | G197: 10 | H197: 16 | I197: 1337.1 | J197: 0 | K197: 1977 | L197: 1977 | M197: 49 | N197: 28695 | O197: 1633 | P197: 0 | Q197: 11743 | R197: 0 | S197: 16223 | T197: 87 | U197: 1630 | V197: 0.1 | W197: 0.018 | X197: 0
A198: 17_17 | B198: =IF(E198=E197, (IF(F198=F197, (IF(G198=G197, (IF(H198=H197+1,B197,B197+1)), (IF(AND(G198=G197+1,H198=1,H197=24),B197,B197+1)))), B197+1)), B197+1) -> 17 | C198: =IF(B198=B197,C197+1,1) -> 11 | D198: =CONCATENATE(B198,"_",C198) -> 17_11 | E198: 49 | F198: 12 | G198: 10 | H198: 17 | I198: 1337.1 | J198: 0 | K198: 1977 | L198: 1977 | M198: 49 | N198: 29063 | O198: 1659 | P198: 0 | Q198: 11743 | R198: 0 | S198: 16740 | T198: 70 | U198: 1630 | V198: 0.1 | W198: 0.014 | X198: 0
A199: 17_18 | B199: 17 | C199: 12 | D199: 17_12 | E199: 49 | F199: 12 | G199: 10 | H199: 18 | I199: 1337.1 | J199: 0 | K199: 1977 | L199: 1977 | M199: 49 | N199: 29113 | O199: 1685 | P199: 0 | Q199: 11743 | R199: 0 | S199: 17265 | T199: 124 | U199: 1630 | V199: 0.1 | W199: 0.026 | X199: 0
A200: 17_19 | B200: 17 | C200: 13 | D200: 17_13 | E200: 49 | F200: 12 | G200: 10 | H200: 19 | I200: 1337.1 | J200: 0 | K200: 1977 | L200: 1977 | M200: 49 | N200: 28114 | O200: 1635 | P200: 0 | Q200: 11743 | R200: 0 | S200: 16263 | T200: 127 | U200: 1630 | V200: 0.1 | W200: 0.026 | X200: 0
A201: 17_20 | B201: 17 | C201: 14 | D201: 17_14 | E201: 49 | F201: 12 | G201: 10 | H201: 20 | I201: 1337.7 | J201: 0 | K201: 1977 | L201: 1977 | M201: 49 | N201: 26975 | O201: 1578 | P201: 0 | Q201: 11742 | R201: 0 | S201: 15119 | T201: 133 | U201: 1631 | V201: 0.1 | W201: 0.027 | X201: 0
... 3798 more rows

Sheet Event Summary
A1: Curtailment Event Summary | P1: Prototype Spinner Chart - 2021 M Assessment | Z1: Wind Capacity | AB1: 4896 | AC1: << Input
U2: Percent of Range
P3: Event | Q3: Dur | R3: Mag | S3: Avg Mag | T3: Peak | U3: Hyd | V3: Temp | W3: Thr | X3: Wind | Y3: Load | Z3: Hydro | AA3: Therm | AB3: Month | AC3: Game
D4: Dur | E4: Mag | F4: Peak | G4: ROff | H4: Hyd | I4: Event | J4: Temp | K4: FOut | L4: Dem | M4: Hydro | N4: Therm | O4: Wind | P4: 3 | Q4: =LOOKUP(P4,A6:A1071,D6:D1071) -> 7 | R4: =LOOKUP(P4,A6:A1071,E6:E1071) -> 3253 | S4: =R4/Q4 -> 464.7142857 | T4: =LOOKUP(P4,A6:A1071,F6:F1071) -> 878 | U4: =100-LOOKUP(P4,A6:A1071,H6:H1071) -> 1 | V4: =LOOKUP(P4,A6:A1071,J6:J1071) -> 3 | W4: =100-LOOKUP(P4,A6:A1071,K6:K1071)*100 -> 94 | X4: =LOOKUP(P4,A6:A1071,O6:O1071)*100/$AB$1 -> 13.97058824 | Y4: =LOOKUP(P4,A6:A1071,L6:L1071) -> 34208 | Z4: =LOOKUP(P4,A6:A1071,M6:M1071) -> 16830 | AA4: =LOOKUP(P4,A6:A1071,N6:N1071) -> 14395 | AB4: =LOOKUP(P4,A6:A1071,C6:C1071) -> Jan | AC4: =LOOKUP(P4,A6:A1071,B6:B1071) -> 2
A5: No | B5: Game | C5: Mon | D5: hours | E5: mw-hrs | F5: mw-hrs | G5: maf | H5: (%) | I5: Temp | J5: (%) | K5: (%) | L5: (averaged over the event)
A6: 1 | B6: 2 | C6: Jan | D6: 15 | E6: 12872 | F6: 955 | G6: 2.4 | H6: 99 | I6: 17 | J6: 1 | K6: 0.05 | L6: 32445 | M6: 15108 | N6: 14531 | O6: 16
A7: 2 | B7: 2 | C7: Jan | D7: 17 | E7: 13852 | F7: 886 | G7: 2.4 | H7: 99 | I7: 17 | J7: 1 | K7: 0.06 | L7: 31976 | M7: 14739 | N7: 14420 | O7: 100 | AC7: Cycle
A8: 3 | B8: 2 | C8: Jan | D8: 7 | E8: 3253 | F8: 878 | G8: 2.4 | H8: 99 | I8: 17.4 | J8: 3 | K8: 0.06 | L8: 34208 | M8: 16830 | N8: 14395 | O8: 684 | AC8: Thru
A9: 4 | B9: 2 | C9: Jan | D9: 4 | E9: 5364 | F9: 1882 | G9: 2.4 | H9: 99 | I9: 12.9 | J9: 0 | K9: 0.07 | L9: 31620 | M9: 12896 | N9: 14180 | O9: 900 | AC9: Events
A10: 5 | B10: 2 | C10: Jan | D10: 18 | E10: 47364 | F10: 2879 | G10: 2.4 | H10: 99 | I10: 13.4 | J10: 0 | K10: 0.11 | L10: 32496 | M10: 14443 | N10: 13357 | O10: 75
A11: 6 | B11: 2 | C11: Jan | D11: 17 | E11: 13529 | F11: 1232 | G11: 2.4 | H11: 99 | I11: 13.4 | J11: 0 | K11: 0.12 | L11: 31119 | M11: 14131 | N11: 13301 | O11: 43
A12: 7 | B12: 9 | C12: Jan | D12: 16 | E12: 56865 | F12: 3710 | G12: 2.3 | H12: 100 | I12: 11.8 | J12: 0 | K12: 0 | L12: 36827 | M12: 15681 | N12: 15460 | O12: 229
A13: 8 | B13: 12 | C13: Ag2 | D13: 6 | E13: 7135 | F13: 1294 | G13: 3.1 | H13: 84 | I13: 73.5 | J13: 95 | K13: 0.09 | L13: 26197 | M13: 13898 | N13: 11966 | O13: 162
A14: 9 | B14: 12 | C14: Ag2 | D14: 10 | E14: 7157 | F14: 1107 | G14: 3.1 | H14: 84 | I14: 66.8 | J14: 61 | K14: 0.07 | L14: 25854 | M14: 13546 | N14: 12308 | O14: 176
A15: 10 | B15: 12 | C15: Sep | D15: 5 | E15: 35 | F15: 7 | G15: 5.7 | H15: 33 | I15: 67.6 | J15: 88 | K15: 0.13 | L15: 23417 | M15: 13241 | N15: 11243 | O15: 30
A16: 11 | B16: 37 | C16: Dec | D16: 2 | E16: 0 | F16: 0 | G16: 10.1 | H16: 4 | I16: 7.8 | J16: 0 | K16: 0.09 | L16: 45694 | M16: 30228 | N16: 13844 | O16: 19
A17: 12 | B17: 49 | C17: Ag1 | D17: 3 | E17: 1537 | F17: 616 | G17: 3.4 | H17: 86 | I17: 75.9 | J17: 96 | K17: 0.03 | L17: 26698 | M17: 12355 | N17: 12843 | O17: 1925
A18: 13 | B18: 49 | C18: Ag1 | D18: 16 | E18: 28452 | F18: 2087 | G18: 3.4 | H18: 86 | I18: 71.5 | J18: 79 | K18: 0.12 | L18: 25177 | M18: 12895 | N18: 11424 | O18: 76
A19: 14 | B19: 49 | C19: Ag1 | D19: 16 | E19: 27676 | F19: 1904 | G19: 3.4 | H19: 86 | I19: 73.7 | J19: 92 | K19: 0.14 | L19: 25667 | M19: 13341 | N19: 11040 | O19: 552
A20: 15 | B20: 49 | C20: Ag1 | D20: 16 | E20: 15832 | F20: 1226 | G20: 3.4 | H20: 86 | I20: 72.7 | J20: 87 | K20: 0.14 | L20: 25088 | M20: 13894 | N20: 11094 | O20: 108
A21: 16 | B21: 49 | C21: Ag1 | D21: 16 | E21: 26148 | F21: 1643 | G21: 3.4 | H21: 86 | I21: 76 | J21: 92 | K21: 0.14 | L21: 25359 | M21: 13489 | N21: 11142 | O21: 89
A22: 17 | B22: 49 | C22: Ag1 | D22: 16 | E22: 21823 | F22: 1737 | G22: 3.4 | H22: 86 | I22: 78.6 | J22: 97 | K22: 0.1 | L22: 26423 | M22: 14268 | N22: 11716 | O22: 72
A23: 18 | B23: 49 | C23: Ag1 | D23: 16 | E23: 18060 | F23: 1150 | G23: 3.4 | H23: 86 | I23: 78.5 | J23: 96 | K23: 0.1 | L23: 25922 | M23: 13790 | N23: 11777 | O23: 223
A24: 19 | B24: 49 | C24: Ag1 | D24: 16 | E24: 19784 | F24: 1297 | G24: 3.4 | H24: 86 | I24: 81.7 | J24: 100 | K24: 0.09 | L24: 26617 | M24: 14071 | N24: 11830 | O24: 475
A25: 20 | B25: 49 | C25: Ag1 | D25: 16 | E25: 7695 | F25: 675 | G25: 3.4 | H25: 86 | I25: 75.1 | J25: 95 | K25: 0.07 | L25: 25372 | M25: 13663 | N25: 12162 | O25: 62
A26: 21 | B26: 49 | C26: Ag2 | D26: 16 | E26: 17633 | F26: 1287 | G26: 3.3 | H26: 63 | I26: 79.1 | J26: 100 | K26: 0.02 | L26: 26219 | M26: 13053 | N26: 13016 | O26: 27
A27: 22 | B27: 49 | C27: Ag2 | D27: 16 | E27: 7850 | F27: 718 | G27: 3.3 | H27: 63 | I27: 71.6 | J27: 86 | K27: 0.04 | L27: 24933 | M27: 12379 | N27: 12797 | O27: 246
A28: 23 | B28: 51 | C28: Jan | D28: 17 | E28: 14370 | F28: 1418 | G28: 3.5 | H28: 92 | I28: 11.8 | J28: 0 | K28: 0.05 | L28: 36003 | M28: 18633 | N28: 14621 | O28: 1
A29: 24 | B29: 57 | C29: Ag1 | D29: 7 | E29: 172 | F29: 33 | G29: 3.3 | H29: 92 | I29: 66.5 | J29: 39 | K29: 0.07 | L29: 26217 | M29: 13669 | N29: 12294 | O29: 1000
A30: 25 | B30: 57 | C30: Ag2 | D30: 2 | E30: 522 | F30: 483 | G30: 2.8 | H30: 89 | I30: 72.4 | J30: 92 | K30: 0.04 | L30: 25548 | M30: 13019 | N30: 12696 | O30: 158
A31: 26 | B31: 57 | C31: Ag2 | D31: 16 | E31: 12941 | F31: 1140 | G31: 2.8 | H31: 89 | I31: 72.8 | J31: 97 | K31: 0.06 | L31: 25011 | M31: 12837 | N31: 12320 | O31: 23
A32: 27 | B32: 61 | C32: Feb | D32: 9 | E32: 2388 | F32: 273 | G32: 3.6 | H32: 84 | I32: 7.3 | J32: 0 | K32: 0.11 | L32: 31277 | M32: 15179 | N32: 13344 | O32: 609
A33: 28 | B33: 61 | C33: Feb | D33: 16 | E33: 15402 | F33: 1410 | G33: 3.6 | H33: 84 | I33: 13.3 | J33: 0 | K33: 0.11 | L33: 32510 | M33: 16229 | N33: 13462 | O33: 45
A34: 29 | B34: 64 | C34: Ag1 | D34: 2 | E34: 1462 | F34: 1297 | G34: 3.2 | H34: 94 | I34: 78.3 | J34: 95 | K34: 0.11 | L34: 26150 | M34: 14608 | N34: 11536 | O34: 2
A35: 30 | B35: 64 | C35: Ag1 | D35: 10 | E35: 9035 | F35: 1072 | G35: 3.2 | H35: 94 | I35: 79.7 | J35: 99 | K35: 0.12 | L35: 27969 | M35: 15341 | N35: 11337 | O35: 1301
A36: 31 | B36: 64 | C36: Ag1 | D36: 16 | E36: 17410 | F36: 1853 | G36: 3.2 | H36: 94 | I36: 80.8 | J36: 100 | K36: 0.09 | L36: 26094 | M36: 13964 | N36: 11925 | O36: 113
A37: 32 | B37: 73 | C37: Ag1 | D37: 14 | E37: 22980 | F37: 1935 | G37: 3.3 | H37: 91 | I37: 75.3 | J37: 95 | K37: 0.15 | L37: 27118 | M37: 15311 | N37: 10994 | O37: 145
A38: 33 | B38: 74 | C38: Oct | D38: 10 | E38: 9358 | F38: 985 | G38: 3.5 | H38: 97 | I38: 46.4 | J38: 17 | K38: 0.1 | L38: 23375 | M38: 11097 | N38: 11667 | O38: 444
A39: 34 | B39: 74 | C39: Oct | D39: 4 | E39: 1839 | F39: 661 | G39: 3.5 | H39: 97 | I39: 45.5 | J39: 21 | K39: 0.09 | L39: 25448 | M39: 14179 | N39: 11923 | O39: 7
A40: 35 | B40: 74 | C40: Oct | D40: 7 | E40: 949 | F40: 297 | G40: 3.5 | H40: 97 | I40: 45.5 | J40: 21 | K40: 0.07 | L40: 23712 | M40: 11926 | N40: 12247 | O40: 263
A41: 36 | B41: 82 | C41: Oct | D41: 7 | E41: 1761 | F41: 278 | G41: 3.4 | H41: 99 | I41: 53 | J41: 36 | K41: 0.2 | L41: 23749 | M41: 14308 | N41: 10124 | O41: 2
A42: 37 | B42: 122 | C42: Dec | D42: 11 | E42: 19406 | F42: 2160 | G42: 4.3 | H42: 72 | I42: 11.2 | J42: 0 | K42: 0.06 | L42: 37597 | M42: 18727 | N42: 14382 | O42: 487
A43: 38 | B43: 129 | C43: Ag1 | D43: 10 | E43: 14854 | F43: 1613 | G43: 3.4 | H43: 86 | I43: 73.2 | J43: 88 | K43: 0.12 | L43: 27167 | M43: 15103 | N43: 11389 | O43: 102
A44: 39 | B44: 129 | C44: Ag1 | D44: 8 | E44: 3244 | F44: 435 | G44: 3.4 | H44: 86 | I44: 69 | J44: 64 | K44: 0.11 | L44: 26185 | M44: 14009 | N44: 11539 | O44: 1199
A45: 40 | B45: 137 | C45: Ag1 | D45: 6 | E45: 1979 | F45: 574 | G45: 3.3 | H45: 92 | I45: 68.9 | J45: 61 | K45: 0.03 | L45: 26366 | M45: 13461 | N45: 12920 | O45: 714
A46: 41 | B46: 140 | C46: Dec | D46: 18 | E46: 48455 | F46: 3182 | G46: 3.8 | H46: 84 | I46: 8.3 | J46: 0 | K46: 0.04 | L46: 37704 | M46: 18037 | N46: 14742 | O46: 40
A47: 42 | B47: 140 | C47: Dec | D47: 18 | E47: 34255 | F47: 2178 | G47: 3.8 | H47: 84 | I47: 10.5 | J47: 1 | K47: 0.04 | L47: 37621 | M47: 18118 | N47: 14752 | O47: 654
A48: 43 | B48: 140 | C48: Dec | D48: 16 | E48: 13161 | F48: 936 | G48: 3.8 | H48: 84 | I48: 14 | J48: 1 | K48: 0.08 | L48: 35788 | M48: 18977 | N48: 13935 | O48: 45
A49: 44 | B49: 141 | C49: Oct | D49: 3 | E49: 684 | F49: 302 | G49: 4.7 | H49: 59 | I49: 57.2 | J49: 64 | K49: 0.22 | L49: 22316 | M49: 13393 | N49: 9754 | O49: 30
A50: 45 | B50: 141 | C50: Oct | D50: 1 | E50: 286 | F50: 286 | G50: 4.7 | H50: 59 | I50: 35.1 | J50: 3 | K50: 0.04 | L50: 25785 | M50: 13400 | N50: 12736 | O50: 186
A51: 46 | B51: 141 | C51: Oct | D51: 12 | E51: 3784 | F51: 462 | G51: 4.7 | H51: 59 | I51: 35.1 | J51: 3 | K51: 0.04 | L51: 25883 | M51: 13599 | N51: 12706 | O51: 30
A52: 47 | B52: 147 | C52: Sep | D52: 11 | E52: 238 | F52: 26 | G52: 5.8 | H52: 32 | I52: 68.9 | J52: 87 | K52: 0.18 | L52: 24351 | M52: 14857 | N52: 10350 | O52: 56
A53: 48 | B53: 153 | C53: Jan | D53: 16 | E53: 28115 | F53: 1932 | G53: 3.7 | H53: 87 | I53: 16.3 | J53: 3 | K53: 0.03 | L53: 35995 | M53: 17437 | N53: 14887 | O53: 11
A54: 49 | B54: 154 | C54: Oct | D54: 1 | E54: 32 | F54: 32 | G54: 3.5 | H54: 97 | I54: 58.6 | J54: 75 | K54: 0.1 | L54: 23754 | M54: 12995 | N54: 11741 | O54: 207
A55: 50 | B55: 154 | C55: Oct | D55: 7 | E55: 3816 | F55: 797 | G55: 3.5 | H55: 97 | I55: 59.3 | J55: 83 | K55: 0.12 | L55: 22856 | M55: 11392 | N55: 11389 | O55: 467 | R55: Event
A56: 51 | B56: 161 | C56: Jan | D56: 15 | E56: 8741 | F56: 731 | G56: 3.3 | H56: 96 | I56: 10.6 | J56: 0 | K56: 0.06 | L56: 34104 | M56: 17310 | N56: 14389 | O56: 25 | R56: ='Event Summary'!P4 -> 3
A57: 52 | B57: 161 | C57: Jan | D57: 18 | E57: 40780 | F57: 2695 | G57: 3.3 | H57: 96 | I57: 7.1 | J57: 0 | K57: 0.08 | L57: 35573 | M57: 17247 | N57: 14038 | O57: 32 | T57: Event | U57: Curt
A58: 53 | B58: 163 | C58: Jan | D58: 8 | E58: 27446 | F58: 4082 | G58: 3.1 | H58: 97 | I58: 12.8 | J58: 0 | K58: 0.07 | L58: 36154 | M58: 16246 | N58: 14206 | O58: 228 | R58: Mapping | S58: Index | T58: Hour | U58: Mag
A59: 54 | B59: 163 | C59: Jan | D59: 18 | E59: 68854 | F59: 4358 | G59: 3.1 | H59: 97 | I59: 11.8 | J59: 0 | K59: 0.04 | L59: 36117 | M59: 15636 | N59: 14646 | O59: 19 | R59: =CONCATENATE($R$56,"_",S59) -> 3_1 | S59: 1 | T59: =IF(ISERROR(VLOOKUP($R59,'Curtailment Record'!$D$4:$I$3999,5,FALSE)),"",VLOOKUP($R59,'Curtailment Record'!$D$4:$I$3999,5,FALSE)) -> 16 | U59: =IF(ISERROR(VLOOKUP($R59,'Curtailment Record'!$D$4:$I$3999,6,FALSE)),"",VLOOKUP($R59,'Curtailment Record'!$D$4:$I$3999,6,FALSE)) -> 878.2
A60: 55 | B60: 169 | C60: Jan | D60: 18 | E60: 68538 | F60: 4166 | G60: 2.3 | H60: 100 | I60: 9.9 | J60: 0 | K60: 0.06 | L60: 35205 | M60: 15060 | N60: 14285 | O60: 62 | R60: =CONCATENATE($R$56,"_",S60) -> 3_2 | S60: 2 | T60: =IF(ISERROR(VLOOKUP($R60,'Curtailment Record'!$D$4:$I$3999,5,FALSE)),"",VLOOKUP($R60,'Curtailment Record'!$D$4:$I$3999,5,FALSE)) -> 17 | U60: =IF(ISERROR(VLOOKUP($R60,'Curtailment Record'!$D$4:$I$3999,6,FALSE)),"",VLOOKUP($R60,'Curtailment Record'!$D$4:$I$3999,6,FALSE)) -> 696.2
A61: 56 | B61: 169 | C61: Jan | D61: 9 | E61: 3450 | F61: 710 | G61: 2.3 | H61: 100 | I61: 26.8 | J61: 16 | K61: 0.09 | L61: 31543 | M61: 15589 | N61: 13753 | O61: 10 | R61: 3_3 | S61: 3 | T61: =IF(ISERROR(VLOOKUP($R61,'Curtailment Record'!$D$4:$I$3999,5,FALSE)),"",VLOOKUP($R61,'Curtailment Record'!$D$4:$I$3999,5,FALSE)) -> 18 | U61: =IF(ISERROR(VLOOKUP($R61,'Curtailment Record'!$D$4:$I$3999,6,FALSE)),"",VLOOKUP($R61,'Curtailment Record'!$D$4:$I$3999,6,FALSE)) -> 335.9
A62: 57 | B62: 176 | C62: Jan | D62: 18 | E62: 30276 | F62: 1959 | G62: 3.4 | H62: 95 | I62: 17.1 | J62: 3 | K62: 0.02 | L62: 34651 | M62: 15927 | N62: 15020 | O62: 32 | R62: 3_4 | S62: 4 | T62: =IF(ISERROR(VLOOKUP($R62,'Curtailment Record'!$D$4:$I$3999,5,FALSE)),"",VLOOKUP($R62,'Curtailment Record'!$D$4:$I$3999,5,FALSE)) -> 19 | U62: =IF(ISERROR(VLOOKUP($R62,'Curtailment Record'!$D$4:$I$3999,6,FALSE)),"",VLOOKUP($R62,'Curtailment Record'!$D$4:$I$3999,6,FALSE)) -> 335.9
A63: 58 | B63: 176 | C63: Jan | D63: 18 | E63: 35100 | F63: 2287 | G63: 3.4 | H63: 95 | I63: 13.5 | J63: 0 | K63: 0.12 | L63: 32425 | M63: 15071 | N63: 13319 | O63: 95 | R63: 3_5 | S63: 5 | T63: =IF(ISERROR(VLOOKUP($R63,'Curtailment Record'!$D$4:$I$3999,5,FALSE)),"",VLOOKUP($R63,'Curtailment Record'!$D$4:$I$3999,5,FALSE)) -> 20 | U63: =IF(ISERROR(VLOOKUP($R63,'Curtailment Record'!$D$4:$I$3999,6,FALSE)),"",VLOOKUP($R63,'Curtailment Record'!$D$4:$I$3999,6,FALSE)) -> 335.9
A64: 59 | B64: 176 | C64: Jan | D64: 19 | E64: 64642 | F64: 4015 | G64: 3.4 | H64: 95 | I64: 8.5 | J64: 0 | K64: 0.07 | L64: 35893 | M64: 16233 | N64: 14188 | O64: 0 | R64: 3_6 | S64: 6 | T64: =IF(ISERROR(VLOOKUP($R64,'Curtailment Record'!$D$4:$I$3999,5,FALSE)),"",VLOOKUP($R64,'Curtailment Record'!$D$4:$I$3999,5,FALSE)) -> 21 | U64: =IF(ISERROR(VLOOKUP($R64,'Curtailment Record'!$D$4:$I$3999,6,FALSE)),"",VLOOKUP($R64,'Curtailment Record'!$D$4:$I$3999,6,FALSE)) -> 335.7
A65: 60 | B65: 176 | C65: Jan | D65: 18 | E65: 44543 | F65: 3503 | G65: 3.4 | H65: 95 | I65: 13.4 | J65: 0 | K65: 0.05 | L65: 35208 | M65: 15961 | N65: 14607 | O65: 175 | R65: 3_7 | S65: 7 | T65: =IF(ISERROR(VLOOKUP($R65,'Curtailment Record'!$D$4:$I$3999,5,FALSE)),"",VLOOKUP($R65,'Curtailment Record'!$D$4:$I$3999,5,FALSE)) -> 22 | U65: =IF(ISERROR(VLOOKUP($R65,'Curtailment Record'!$D$4:$I$3999,6,FALSE)),"",VLOOKUP($R65,'Curtailment Record'!$D$4:$I$3999,6,FALSE)) -> 334.8
A66: 61 | B66: 176 | C66: Jan | D66: 17 | E66: 14408 | F66: 1058 | G66: 3.4 | H66: 95 | I66: 11.8 | J66: 0 | K66: 0.08 | L66: 32862 | M66: 15013 | N66: 14055 | O66: 98 | R66: 3_8 | S66: 8 | T66: =IF(ISERROR(VLOOKUP($R66,'Curtailment Record'!$D$4:$I$3999,5,FALSE)),"",VLOOKUP($R66,'Curtailment Record'!$D$4:$I$3999,5,FALSE)) ->  | U66: =IF(ISERROR(VLOOKUP($R66,'Curtailment Record'!$D$4:$I$3999,6,FALSE)),"",VLOOKUP($R66,'Curtailment Record'!$D$4:$I$3999,6,FALSE)) -> 
A67: 62 | B67: 176 | C67: Jan | D67: 14 | E67: 21972 | F67: 1907 | G67: 3.4 | H67: 95 | I67: 11.2 | J67: 1 | K67: 0.03 | L67: 35181 | M67: 15973 | N67: 14936 | O67: 739 | R67: 3_9 | S67: 9 | T67: =IF(ISERROR(VLOOKUP($R67,'Curtailment Record'!$D$4:$I$3999,5,FALSE)),"",VLOOKUP($R67,'Curtailment Record'!$D$4:$I$3999,5,FALSE)) ->  | U67: =IF(ISERROR(VLOOKUP($R67,'Curtailment Record'!$D$4:$I$3999,6,FALSE)),"",VLOOKUP($R67,'Curtailment Record'!$D$4:$I$3999,6,FALSE)) -> 
A68: 63 | B68: 176 | C68: Feb | D68: 18 | E68: 52875 | F68: 3413 | G68: 3.2 | H68: 92 | I68: 6.6 | J68: 0 | K68: 0.13 | L68: 34304 | M68: 16010 | N68: 13026 | O68: 331 | R68: 3_10 | S68: 10 | T68: =IF(ISERROR(VLOOKUP($R68,'Curtailment Record'!$D$4:$I$3999,5,FALSE)),"",VLOOKUP($R68,'Curtailment Record'!$D$4:$I$3999,5,FALSE)) ->  | U68: =IF(ISERROR(VLOOKUP($R68,'Curtailment Record'!$D$4:$I$3999,6,FALSE)),"",VLOOKUP($R68,'Curtailment Record'!$D$4:$I$3999,6,FALSE)) -> 
A69: 64 | B69: 176 | C69: Feb | D69: 17 | E69: 12092 | F69: 1352 | G69: 3.2 | H69: 92 | I69: 9.7 | J69: 1 | K69: 0.05 | L69: 33381 | M69: 15915 | N69: 14414 | O69: 430 | R69: 3_11 | S69: 11 | T69: =IF(ISERROR(VLOOKUP($R69,'Curtailment Record'!$D$4:$I$3999,5,FALSE)),"",VLOOKUP($R69,'Curtailment Record'!$D$4:$I$3999,5,FALSE)) ->  | U69: =IF(ISERROR(VLOOKUP($R69,'Curtailment Record'!$D$4:$I$3999,6,FALSE)),"",VLOOKUP($R69,'Curtailment Record'!$D$4:$I$3999,6,FALSE)) -> 
A70: 65 | B70: 209 | C70: Sep | D70: 6 | E70: 3852 | F70: 846 | G70: 4.6 | H70: 84 | I70: 62.2 | J70: 71 | K70: 0.1 | L70: 22723 | M70: 11362 | N70: 11792 | O70: 4 | R70: 3_12 | S70: 12 | T70: =IF(ISERROR(VLOOKUP($R70,'Curtailment Record'!$D$4:$I$3999,5,FALSE)),"",VLOOKUP($R70,'Curtailment Record'!$D$4:$I$3999,5,FALSE)) ->  | U70: =IF(ISERROR(VLOOKUP($R70,'Curtailment Record'!$D$4:$I$3999,6,FALSE)),"",VLOOKUP($R70,'Curtailment Record'!$D$4:$I$3999,6,FALSE)) -> 
A71: 66 | B71: 209 | C71: Sep | D71: 8 | E71: 3727 | F71: 515 | G71: 4.6 | H71: 84 | I71: 62.2 | J71: 71 | K71: 0.09 | L71: 22708 | M71: 11050 | N71: 11972 | O71: 133 | R71: 3_13 | S71: 13 | T71: =IF(ISERROR(VLOOKUP($R71,'Curtailment Record'!$D$4:$I$3999,5,FALSE)),"",VLOOKUP($R71,'Curtailment Record'!$D$4:$I$3999,5,FALSE)) ->  | U71: =IF(ISERROR(VLOOKUP($R71,'Curtailment Record'!$D$4:$I$3999,6,FALSE)),"",VLOOKUP($R71,'Curtailment Record'!$D$4:$I$3999,6,FALSE)) -> 
A72: 67 | B72: 209 | C72: Sep | D72: 7 | E72: 6150 | F72: 1001 | G72: 4.6 | H72: 84 | I72: 49.8 | J72: 7 | K72: 0.12 | L72: 22527 | M72: 10933 | N72: 11473 | O72: 189 | R72: 3_14 | S72: 14 | T72: =IF(ISERROR(VLOOKUP($R72,'Curtailment Record'!$D$4:$I$3999,5,FALSE)),"",VLOOKUP($R72,'Curtailment Record'!$D$4:$I$3999,5,FALSE)) ->  | U72: =IF(ISERROR(VLOOKUP($R72,'Curtailment Record'!$D$4:$I$3999,6,FALSE)),"",VLOOKUP($R72,'Curtailment Record'!$D$4:$I$3999,6,FALSE)) -> 
A73: 68 | B73: 209 | C73: Sep | D73: 5 | E73: 766 | F73: 193 | G73: 4.6 | H73: 84 | I73: 54 | J73: 24 | K73: 0.09 | L73: 23207 | M73: 11327 | N73: 11909 | O73: 922 | R73: 3_15 | S73: 15 | T73: =IF(ISERROR(VLOOKUP($R73,'Curtailment Record'!$D$4:$I$3999,5,FALSE)),"",VLOOKUP($R73,'Curtailment Record'!$D$4:$I$3999,5,FALSE)) ->  | U73: =IF(ISERROR(VLOOKUP($R73,'Curtailment Record'!$D$4:$I$3999,6,FALSE)),"",VLOOKUP($R73,'Curtailment Record'!$D$4:$I$3999,6,FALSE)) -> 
A74: 69 | B74: 212 | C74: Nov | D74: 6 | E74: 14543 | F74: 2850 | G74: 3.2 | H74: 97 | I74: 13.5 | J74: 0 | K74: 0.07 | L74: 37664 | M74: 19150 | N74: 13911 | O74: 31 | R74: 3_16 | S74: 16 | T74: =IF(ISERROR(VLOOKUP($R74,'Curtailment Record'!$D$4:$I$3999,5,FALSE)),"",VLOOKUP($R74,'Curtailment Record'!$D$4:$I$3999,5,FALSE)) ->  | U74: =IF(ISERROR(VLOOKUP($R74,'Curtailment Record'!$D$4:$I$3999,6,FALSE)),"",VLOOKUP($R74,'Curtailment Record'!$D$4:$I$3999,6,FALSE)) -> 
A75: 70 | B75: 217 | C75: Ag1 | D75: 3 | E75: 1078 | F75: 421 | G75: 3.3 | H75: 92 | I75: 67.9 | J75: 61 | K75: 0.14 | L75: 24534 | M75: 11689 | N75: 11070 | O75: 2353 | R75: 3_17 | S75: 17 | T75: =IF(ISERROR(VLOOKUP($R75,'Curtailment Record'!$D$4:$I$3999,5,FALSE)),"",VLOOKUP($R75,'Curtailment Record'!$D$4:$I$3999,5,FALSE)) ->  | U75: =IF(ISERROR(VLOOKUP($R75,'Curtailment Record'!$D$4:$I$3999,6,FALSE)),"",VLOOKUP($R75,'Curtailment Record'!$D$4:$I$3999,6,FALSE)) -> 
A76: 71 | B76: 217 | C76: Ag1 | D76: 16 | E76: 37221 | F76: 2693 | G76: 3.3 | H76: 92 | I76: 70.7 | J76: 76 | K76: 0.16 | L76: 25499 | M76: 13367 | N76: 10689 | O76: 113 | R76: 3_18 | S76: 18 | T76: =IF(ISERROR(VLOOKUP($R76,'Curtailment Record'!$D$4:$I$3999,5,FALSE)),"",VLOOKUP($R76,'Curtailment Record'!$D$4:$I$3999,5,FALSE)) ->  | U76: =IF(ISERROR(VLOOKUP($R76,'Curtailment Record'!$D$4:$I$3999,6,FALSE)),"",VLOOKUP($R76,'Curtailment Record'!$D$4:$I$3999,6,FALSE)) -> 
A77: 72 | B77: 217 | C77: Ag1 | D77: 16 | E77: 10263 | F77: 1335 | G77: 3.3 | H77: 92 | I77: 70.2 | J77: 72 | K77: 0.1 | L77: 25051 | M77: 13105 | N77: 11749 | O77: 552 | R77: 3_19 | S77: 19 | T77: =IF(ISERROR(VLOOKUP($R77,'Curtailment Record'!$D$4:$I$3999,5,FALSE)),"",VLOOKUP($R77,'Curtailment Record'!$D$4:$I$3999,5,FALSE)) ->  | U77: =IF(ISERROR(VLOOKUP($R77,'Curtailment Record'!$D$4:$I$3999,6,FALSE)),"",VLOOKUP($R77,'Curtailment Record'!$D$4:$I$3999,6,FALSE)) -> 
A78: 73 | B78: 217 | C78: Ag1 | D78: 10 | E78: 10538 | F78: 1163 | G78: 3.3 | H78: 92 | I78: 68.7 | J78: 67 | K78: 0.09 | L78: 26546 | M78: 14329 | N78: 11980 | O78: 96 | R78: 3_20 | S78: 20 | T78: =IF(ISERROR(VLOOKUP($R78,'Curtailment Record'!$D$4:$I$3999,5,FALSE)),"",VLOOKUP($R78,'Curtailment Record'!$D$4:$I$3999,5,FALSE)) ->  | U78: =IF(ISERROR(VLOOKUP($R78,'Curtailment Record'!$D$4:$I$3999,6,FALSE)),"",VLOOKUP($R78,'Curtailment Record'!$D$4:$I$3999,6,FALSE)) -> 
A79: 74 | B79: 217 | C79: Ag1 | D79: 13 | E79: 11367 | F79: 1208 | G79: 3.3 | H79: 92 | I79: 70.6 | J79: 71 | K79: 0.09 | L79: 26031 | M79: 13535 | N79: 11832 | O79: 733 | R79: 3_21 | S79: 21 | T79: =IF(ISERROR(VLOOKUP($R79,'Curtailment Record'!$D$4:$I$3999,5,FALSE)),"",VLOOKUP($R79,'Curtailment Record'!$D$4:$I$3999,5,FALSE)) ->  | U79: =IF(ISERROR(VLOOKUP($R79,'Curtailment Record'!$D$4:$I$3999,6,FALSE)),"",VLOOKUP($R79,'Curtailment Record'!$D$4:$I$3999,6,FALSE)) -> 
A80: 75 | B80: 217 | C80: Ag2 | D80: 3 | E80: 2042 | F80: 821 | G80: 2.8 | H80: 89 | I80: 73.1 | J80: 95 | K80: 0.01 | L80: 25796 | M80: 11423 | N80: 13277 | O80: 1263 | R80: 3_22 | S80: 22 | T80: =IF(ISERROR(VLOOKUP($R80,'Curtailment Record'!$D$4:$I$3999,5,FALSE)),"",VLOOKUP($R80,'Curtailment Record'!$D$4:$I$3999,5,FALSE)) ->  | U80: =IF(ISERROR(VLOOKUP($R80,'Curtailment Record'!$D$4:$I$3999,6,FALSE)),"",VLOOKUP($R80,'Curtailment Record'!$D$4:$I$3999,6,FALSE)) -> 
A81: 76 | B81: 217 | C81: Ag2 | D81: 15 | E81: 24920 | F81: 2021 | G81: 2.8 | H81: 89 | I81: 74.3 | J81: 97 | K81: 0.03 | L81: 25615 | M81: 11925 | N81: 12840 | O81: 169 | R81: 3_23 | S81: 23 | T81: =IF(ISERROR(VLOOKUP($R81,'Curtailment Record'!$D$4:$I$3999,5,FALSE)),"",VLOOKUP($R81,'Curtailment Record'!$D$4:$I$3999,5,FALSE)) ->  | U81: =IF(ISERROR(VLOOKUP($R81,'Curtailment Record'!$D$4:$I$3999,6,FALSE)),"",VLOOKUP($R81,'Curtailment Record'!$D$4:$I$3999,6,FALSE)) -> 
A82: 77 | B82: 217 | C82: Ag2 | D82: 16 | E82: 20059 | F82: 1348 | G82: 2.8 | H82: 89 | I82: 75.5 | J82: 97 | K82: 0.05 | L82: 25514 | M82: 12490 | N82: 12572 | O82: 178 | R82: 3_24 | S82: 24 | T82: =IF(ISERROR(VLOOKUP($R82,'Curtailment Record'!$D$4:$I$3999,5,FALSE)),"",VLOOKUP($R82,'Curtailment Record'!$D$4:$I$3999,5,FALSE)) ->  | U82: =IF(ISERROR(VLOOKUP($R82,'Curtailment Record'!$D$4:$I$3999,6,FALSE)),"",VLOOKUP($R82,'Curtailment Record'!$D$4:$I$3999,6,FALSE)) -> 
A83: 78 | B83: 217 | C83: Ag2 | D83: 15 | E83: 8163 | F83: 751 | G83: 2.8 | H83: 89 | I83: 72.8 | J83: 92 | K83: 0.04 | L83: 25190 | M83: 11994 | N83: 12728 | O83: 904 | R83: 3_25 | S83: 25 | T83: =IF(ISERROR(VLOOKUP($R83,'Curtailment Record'!$D$4:$I$3999,5,FALSE)),"",VLOOKUP($R83,'Curtailment Record'!$D$4:$I$3999,5,FALSE)) ->  | U83: =IF(ISERROR(VLOOKUP($R83,'Curtailment Record'!$D$4:$I$3999,6,FALSE)),"",VLOOKUP($R83,'Curtailment Record'!$D$4:$I$3999,6,FALSE)) -> 
A84: 79 | B84: 217 | C84: Ag2 | D84: 1 | E84: 171 | F84: 171 | G84: 2.8 | H84: 89 | I84: 71.2 | J84: 88 | K84: 0.09 | L84: 18378 | M84: 6234 | N84: 11915 | O84: 69 | R84: 3_26 | S84: 26 | T84: =IF(ISERROR(VLOOKUP($R84,'Curtailment Record'!$D$4:$I$3999,5,FALSE)),"",VLOOKUP($R84,'Curtailment Record'!$D$4:$I$3999,5,FALSE)) ->  | U84: =IF(ISERROR(VLOOKUP($R84,'Curtailment Record'!$D$4:$I$3999,6,FALSE)),"",VLOOKUP($R84,'Curtailment Record'!$D$4:$I$3999,6,FALSE)) -> 
A85: 80 | B85: 217 | C85: Ag2 | D85: 10 | E85: 2265 | F85: 580 | G85: 2.8 | H85: 89 | I85: 63.9 | J85: 46 | K85: 0.11 | L85: 22791 | M85: 11877 | N85: 11550 | O85: 93 | R85: 3_27 | S85: 27 | T85: =IF(ISERROR(VLOOKUP($R85,'Curtailment Record'!$D$4:$I$3999,5,FALSE)),"",VLOOKUP($R85,'Curtailment Record'!$D$4:$I$3999,5,FALSE)) ->  | U85: =IF(ISERROR(VLOOKUP($R85,'Curtailment Record'!$D$4:$I$3999,6,FALSE)),"",VLOOKUP($R85,'Curtailment Record'!$D$4:$I$3999,6,FALSE)) -> 
A86: 81 | B86: 217 | C86: Ag2 | D86: 12 | E86: 5400 | F86: 624 | G86: 2.8 | H86: 89 | I86: 64.4 | J86: 47 | K86: 0.05 | L86: 23829 | M86: 11579 | N86: 12524 | O86: 255 | R86: 3_28 | S86: 28 | T86: =IF(ISERROR(VLOOKUP($R86,'Curtailment Record'!$D$4:$I$3999,5,FALSE)),"",VLOOKUP($R86,'Curtailment Record'!$D$4:$I$3999,5,FALSE)) ->  | U86: =IF(ISERROR(VLOOKUP($R86,'Curtailment Record'!$D$4:$I$3999,6,FALSE)),"",VLOOKUP($R86,'Curtailment Record'!$D$4:$I$3999,6,FALSE)) -> 
A87: 82 | B87: 219 | C87: Sep | D87: 2 | E87: 107 | F87: 97 | G87: 4.3 | H87: 90 | I87: 69.4 | J87: 91 | K87: 0.13 | L87: 21436 | M87: 11402 | N87: 11316 | O87: 7 | R87: 3_29 | S87: 29 | T87: =IF(ISERROR(VLOOKUP($R87,'Curtailment Record'!$D$4:$I$3999,5,FALSE)),"",VLOOKUP($R87,'Curtailment Record'!$D$4:$I$3999,5,FALSE)) ->  | U87: =IF(ISERROR(VLOOKUP($R87,'Curtailment Record'!$D$4:$I$3999,6,FALSE)),"",VLOOKUP($R87,'Curtailment Record'!$D$4:$I$3999,6,FALSE)) -> 
A88: 83 | B88: 224 | C88: Sep | D88: 1 | E88: 868 | F88: 868 | G88: 4.2 | H88: 92 | I88: 66.7 | J88: 70 | K88: 0.06 | L88: 23513 | M88: 10622 | N88: 12319 | O88: 124 | R88: 3_30 | S88: 30 | T88: =IF(ISERROR(VLOOKUP($R88,'Curtailment Record'!$D$4:$I$3999,5,FALSE)),"",VLOOKUP($R88,'Curtailment Record'!$D$4:$I$3999,5,FALSE)) ->  | U88: =IF(ISERROR(VLOOKUP($R88,'Curtailment Record'!$D$4:$I$3999,6,FALSE)),"",VLOOKUP($R88,'Curtailment Record'!$D$4:$I$3999,6,FALSE)) -> 
A89: 84 | B89: 233 | C89: Ag2 | D89: 16 | E89: 3414 | F89: 439 | G89: 2.7 | H89: 92 | I89: 66.5 | J89: 67 | K89: 0.14 | L89: 23471 | M89: 12695 | N89: 11123 | O89: 419 | R89: 3_31 | S89: 31 | T89: =IF(ISERROR(VLOOKUP($R89,'Curtailment Record'!$D$4:$I$3999,5,FALSE)),"",VLOOKUP($R89,'Curtailment Record'!$D$4:$I$3999,5,FALSE)) ->  | U89: =IF(ISERROR(VLOOKUP($R89,'Curtailment Record'!$D$4:$I$3999,6,FALSE)),"",VLOOKUP($R89,'Curtailment Record'!$D$4:$I$3999,6,FALSE)) -> 
A90: 85 | B90: 234 | C90: Oct | D90: 1 | E90: 578 | F90: 578 | G90: 3.5 | H90: 97 | I90: 52.8 | J90: 17 | K90: 0.12 | L90: 17681 | M90: 5411 | N90: 11478 | O90: 136 | R90: 3_32 | S90: 32 | T90: =IF(ISERROR(VLOOKUP($R90,'Curtailment Record'!$D$4:$I$3999,5,FALSE)),"",VLOOKUP($R90,'Curtailment Record'!$D$4:$I$3999,5,FALSE)) ->  | U90: =IF(ISERROR(VLOOKUP($R90,'Curtailment Record'!$D$4:$I$3999,6,FALSE)),"",VLOOKUP($R90,'Curtailment Record'!$D$4:$I$3999,6,FALSE)) -> 
A91: 86 | B91: 234 | C91: Oct | D91: 16 | E91: 11079 | F91: 755 | G91: 3.5 | H91: 97 | I91: 56.4 | J91: 66 | K91: 0.11 | L91: 22528 | M91: 10660 | N91: 11525 | O91: 506 | R91: =CONCATENATE($R$56,"_",S91) -> 3_33 | S91: 33 | T91: =IF(ISERROR(VLOOKUP($R91,'Curtailment Record'!$D$4:$I$3999,5,FALSE)),"",VLOOKUP($R91,'Curtailment Record'!$D$4:$I$3999,5,FALSE)) ->  | U91: =IF(ISERROR(VLOOKUP($R91,'Curtailment Record'!$D$4:$I$3999,6,FALSE)),"",VLOOKUP($R91,'Curtailment Record'!$D$4:$I$3999,6,FALSE)) -> 
A92: 87 | B92: 234 | C92: Oct | D92: 16 | E92: 14288 | F92: 1005 | G92: 3.5 | H92: 97 | I92: 55.9 | J92: 55 | K92: 0.1 | L92: 23135 | M92: 10979 | N92: 11756 | O92: 363 | R92: 3_34 | S92: 34 | T92: =IF(ISERROR(VLOOKUP($R92,'Curtailment Record'!$D$4:$I$3999,5,FALSE)),"",VLOOKUP($R92,'Curtailment Record'!$D$4:$I$3999,5,FALSE)) ->  | U92: =IF(ISERROR(VLOOKUP($R92,'Curtailment Record'!$D$4:$I$3999,6,FALSE)),"",VLOOKUP($R92,'Curtailment Record'!$D$4:$I$3999,6,FALSE)) -> 
A93: 88 | B93: 234 | C93: Oct | D93: 16 | E93: 10099 | F93: 1027 | G93: 3.5 | H93: 97 | I93: 50.2 | J93: 22 | K93: 0.17 | L93: 23058 | M93: 11264 | N93: 10634 | O93: 1384 | R93: 3_35 | S93: 35 | T93: =IF(ISERROR(VLOOKUP($R93,'Curtailment Record'!$D$4:$I$3999,5,FALSE)),"",VLOOKUP($R93,'Curtailment Record'!$D$4:$I$3999,5,FALSE)) ->  | U93: =IF(ISERROR(VLOOKUP($R93,'Curtailment Record'!$D$4:$I$3999,6,FALSE)),"",VLOOKUP($R93,'Curtailment Record'!$D$4:$I$3999,6,FALSE)) -> 
A94: 89 | B94: 234 | C94: Oct | D94: 16 | E94: 10693 | F94: 769 | G94: 3.5 | H94: 97 | I94: 47 | J94: 3 | K94: 0.14 | L94: 22982 | M94: 12055 | N94: 11027 | O94: 87 | R94: 3_36 | S94: 36 | T94: =IF(ISERROR(VLOOKUP($R94,'Curtailment Record'!$D$4:$I$3999,5,FALSE)),"",VLOOKUP($R94,'Curtailment Record'!$D$4:$I$3999,5,FALSE)) ->  | U94: =IF(ISERROR(VLOOKUP($R94,'Curtailment Record'!$D$4:$I$3999,6,FALSE)),"",VLOOKUP($R94,'Curtailment Record'!$D$4:$I$3999,6,FALSE)) -> 
A95: 90 | B95: 234 | C95: Oct | D95: 5 | E95: 872 | F95: 352 | G95: 3.5 | H95: 97 | I95: 47 | J95: 8 | K95: 0.14 | L95: 21927 | M95: 11157 | N95: 11106 | O95: 207 | R95: 3_37 | S95: 37 | T95: =IF(ISERROR(VLOOKUP($R95,'Curtailment Record'!$D$4:$I$3999,5,FALSE)),"",VLOOKUP($R95,'Curtailment Record'!$D$4:$I$3999,5,FALSE)) ->  | U95: =IF(ISERROR(VLOOKUP($R95,'Curtailment Record'!$D$4:$I$3999,6,FALSE)),"",VLOOKUP($R95,'Curtailment Record'!$D$4:$I$3999,6,FALSE)) -> 
A96: 91 | B96: 234 | C96: Oct | D96: 4 | E96: 2185 | F96: 698 | G96: 3.5 | H96: 97 | I96: 46.3 | J96: 8 | K96: 0.09 | L96: 25112 | M96: 13147 | N96: 11947 | O96: 560 | R96: 3_38 | S96: 38 | T96: =IF(ISERROR(VLOOKUP($R96,'Curtailment Record'!$D$4:$I$3999,5,FALSE)),"",VLOOKUP($R96,'Curtailment Record'!$D$4:$I$3999,5,FALSE)) ->  | U96: =IF(ISERROR(VLOOKUP($R96,'Curtailment Record'!$D$4:$I$3999,6,FALSE)),"",VLOOKUP($R96,'Curtailment Record'!$D$4:$I$3999,6,FALSE)) -> 
A97: 92 | B97: 234 | C97: Oct | D97: 10 | E97: 10676 | F97: 1289 | G97: 3.5 | H97: 97 | I97: 41.7 | J97: 1 | K97: 0.09 | L97: 23560 | M97: 9789 | N97: 11905 | O97: 1567 | R97: 3_39 | S97: 39 | T97: =IF(ISERROR(VLOOKUP($R97,'Curtailment Record'!$D$4:$I$3999,5,FALSE)),"",VLOOKUP($R97,'Curtailment Record'!$D$4:$I$3999,5,FALSE)) ->  | U97: =IF(ISERROR(VLOOKUP($R97,'Curtailment Record'!$D$4:$I$3999,6,FALSE)),"",VLOOKUP($R97,'Curtailment Record'!$D$4:$I$3999,6,FALSE)) -> 
A98: 93 | B98: 234 | C98: Oct | D98: 12 | E98: 9528 | F98: 1116 | G98: 3.5 | H98: 97 | I98: 41.4 | J98: 1 | K98: 0.09 | L98: 23694 | M98: 11503 | N98: 11900 | O98: 341 | R98: 3_40 | S98: 40 | T98: =IF(ISERROR(VLOOKUP($R98,'Curtailment Record'!$D$4:$I$3999,5,FALSE)),"",VLOOKUP($R98,'Curtailment Record'!$D$4:$I$3999,5,FALSE)) ->  | U98: =IF(ISERROR(VLOOKUP($R98,'Curtailment Record'!$D$4:$I$3999,6,FALSE)),"",VLOOKUP($R98,'Curtailment Record'!$D$4:$I$3999,6,FALSE)) -> 
A99: 94 | B99: 234 | C99: Oct | D99: 15 | E99: 7992 | F99: 666 | G99: 3.5 | H99: 97 | I99: 48 | J99: 22 | K99: 0.04 | L99: 23383 | M99: 10970 | N99: 12678 | O99: 61 | R99: 3_41 | S99: 41 | T99: =IF(ISERROR(VLOOKUP($R99,'Curtailment Record'!$D$4:$I$3999,5,FALSE)),"",VLOOKUP($R99,'Curtailment Record'!$D$4:$I$3999,5,FALSE)) ->  | U99: =IF(ISERROR(VLOOKUP($R99,'Curtailment Record'!$D$4:$I$3999,6,FALSE)),"",VLOOKUP($R99,'Curtailment Record'!$D$4:$I$3999,6,FALSE)) -> 
A100: 95 | B100: 234 | C100: Oct | D100: 16 | E100: 17300 | F100: 1152 | G100: 3.5 | H100: 97 | I100: 49.8 | J100: 46 | K100: 0.06 | L100: 23857 | M100: 11161 | N100: 12413 | O100: 58 | R100: 3_42 | S100: 42 | T100: =IF(ISERROR(VLOOKUP($R100,'Curtailment Record'!$D$4:$I$3999,5,FALSE)),"",VLOOKUP($R100,'Curtailment Record'!$D$4:$I$3999,5,FALSE)) ->  | U100: =IF(ISERROR(VLOOKUP($R100,'Curtailment Record'!$D$4:$I$3999,6,FALSE)),"",VLOOKUP($R100,'Curtailment Record'!$D$4:$I$3999,6,FALSE)) -> 
A101: 96 | B101: 234 | C101: Oct | D101: 16 | E101: 9489 | F101: 616 | G101: 3.5 | H101: 97 | I101: 44 | J101: 30 | K101: 0.07 | L101: 24325 | M101: 11939 | N101: 12191 | O101: 458 | R101: 3_43 | S101: 43 | T101: =IF(ISERROR(VLOOKUP($R101,'Curtailment Record'!$D$4:$I$3999,5,FALSE)),"",VLOOKUP($R101,'Curtailment Record'!$D$4:$I$3999,5,FALSE)) ->  | U101: =IF(ISERROR(VLOOKUP($R101,'Curtailment Record'!$D$4:$I$3999,6,FALSE)),"",VLOOKUP($R101,'Curtailment Record'!$D$4:$I$3999,6,FALSE)) -> 
A102: 97 | B102: 235 | C102: Ag1 | D102: 8 | E102: 15596 | F102: 2216 | G102: 3.3 | H102: 89 | I102: 73.3 | J102: 91 | K102: 0.17 | L102: 27249 | M102: 15594 | N102: 10576 | O102: 97 | R102: 3_44 | S102: 44 | T102: =IF(ISERROR(VLOOKUP($R102,'Curtailment Record'!$D$4:$I$3999,5,FALSE)),"",VLOOKUP($R102,'Curtailment Record'!$D$4:$I$3999,5,FALSE)) ->  | U102: =IF(ISERROR(VLOOKUP($R102,'Curtailment Record'!$D$4:$I$3999,6,FALSE)),"",VLOOKUP($R102,'Curtailment Record'!$D$4:$I$3999,6,FALSE)) -> 
A103: 98 | B103: 235 | C103: Ag1 | D103: 16 | E103: 25724 | F103: 1936 | G103: 3.3 | H103: 89 | I103: 73.5 | J103: 92 | K103: 0.2 | L103: 25243 | M103: 14361 | N103: 10047 | O103: 223 | R103: 3_45 | S103: 45 | T103: =IF(ISERROR(VLOOKUP($R103,'Curtailment Record'!$D$4:$I$3999,5,FALSE)),"",VLOOKUP($R103,'Curtailment Record'!$D$4:$I$3999,5,FALSE)) ->  | U103: =IF(ISERROR(VLOOKUP($R103,'Curtailment Record'!$D$4:$I$3999,6,FALSE)),"",VLOOKUP($R103,'Curtailment Record'!$D$4:$I$3999,6,FALSE)) -> 
A104: 99 | B104: 240 | C104: Jan | D104: 15 | E104: 12918 | F104: 1132 | G104: 4.3 | H104: 75 | I104: 12.8 | J104: 0 | K104: 0.05 | L104: 36890 | M104: 19669 | N104: 14538 | O104: 25 | R104: 3_46 | S104: 46 | T104: =IF(ISERROR(VLOOKUP($R104,'Curtailment Record'!$D$4:$I$3999,5,FALSE)),"",VLOOKUP($R104,'Curtailment Record'!$D$4:$I$3999,5,FALSE)) ->  | U104: =IF(ISERROR(VLOOKUP($R104,'Curtailment Record'!$D$4:$I$3999,6,FALSE)),"",VLOOKUP($R104,'Curtailment Record'!$D$4:$I$3999,6,FALSE)) -> 
A105: 100 | B105: 240 | C105: Jan | D105: 16 | E105: 10859 | F105: 836 | G105: 4.3 | H105: 75 | I105: 11.8 | J105: 0 | K105: 0.07 | L105: 37134 | M105: 20108 | N105: 14240 | O105: 306 | R105: 3_47 | S105: 47 | T105: =IF(ISERROR(VLOOKUP($R105,'Curtailment Record'!$D$4:$I$3999,5,FALSE)),"",VLOOKUP($R105,'Curtailment Record'!$D$4:$I$3999,5,FALSE)) ->  | U105: =IF(ISERROR(VLOOKUP($R105,'Curtailment Record'!$D$4:$I$3999,6,FALSE)),"",VLOOKUP($R105,'Curtailment Record'!$D$4:$I$3999,6,FALSE)) -> 
A106: 101 | B106: 251 | C106: Sep | D106: 7 | E106: 3057 | F106: 472 | G106: 4.7 | H106: 77 | I106: 60 | J106: 20 | K106: 0.23 | L106: 21714 | M106: 12651 | N106: 9619 | O106: 28 | R106: 3_48 | S106: 48 | T106: =IF(ISERROR(VLOOKUP($R106,'Curtailment Record'!$D$4:$I$3999,5,FALSE)),"",VLOOKUP($R106,'Curtailment Record'!$D$4:$I$3999,5,FALSE)) ->  | U106: =IF(ISERROR(VLOOKUP($R106,'Curtailment Record'!$D$4:$I$3999,6,FALSE)),"",VLOOKUP($R106,'Curtailment Record'!$D$4:$I$3999,6,FALSE)) -> 
A107: 102 | B107: 251 | C107: Sep | D107: 2 | E107: 376 | F107: 214 | G107: 4.7 | H107: 77 | I107: 60 | J107: 20 | K107: 0.21 | L107: 23010 | M107: 13478 | N107: 9868 | O107: 26 | R107: 3_49 | S107: 49 | T107: =IF(ISERROR(VLOOKUP($R107,'Curtailment Record'!$D$4:$I$3999,5,FALSE)),"",VLOOKUP($R107,'Curtailment Record'!$D$4:$I$3999,5,FALSE)) ->  | U107: =IF(ISERROR(VLOOKUP($R107,'Curtailment Record'!$D$4:$I$3999,6,FALSE)),"",VLOOKUP($R107,'Curtailment Record'!$D$4:$I$3999,6,FALSE)) -> 
A108: 103 | B108: 253 | C108: Jan | D108: 14 | E108: 16305 | F108: 1481 | G108: 4.5 | H108: 67 | I108: 17.1 | J108: 3 | K108: 0.03 | L108: 34950 | M108: 16902 | N108: 14906 | O108: 14 | R108: 3_50 | S108: 50 | T108: =IF(ISERROR(VLOOKUP($R108,'Curtailment Record'!$D$4:$I$3999,5,FALSE)),"",VLOOKUP($R108,'Curtailment Record'!$D$4:$I$3999,5,FALSE)) ->  | U108: =IF(ISERROR(VLOOKUP($R108,'Curtailment Record'!$D$4:$I$3999,6,FALSE)),"",VLOOKUP($R108,'Curtailment Record'!$D$4:$I$3999,6,FALSE)) -> 
A109: 104 | B109: 253 | C109: Jan | D109: 14 | E109: 11009 | F109: 1522 | G109: 4.5 | H109: 67 | I109: 13.5 | J109: 0 | K109: 0.09 | L109: 33305 | M109: 16571 | N109: 13767 | O109: 361 | R109: 3_51 | S109: 51 | T109: =IF(ISERROR(VLOOKUP($R109,'Curtailment Record'!$D$4:$I$3999,5,FALSE)),"",VLOOKUP($R109,'Curtailment Record'!$D$4:$I$3999,5,FALSE)) ->  | U109: =IF(ISERROR(VLOOKUP($R109,'Curtailment Record'!$D$4:$I$3999,6,FALSE)),"",VLOOKUP($R109,'Curtailment Record'!$D$4:$I$3999,6,FALSE)) -> 
A110: 105 | B110: 253 | C110: Jan | D110: 18 | E110: 51325 | F110: 3200 | G110: 4.5 | H110: 67 | I110: 8.5 | J110: 0 | K110: 0.09 | L110: 36524 | M110: 17377 | N110: 13886 | O110: 419 | R110: 3_52 | S110: 52 | T110: =IF(ISERROR(VLOOKUP($R110,'Curtailment Record'!$D$4:$I$3999,5,FALSE)),"",VLOOKUP($R110,'Curtailment Record'!$D$4:$I$3999,5,FALSE)) ->  | U110: =IF(ISERROR(VLOOKUP($R110,'Curtailment Record'!$D$4:$I$3999,6,FALSE)),"",VLOOKUP($R110,'Curtailment Record'!$D$4:$I$3999,6,FALSE)) -> 
A111: 106 | B111: 253 | C111: Jan | D111: 16 | E111: 10268 | F111: 720 | G111: 4.5 | H111: 67 | I111: 13.4 | J111: 0 | K111: 0.07 | L111: 36186 | M111: 17032 | N111: 14191 | O111: 2519 | R111: 3_53 | S111: 53 | T111: =IF(ISERROR(VLOOKUP($R111,'Curtailment Record'!$D$4:$I$3999,5,FALSE)),"",VLOOKUP($R111,'Curtailment Record'!$D$4:$I$3999,5,FALSE)) ->  | U111: =IF(ISERROR(VLOOKUP($R111,'Curtailment Record'!$D$4:$I$3999,6,FALSE)),"",VLOOKUP($R111,'Curtailment Record'!$D$4:$I$3999,6,FALSE)) -> 
A112: 107 | B112: 253 | C112: Jan | D112: 9 | E112: 2980 | F112: 644 | G112: 4.5 | H112: 67 | I112: 11.8 | J112: 0 | K112: 0.09 | L112: 32809 | M112: 15233 | N112: 13761 | O112: 677 | R112: 3_54 | S112: 54 | T112: =IF(ISERROR(VLOOKUP($R112,'Curtailment Record'!$D$4:$I$3999,5,FALSE)),"",VLOOKUP($R112,'Curtailment Record'!$D$4:$I$3999,5,FALSE)) ->  | U112: =IF(ISERROR(VLOOKUP($R112,'Curtailment Record'!$D$4:$I$3999,6,FALSE)),"",VLOOKUP($R112,'Curtailment Record'!$D$4:$I$3999,6,FALSE)) -> 
A113: 108 | B113: 253 | C113: Jan | D113: 18 | E113: 7020 | F113: 409 | G113: 4.5 | H113: 67 | I113: 10.3 | J113: 0 | K113: 0.11 | L113: 33301 | M113: 15486 | N113: 13505 | O113: 419 | R113: 3_55 | S113: 55 | T113: =IF(ISERROR(VLOOKUP($R113,'Curtailment Record'!$D$4:$I$3999,5,FALSE)),"",VLOOKUP($R113,'Curtailment Record'!$D$4:$I$3999,5,FALSE)) ->  | U113: =IF(ISERROR(VLOOKUP($R113,'Curtailment Record'!$D$4:$I$3999,6,FALSE)),"",VLOOKUP($R113,'Curtailment Record'!$D$4:$I$3999,6,FALSE)) -> 
A114: 109 | B114: 253 | C114: Jan | D114: 18 | E114: 19715 | F114: 1679 | G114: 4.5 | H114: 67 | I114: 11.2 | J114: 1 | K114: 0.03 | L114: 35129 | M114: 16462 | N114: 14868 | O114: 713 | R114: 3_56 | S114: 56 | T114: =IF(ISERROR(VLOOKUP($R114,'Curtailment Record'!$D$4:$I$3999,5,FALSE)),"",VLOOKUP($R114,'Curtailment Record'!$D$4:$I$3999,5,FALSE)) ->  | U114: =IF(ISERROR(VLOOKUP($R114,'Curtailment Record'!$D$4:$I$3999,6,FALSE)),"",VLOOKUP($R114,'Curtailment Record'!$D$4:$I$3999,6,FALSE)) -> 
A115: 110 | B115: 253 | C115: Ag2 | D115: 5 | E115: 2821 | F115: 673 | G115: 3.4 | H115: 58 | I115: 67.4 | J115: 74 | K115: 0.13 | L115: 23221 | M115: 11860 | N115: 11225 | O115: 372 | R115: 3_57 | S115: 57 | T115: =IF(ISERROR(VLOOKUP($R115,'Curtailment Record'!$D$4:$I$3999,5,FALSE)),"",VLOOKUP($R115,'Curtailment Record'!$D$4:$I$3999,5,FALSE)) ->  | U115: =IF(ISERROR(VLOOKUP($R115,'Curtailment Record'!$D$4:$I$3999,6,FALSE)),"",VLOOKUP($R115,'Curtailment Record'!$D$4:$I$3999,6,FALSE)) -> 
A116: 111 | B116: 253 | C116: Ag2 | D116: 9 | E116: 2332 | F116: 292 | G116: 3.4 | H116: 58 | I116: 67.4 | J116: 79 | K116: 0.11 | L116: 23445 | M116: 12444 | N116: 11633 | O116: 92 | R116: 3_58 | S116: 58 | T116: =IF(ISERROR(VLOOKUP($R116,'Curtailment Record'!$D$4:$I$3999,5,FALSE)),"",VLOOKUP($R116,'Curtailment Record'!$D$4:$I$3999,5,FALSE)) ->  | U116: =IF(ISERROR(VLOOKUP($R116,'Curtailment Record'!$D$4:$I$3999,6,FALSE)),"",VLOOKUP($R116,'Curtailment Record'!$D$4:$I$3999,6,FALSE)) -> 
A117: 112 | B117: 276 | C117: Dec | D117: 12 | E117: 18652 | F117: 2231 | G117: 4.2 | H117: 75 | I117: 11.2 | J117: 0 | K117: 0.09 | L117: 37602 | M117: 19598 | N117: 13875 | O117: 336 | R117: 3_59 | S117: 59 | T117: =IF(ISERROR(VLOOKUP($R117,'Curtailment Record'!$D$4:$I$3999,5,FALSE)),"",VLOOKUP($R117,'Curtailment Record'!$D$4:$I$3999,5,FALSE)) ->  | U117: =IF(ISERROR(VLOOKUP($R117,'Curtailment Record'!$D$4:$I$3999,6,FALSE)),"",VLOOKUP($R117,'Curtailment Record'!$D$4:$I$3999,6,FALSE)) -> 
A118: 113 | B118: 289 | C118: Nov | D118: 16 | E118: 33868 | F118: 2742 | G118: 4.3 | H118: 75 | I118: 10.5 | J118: 0 | K118: 0.1 | L118: 38143 | M118: 20148 | N118: 13284 | O118: 552 | R118: 3_60 | S118: 60 | T118: =IF(ISERROR(VLOOKUP($R118,'Curtailment Record'!$D$4:$I$3999,5,FALSE)),"",VLOOKUP($R118,'Curtailment Record'!$D$4:$I$3999,5,FALSE)) ->  | U118: =IF(ISERROR(VLOOKUP($R118,'Curtailment Record'!$D$4:$I$3999,6,FALSE)),"",VLOOKUP($R118,'Curtailment Record'!$D$4:$I$3999,6,FALSE)) -> 
A119: 114 | B119: 294 | C119: Dec | D119: 7 | E119: 7844 | F119: 2179 | G119: 6 | H119: 28 | I119: 8.3 | J119: 0 | K119: 0.12 | L119: 39004 | M119: 22382 | N119: 13316 | O119: 1 | R119: 3_61 | S119: 61 | T119: =IF(ISERROR(VLOOKUP($R119,'Curtailment Record'!$D$4:$I$3999,5,FALSE)),"",VLOOKUP($R119,'Curtailment Record'!$D$4:$I$3999,5,FALSE)) ->  | U119: =IF(ISERROR(VLOOKUP($R119,'Curtailment Record'!$D$4:$I$3999,6,FALSE)),"",VLOOKUP($R119,'Curtailment Record'!$D$4:$I$3999,6,FALSE)) -> 
A120: 115 | B120: 294 | C120: Dec | D120: 10 | E120: 3947 | F120: 1095 | G120: 6 | H120: 28 | I120: 10.5 | J120: 1 | K120: 0.07 | L120: 38326 | M120: 21627 | N120: 14144 | O120: 67 | R120: 3_62 | S120: 62 | T120: =IF(ISERROR(VLOOKUP($R120,'Curtailment Record'!$D$4:$I$3999,5,FALSE)),"",VLOOKUP($R120,'Curtailment Record'!$D$4:$I$3999,5,FALSE)) ->  | U120: =IF(ISERROR(VLOOKUP($R120,'Curtailment Record'!$D$4:$I$3999,6,FALSE)),"",VLOOKUP($R120,'Curtailment Record'!$D$4:$I$3999,6,FALSE)) -> 
A121: 116 | B121: 297 | C121: Jul | D121: 16 | E121: 9695 | F121: 618 | G121: 10.5 | H121: 91 | I121: 80.8 | J121: 100 | K121: 0.16 | L121: 26289 | M121: 15671 | N121: 10757 | O121: 527 | R121: 3_63 | S121: 63 | T121: =IF(ISERROR(VLOOKUP($R121,'Curtailment Record'!$D$4:$I$3999,5,FALSE)),"",VLOOKUP($R121,'Curtailment Record'!$D$4:$I$3999,5,FALSE)) ->  | U121: =IF(ISERROR(VLOOKUP($R121,'Curtailment Record'!$D$4:$I$3999,6,FALSE)),"",VLOOKUP($R121,'Curtailment Record'!$D$4:$I$3999,6,FALSE)) -> 
A122: 117 | B122: 297 | C122: Jul | D122: 16 | E122: 18726 | F122: 1397 | G122: 10.5 | H122: 91 | I122: 80.1 | J122: 100 | K122: 0.17 | L122: 25893 | M122: 15181 | N122: 10576 | O122: 236 | R122: 3_64 | S122: 64 | T122: =IF(ISERROR(VLOOKUP($R122,'Curtailment Record'!$D$4:$I$3999,5,FALSE)),"",VLOOKUP($R122,'Curtailment Record'!$D$4:$I$3999,5,FALSE)) ->  | U122: =IF(ISERROR(VLOOKUP($R122,'Curtailment Record'!$D$4:$I$3999,6,FALSE)),"",VLOOKUP($R122,'Curtailment Record'!$D$4:$I$3999,6,FALSE)) -> 
A123: 118 | B123: 297 | C123: Jul | D123: 16 | E123: 15656 | F123: 1216 | G123: 10.5 | H123: 91 | I123: 81 | J123: 100 | K123: 0.15 | L123: 26396 | M123: 15429 | N123: 10916 | O123: 343 | R123: =CONCATENATE($R$56,"_",S123) -> 3_65 | S123: 65 | T123: =IF(ISERROR(VLOOKUP($R123,'Curtailment Record'!$D$4:$I$3999,5,FALSE)),"",VLOOKUP($R123,'Curtailment Record'!$D$4:$I$3999,5,FALSE)) ->  | U123: =IF(ISERROR(VLOOKUP($R123,'Curtailment Record'!$D$4:$I$3999,6,FALSE)),"",VLOOKUP($R123,'Curtailment Record'!$D$4:$I$3999,6,FALSE)) -> 
A124: 119 | B124: 297 | C124: Ag1 | D124: 16 | E124: 22386 | F124: 1511 | G124: 3.3 | H124: 92 | I124: 73.8 | J124: 92 | K124: 0.06 | L124: 26164 | M124: 13236 | N124: 12382 | O124: 144 | R124: 3_66 | S124: 66 | T124: =IF(ISERROR(VLOOKUP($R124,'Curtailment Record'!$D$4:$I$3999,5,FALSE)),"",VLOOKUP($R124,'Curtailment Record'!$D$4:$I$3999,5,FALSE)) ->  | U124: =IF(ISERROR(VLOOKUP($R124,'Curtailment Record'!$D$4:$I$3999,6,FALSE)),"",VLOOKUP($R124,'Curtailment Record'!$D$4:$I$3999,6,FALSE)) -> 
A125: 120 | B125: 297 | C125: Ag1 | D125: 7 | E125: 5164 | F125: 856 | G125: 3.3 | H125: 92 | I125: 71.3 | J125: 75 | K125: 0.12 | L125: 26693 | M125: 13791 | N125: 11322 | O125: 1849 | R125: 3_67 | S125: 67 | T125: =IF(ISERROR(VLOOKUP($R125,'Curtailment Record'!$D$4:$I$3999,5,FALSE)),"",VLOOKUP($R125,'Curtailment Record'!$D$4:$I$3999,5,FALSE)) ->  | U125: =IF(ISERROR(VLOOKUP($R125,'Curtailment Record'!$D$4:$I$3999,6,FALSE)),"",VLOOKUP($R125,'Curtailment Record'!$D$4:$I$3999,6,FALSE)) -> 
A126: 121 | B126: 297 | C126: Ag1 | D126: 15 | E126: 9953 | F126: 907 | G126: 3.3 | H126: 92 | I126: 72.3 | J126: 88 | K126: 0.13 | L126: 25494 | M126: 13167 | N126: 11244 | O126: 1419 | R126: 3_68 | S126: 68 | T126: =IF(ISERROR(VLOOKUP($R126,'Curtailment Record'!$D$4:$I$3999,5,FALSE)),"",VLOOKUP($R126,'Curtailment Record'!$D$4:$I$3999,5,FALSE)) ->  | U126: =IF(ISERROR(VLOOKUP($R126,'Curtailment Record'!$D$4:$I$3999,6,FALSE)),"",VLOOKUP($R126,'Curtailment Record'!$D$4:$I$3999,6,FALSE)) -> 
A127: 122 | B127: 297 | C127: Ag2 | D127: 3 | E127: 726 | F127: 347 | G127: 2.8 | H127: 89 | I127: 66.1 | J127: 70 | K127: 0.08 | L127: 25048 | M127: 13100 | N127: 12079 | O127: 330 | R127: 3_69 | S127: 69 | T127: =IF(ISERROR(VLOOKUP($R127,'Curtailment Record'!$D$4:$I$3999,5,FALSE)),"",VLOOKUP($R127,'Curtailment Record'!$D$4:$I$3999,5,FALSE)) ->  | U127: =IF(ISERROR(VLOOKUP($R127,'Curtailment Record'!$D$4:$I$3999,6,FALSE)),"",VLOOKUP($R127,'Curtailment Record'!$D$4:$I$3999,6,FALSE)) -> 
A128: 123 | B128: 297 | C128: Ag2 | D128: 2 | E128: 548 | F128: 492 | G128: 2.8 | H128: 89 | I128: 65.3 | J128: 58 | K128: 0.08 | L128: 21230 | M128: 7458 | N128: 12080 | O128: 1474 | R128: 3_70 | S128: 70 | T128: =IF(ISERROR(VLOOKUP($R128,'Curtailment Record'!$D$4:$I$3999,5,FALSE)),"",VLOOKUP($R128,'Curtailment Record'!$D$4:$I$3999,5,FALSE)) ->  | U128: =IF(ISERROR(VLOOKUP($R128,'Curtailment Record'!$D$4:$I$3999,6,FALSE)),"",VLOOKUP($R128,'Curtailment Record'!$D$4:$I$3999,6,FALSE)) -> 
A129: 124 | B129: 297 | C129: Ag2 | D129: 16 | E129: 3807 | F129: 389 | G129: 2.8 | H129: 89 | I129: 71 | J129: 93 | K129: 0.07 | L129: 23907 | M129: 12386 | N129: 12179 | O129: 83 | R129: 3_71 | S129: 71 | T129: =IF(ISERROR(VLOOKUP($R129,'Curtailment Record'!$D$4:$I$3999,5,FALSE)),"",VLOOKUP($R129,'Curtailment Record'!$D$4:$I$3999,5,FALSE)) ->  | U129: =IF(ISERROR(VLOOKUP($R129,'Curtailment Record'!$D$4:$I$3999,6,FALSE)),"",VLOOKUP($R129,'Curtailment Record'!$D$4:$I$3999,6,FALSE)) -> 
A130: 125 | B130: 297 | C130: Ag2 | D130: 6 | E130: 2581 | F130: 584 | G130: 2.8 | H130: 89 | I130: 67.5 | J130: 68 | K130: 0.14 | L130: 21918 | M130: 10104 | N130: 11030 | O130: 403 | R130: 3_72 | S130: 72 | T130: =IF(ISERROR(VLOOKUP($R130,'Curtailment Record'!$D$4:$I$3999,5,FALSE)),"",VLOOKUP($R130,'Curtailment Record'!$D$4:$I$3999,5,FALSE)) ->  | U130: =IF(ISERROR(VLOOKUP($R130,'Curtailment Record'!$D$4:$I$3999,6,FALSE)),"",VLOOKUP($R130,'Curtailment Record'!$D$4:$I$3999,6,FALSE)) -> 
A131: 126 | B131: 297 | C131: Ag2 | D131: 14 | E131: 11544 | F131: 958 | G131: 2.8 | H131: 89 | I131: 68.1 | J131: 84 | K131: 0.1 | L131: 24755 | M131: 12814 | N131: 11733 | O131: 334 | R131: 3_73 | S131: 73 | T131: =IF(ISERROR(VLOOKUP($R131,'Curtailment Record'!$D$4:$I$3999,5,FALSE)),"",VLOOKUP($R131,'Curtailment Record'!$D$4:$I$3999,5,FALSE)) ->  | U131: =IF(ISERROR(VLOOKUP($R131,'Curtailment Record'!$D$4:$I$3999,6,FALSE)),"",VLOOKUP($R131,'Curtailment Record'!$D$4:$I$3999,6,FALSE)) -> 
A132: 127 | B132: 299 | C132: Ag2 | D132: 6 | E132: 3990 | F132: 808 | G132: 2.6 | H132: 97 | I132: 70.7 | J132: 93 | K132: 0.09 | L132: 25626 | M132: 13979 | N132: 11836 | O132: 4 | R132: 3_74 | S132: 74 | T132: =IF(ISERROR(VLOOKUP($R132,'Curtailment Record'!$D$4:$I$3999,5,FALSE)),"",VLOOKUP($R132,'Curtailment Record'!$D$4:$I$3999,5,FALSE)) ->  | U132: =IF(ISERROR(VLOOKUP($R132,'Curtailment Record'!$D$4:$I$3999,6,FALSE)),"",VLOOKUP($R132,'Curtailment Record'!$D$4:$I$3999,6,FALSE)) -> 
A133: 128 | B133: 306 | C133: Ag2 | D133: 9 | E133: 3251 | F133: 458 | G133: 2.5 | H133: 100 | I133: 67.8 | J133: 76 | K133: 0.1 | L133: 25856 | M133: 14660 | N133: 11680 | O133: 68 | R133: 3_75 | S133: 75 | T133: =IF(ISERROR(VLOOKUP($R133,'Curtailment Record'!$D$4:$I$3999,5,FALSE)),"",VLOOKUP($R133,'Curtailment Record'!$D$4:$I$3999,5,FALSE)) ->  | U133: =IF(ISERROR(VLOOKUP($R133,'Curtailment Record'!$D$4:$I$3999,6,FALSE)),"",VLOOKUP($R133,'Curtailment Record'!$D$4:$I$3999,6,FALSE)) -> 
A134: 129 | B134: 314 | C134: Oct | D134: 13 | E134: 6153 | F134: 805 | G134: 3.5 | H134: 97 | I134: 40.2 | J134: 0 | K134: 0.05 | L134: 24168 | M134: 11847 | N134: 12605 | O134: 45 | R134: 3_76 | S134: 76 | T134: =IF(ISERROR(VLOOKUP($R134,'Curtailment Record'!$D$4:$I$3999,5,FALSE)),"",VLOOKUP($R134,'Curtailment Record'!$D$4:$I$3999,5,FALSE)) ->  | U134: =IF(ISERROR(VLOOKUP($R134,'Curtailment Record'!$D$4:$I$3999,6,FALSE)),"",VLOOKUP($R134,'Curtailment Record'!$D$4:$I$3999,6,FALSE)) -> 
A135: 130 | B135: 315 | C135: Jan | D135: 10 | E135: 8433 | F135: 1032 | G135: 4.9 | H135: 59 | I135: 10.6 | J135: 0 | K135: 0.07 | L135: 32596 | M135: 15419 | N135: 14174 | O135: 98 | R135: 3_77 | S135: 77 | T135: =IF(ISERROR(VLOOKUP($R135,'Curtailment Record'!$D$4:$I$3999,5,FALSE)),"",VLOOKUP($R135,'Curtailment Record'!$D$4:$I$3999,5,FALSE)) ->  | U135: =IF(ISERROR(VLOOKUP($R135,'Curtailment Record'!$D$4:$I$3999,6,FALSE)),"",VLOOKUP($R135,'Curtailment Record'!$D$4:$I$3999,6,FALSE)) -> 
A136: 131 | B136: 315 | C136: Jan | D136: 18 | E136: 30220 | F136: 1895 | G136: 4.9 | H136: 59 | I136: 7.1 | J136: 0 | K136: 0.04 | L136: 35573 | M136: 17025 | N136: 14802 | O136: 76 | R136: 3_78 | S136: 78 | T136: =IF(ISERROR(VLOOKUP($R136,'Curtailment Record'!$D$4:$I$3999,5,FALSE)),"",VLOOKUP($R136,'Curtailment Record'!$D$4:$I$3999,5,FALSE)) ->  | U136: =IF(ISERROR(VLOOKUP($R136,'Curtailment Record'!$D$4:$I$3999,6,FALSE)),"",VLOOKUP($R136,'Curtailment Record'!$D$4:$I$3999,6,FALSE)) -> 
A137: 132 | B137: 323 | C137: Jan | D137: 13 | E137: 32354 | F137: 2674 | G137: 3.1 | H137: 97 | I137: 9.9 | J137: 0 | K137: 0.04 | L137: 34978 | M137: 15633 | N137: 14799 | O137: 57 | R137: 3_79 | S137: 79 | T137: =IF(ISERROR(VLOOKUP($R137,'Curtailment Record'!$D$4:$I$3999,5,FALSE)),"",VLOOKUP($R137,'Curtailment Record'!$D$4:$I$3999,5,FALSE)) ->  | U137: =IF(ISERROR(VLOOKUP($R137,'Curtailment Record'!$D$4:$I$3999,6,FALSE)),"",VLOOKUP($R137,'Curtailment Record'!$D$4:$I$3999,6,FALSE)) -> 
A138: 133 | B138: 332 | C138: Ag1 | D138: 5 | E138: 4395 | F138: 1041 | G138: 3.6 | H138: 75 | I138: 76.7 | J138: 97 | K138: 0.09 | L138: 27042 | M138: 13900 | N138: 11915 | O138: 1452 | R138: 3_80 | S138: 80 | T138: =IF(ISERROR(VLOOKUP($R138,'Curtailment Record'!$D$4:$I$3999,5,FALSE)),"",VLOOKUP($R138,'Curtailment Record'!$D$4:$I$3999,5,FALSE)) ->  | U138: =IF(ISERROR(VLOOKUP($R138,'Curtailment Record'!$D$4:$I$3999,6,FALSE)),"",VLOOKUP($R138,'Curtailment Record'!$D$4:$I$3999,6,FALSE)) -> 
A139: 134 | B139: 333 | C139: Oct | D139: 2 | E139: 73 | F139: 37 | G139: 5.7 | H139: 24 | I139: 57.6 | J139: 93 | K139: 0.19 | L139: 23607 | M139: 14246 | N139: 10214 | O139: 132 | R139: 3_81 | S139: 81 | T139: =IF(ISERROR(VLOOKUP($R139,'Curtailment Record'!$D$4:$I$3999,5,FALSE)),"",VLOOKUP($R139,'Curtailment Record'!$D$4:$I$3999,5,FALSE)) ->  | U139: =IF(ISERROR(VLOOKUP($R139,'Curtailment Record'!$D$4:$I$3999,6,FALSE)),"",VLOOKUP($R139,'Curtailment Record'!$D$4:$I$3999,6,FALSE)) -> 
A140: 135 | B140: 341 | C140: Ag1 | D140: 16 | E140: 13958 | F140: 995 | G140: 4 | H140: 59 | I140: 76.4 | J140: 99 | K140: 0.14 | L140: 26528 | M140: 14841 | N140: 11122 | O140: 689 | R140: 3_82 | S140: 82 | T140: =IF(ISERROR(VLOOKUP($R140,'Curtailment Record'!$D$4:$I$3999,5,FALSE)),"",VLOOKUP($R140,'Curtailment Record'!$D$4:$I$3999,5,FALSE)) ->  | U140: =IF(ISERROR(VLOOKUP($R140,'Curtailment Record'!$D$4:$I$3999,6,FALSE)),"",VLOOKUP($R140,'Curtailment Record'!$D$4:$I$3999,6,FALSE)) -> 
A141: 136 | B141: 341 | C141: Ag1 | D141: 16 | E141: 12998 | F141: 1314 | G141: 4 | H141: 59 | I141: 76.6 | J141: 96 | K141: 0.12 | L141: 26151 | M141: 14771 | N141: 11389 | O141: 175 | R141: 3_83 | S141: 83 | T141: =IF(ISERROR(VLOOKUP($R141,'Curtailment Record'!$D$4:$I$3999,5,FALSE)),"",VLOOKUP($R141,'Curtailment Record'!$D$4:$I$3999,5,FALSE)) ->  | U141: =IF(ISERROR(VLOOKUP($R141,'Curtailment Record'!$D$4:$I$3999,6,FALSE)),"",VLOOKUP($R141,'Curtailment Record'!$D$4:$I$3999,6,FALSE)) -> 
A142: 137 | B142: 341 | C142: Sep | D142: 11 | E142: 6638 | F142: 752 | G142: 4.8 | H142: 72 | I142: 53.2 | J142: 20 | K142: 0.16 | L142: 22740 | M142: 12090 | N142: 10833 | O142: 51 | R142: 3_84 | S142: 84 | T142: =IF(ISERROR(VLOOKUP($R142,'Curtailment Record'!$D$4:$I$3999,5,FALSE)),"",VLOOKUP($R142,'Curtailment Record'!$D$4:$I$3999,5,FALSE)) ->  | U142: =IF(ISERROR(VLOOKUP($R142,'Curtailment Record'!$D$4:$I$3999,6,FALSE)),"",VLOOKUP($R142,'Curtailment Record'!$D$4:$I$3999,6,FALSE)) -> 
A143: 138 | B143: 341 | C143: Sep | D143: 16 | E143: 15876 | F143: 1205 | G143: 4.8 | H143: 72 | I143: 49.6 | J143: 5 | K143: 0.16 | L143: 22804 | M143: 11850 | N143: 10830 | O143: 69 | R143: 3_85 | S143: 85 | T143: =IF(ISERROR(VLOOKUP($R143,'Curtailment Record'!$D$4:$I$3999,5,FALSE)),"",VLOOKUP($R143,'Curtailment Record'!$D$4:$I$3999,5,FALSE)) ->  | U143: =IF(ISERROR(VLOOKUP($R143,'Curtailment Record'!$D$4:$I$3999,6,FALSE)),"",VLOOKUP($R143,'Curtailment Record'!$D$4:$I$3999,6,FALSE)) -> 
A144: 139 | B144: 345 | C144: Dec | D144: 1 | E144: 0 | F144: 0 | G144: 3.4 | H144: 94 | I144: 7.8 | J144: 0 | K144: 0.07 | L144: 46257 | M144: 30408 | N144: 14206 | O144: 40 | R144: 3_86 | S144: 86 | T144: =IF(ISERROR(VLOOKUP($R144,'Curtailment Record'!$D$4:$I$3999,5,FALSE)),"",VLOOKUP($R144,'Curtailment Record'!$D$4:$I$3999,5,FALSE)) ->  | U144: =IF(ISERROR(VLOOKUP($R144,'Curtailment Record'!$D$4:$I$3999,6,FALSE)),"",VLOOKUP($R144,'Curtailment Record'!$D$4:$I$3999,6,FALSE)) -> 
A145: 140 | B145: 369 | C145: Sep | D145: 3 | E145: 183 | F145: 171 | G145: 4.6 | H145: 84 | I145: 58.8 | J145: 41 | K145: 0.12 | L145: 23367 | M145: 10804 | N145: 11466 | O145: 1850 | R145: 3_87 | S145: 87 | T145: =IF(ISERROR(VLOOKUP($R145,'Curtailment Record'!$D$4:$I$3999,5,FALSE)),"",VLOOKUP($R145,'Curtailment Record'!$D$4:$I$3999,5,FALSE)) ->  | U145: =IF(ISERROR(VLOOKUP($R145,'Curtailment Record'!$D$4:$I$3999,6,FALSE)),"",VLOOKUP($R145,'Curtailment Record'!$D$4:$I$3999,6,FALSE)) -> 
A146: 141 | B146: 369 | C146: Sep | D146: 11 | E146: 10504 | F146: 1125 | G146: 4.6 | H146: 84 | I146: 68.9 | J146: 100 | K146: 0.13 | L146: 22811 | M146: 11214 | N146: 11326 | O146: 153 | R146: 3_88 | S146: 88 | T146: =IF(ISERROR(VLOOKUP($R146,'Curtailment Record'!$D$4:$I$3999,5,FALSE)),"",VLOOKUP($R146,'Curtailment Record'!$D$4:$I$3999,5,FALSE)) ->  | U146: =IF(ISERROR(VLOOKUP($R146,'Curtailment Record'!$D$4:$I$3999,6,FALSE)),"",VLOOKUP($R146,'Curtailment Record'!$D$4:$I$3999,6,FALSE)) -> 
A147: 142 | B147: 371 | C147: Dec | D147: 17 | E147: 37859 | F147: 2318 | G147: 3.5 | H147: 90 | I147: 8.3 | J147: 0 | K147: 0.07 | L147: 38265 | M147: 19501 | N147: 14073 | O147: 357 | R147: 3_89 | S147: 89 | T147: =IF(ISERROR(VLOOKUP($R147,'Curtailment Record'!$D$4:$I$3999,5,FALSE)),"",VLOOKUP($R147,'Curtailment Record'!$D$4:$I$3999,5,FALSE)) ->  | U147: =IF(ISERROR(VLOOKUP($R147,'Curtailment Record'!$D$4:$I$3999,6,FALSE)),"",VLOOKUP($R147,'Curtailment Record'!$D$4:$I$3999,6,FALSE)) -> 
A148: 143 | B148: 371 | C148: Dec | D148: 18 | E148: 52082 | F148: 3005 | G148: 3.5 | H148: 90 | I148: 10.5 | J148: 1 | K148: 0.08 | L148: 37621 | M148: 18467 | N148: 14027 | O148: 40 | R148: 3_90 | S148: 90 | T148: =IF(ISERROR(VLOOKUP($R148,'Curtailment Record'!$D$4:$I$3999,5,FALSE)),"",VLOOKUP($R148,'Curtailment Record'!$D$4:$I$3999,5,FALSE)) ->  | U148: =IF(ISERROR(VLOOKUP($R148,'Curtailment Record'!$D$4:$I$3999,6,FALSE)),"",VLOOKUP($R148,'Curtailment Record'!$D$4:$I$3999,6,FALSE)) -> 
A149: 144 | B149: 371 | C149: Dec | D149: 13 | E149: 1264 | F149: 224 | G149: 3.5 | H149: 90 | I149: 14 | J149: 1 | K149: 0.08 | L149: 35757 | M149: 19422 | N149: 13895 | O149: 270 | R149: 3_91 | S149: 91 | T149: =IF(ISERROR(VLOOKUP($R149,'Curtailment Record'!$D$4:$I$3999,5,FALSE)),"",VLOOKUP($R149,'Curtailment Record'!$D$4:$I$3999,5,FALSE)) ->  | U149: =IF(ISERROR(VLOOKUP($R149,'Curtailment Record'!$D$4:$I$3999,6,FALSE)),"",VLOOKUP($R149,'Curtailment Record'!$D$4:$I$3999,6,FALSE)) -> 
A150: 145 | B150: 377 | C150: Ag1 | D150: 3 | E150: 1767 | F150: 864 | G150: 3.3 | H150: 92 | I150: 73 | J150: 91 | K150: 0.04 | L150: 25763 | M150: 11171 | N150: 12777 | O150: 2162 | R150: 3_92 | S150: 92 | T150: =IF(ISERROR(VLOOKUP($R150,'Curtailment Record'!$D$4:$I$3999,5,FALSE)),"",VLOOKUP($R150,'Curtailment Record'!$D$4:$I$3999,5,FALSE)) ->  | U150: =IF(ISERROR(VLOOKUP($R150,'Curtailment Record'!$D$4:$I$3999,6,FALSE)),"",VLOOKUP($R150,'Curtailment Record'!$D$4:$I$3999,6,FALSE)) -> 
A151: 146 | B151: 377 | C151: Ag1 | D151: 16 | E151: 9341 | F151: 935 | G151: 3.3 | H151: 92 | I151: 74.5 | J151: 95 | K151: 0.08 | L151: 25960 | M151: 13217 | N151: 12127 | O151: 1029 | R151: 3_93 | S151: 93 | T151: =IF(ISERROR(VLOOKUP($R151,'Curtailment Record'!$D$4:$I$3999,5,FALSE)),"",VLOOKUP($R151,'Curtailment Record'!$D$4:$I$3999,5,FALSE)) ->  | U151: =IF(ISERROR(VLOOKUP($R151,'Curtailment Record'!$D$4:$I$3999,6,FALSE)),"",VLOOKUP($R151,'Curtailment Record'!$D$4:$I$3999,6,FALSE)) -> 
A152: 147 | B152: 377 | C152: Ag1 | D152: 5 | E152: 4733 | F152: 1084 | G152: 3.3 | H152: 92 | I152: 72 | J152: 82 | K152: 0.04 | L152: 25948 | M152: 12966 | N152: 12702 | O152: 438 | R152: 3_94 | S152: 94 | T152: =IF(ISERROR(VLOOKUP($R152,'Curtailment Record'!$D$4:$I$3999,5,FALSE)),"",VLOOKUP($R152,'Curtailment Record'!$D$4:$I$3999,5,FALSE)) ->  | U152: =IF(ISERROR(VLOOKUP($R152,'Curtailment Record'!$D$4:$I$3999,6,FALSE)),"",VLOOKUP($R152,'Curtailment Record'!$D$4:$I$3999,6,FALSE)) -> 
A153: 148 | B153: 377 | C153: Ag1 | D153: 15 | E153: 6024 | F153: 404 | G153: 3.3 | H153: 92 | I153: 73.7 | J153: 86 | K153: 0.02 | L153: 26013 | M153: 13585 | N153: 13020 | O153: 6 | R153: 3_95 | S153: 95 | T153: =IF(ISERROR(VLOOKUP($R153,'Curtailment Record'!$D$4:$I$3999,5,FALSE)),"",VLOOKUP($R153,'Curtailment Record'!$D$4:$I$3999,5,FALSE)) ->  | U153: =IF(ISERROR(VLOOKUP($R153,'Curtailment Record'!$D$4:$I$3999,6,FALSE)),"",VLOOKUP($R153,'Curtailment Record'!$D$4:$I$3999,6,FALSE)) -> 
A154: 149 | B154: 377 | C154: Ag1 | D154: 15 | E154: 10974 | F154: 874 | G154: 3.3 | H154: 92 | I154: 73.5 | J154: 91 | K154: 0.02 | L154: 25565 | M154: 12496 | N154: 13006 | O154: 331 | R154: 3_96 | S154: 96 | T154: =IF(ISERROR(VLOOKUP($R154,'Curtailment Record'!$D$4:$I$3999,5,FALSE)),"",VLOOKUP($R154,'Curtailment Record'!$D$4:$I$3999,5,FALSE)) ->  | U154: =IF(ISERROR(VLOOKUP($R154,'Curtailment Record'!$D$4:$I$3999,6,FALSE)),"",VLOOKUP($R154,'Curtailment Record'!$D$4:$I$3999,6,FALSE)) -> 
A155: 150 | B155: 377 | C155: Ag2 | D155: 15 | E155: 13875 | F155: 1209 | G155: 2.8 | H155: 89 | I155: 68.6 | J155: 74 | K155: 0.1 | L155: 25094 | M155: 12989 | N155: 11816 | O155: 344 | R155: =CONCATENATE($R$56,"_",S155) -> 3_97 | S155: 97 | T155: =IF(ISERROR(VLOOKUP($R155,'Curtailment Record'!$D$4:$I$3999,5,FALSE)),"",VLOOKUP($R155,'Curtailment Record'!$D$4:$I$3999,5,FALSE)) ->  | U155: =IF(ISERROR(VLOOKUP($R155,'Curtailment Record'!$D$4:$I$3999,6,FALSE)),"",VLOOKUP($R155,'Curtailment Record'!$D$4:$I$3999,6,FALSE)) -> 
A156: 151 | B156: 377 | C156: Ag2 | D156: 13 | E156: 2696 | F156: 287 | G156: 2.8 | H156: 89 | I156: 66.1 | J156: 53 | K156: 0.07 | L156: 23817 | M156: 12392 | N156: 12216 | O156: 11 | R156: 3_98 | S156: 98 | T156: =IF(ISERROR(VLOOKUP($R156,'Curtailment Record'!$D$4:$I$3999,5,FALSE)),"",VLOOKUP($R156,'Curtailment Record'!$D$4:$I$3999,5,FALSE)) ->  | U156: =IF(ISERROR(VLOOKUP($R156,'Curtailment Record'!$D$4:$I$3999,6,FALSE)),"",VLOOKUP($R156,'Curtailment Record'!$D$4:$I$3999,6,FALSE)) -> 
A157: 152 | B157: 377 | C157: Ag2 | D157: 7 | E157: 123 | F157: 24 | G157: 2.8 | H157: 89 | I157: 66.7 | J157: 72 | K157: 0.04 | L157: 24884 | M157: 12080 | N157: 12686 | O157: 1073 | R157: 3_99 | S157: 99 | T157: =IF(ISERROR(VLOOKUP($R157,'Curtailment Record'!$D$4:$I$3999,5,FALSE)),"",VLOOKUP($R157,'Curtailment Record'!$D$4:$I$3999,5,FALSE)) ->  | U157: =IF(ISERROR(VLOOKUP($R157,'Curtailment Record'!$D$4:$I$3999,6,FALSE)),"",VLOOKUP($R157,'Curtailment Record'!$D$4:$I$3999,6,FALSE)) -> 
A158: 153 | B158: 384 | C158: Ag1 | D158: 16 | E158: 20870 | F158: 1714 | G158: 3.2 | H158: 94 | I158: 74.7 | J158: 92 | K158: 0.12 | L158: 25779 | M158: 13940 | N158: 11408 | O158: 124 | R158: 3_100 | S158: 100 | T158: =IF(ISERROR(VLOOKUP($R158,'Curtailment Record'!$D$4:$I$3999,5,FALSE)),"",VLOOKUP($R158,'Curtailment Record'!$D$4:$I$3999,5,FALSE)) ->  | U158: =IF(ISERROR(VLOOKUP($R158,'Curtailment Record'!$D$4:$I$3999,6,FALSE)),"",VLOOKUP($R158,'Curtailment Record'!$D$4:$I$3999,6,FALSE)) -> 
A159: 154 | B159: 384 | C159: Ag2 | D159: 11 | E159: 7278 | F159: 691 | G159: 2.6 | H159: 96 | I159: 69.6 | J159: 91 | K159: 0.07 | L159: 24640 | M159: 12366 | N159: 12166 | O159: 334 | R159: 3_101 | S159: 101 | T159: =IF(ISERROR(VLOOKUP($R159,'Curtailment Record'!$D$4:$I$3999,5,FALSE)),"",VLOOKUP($R159,'Curtailment Record'!$D$4:$I$3999,5,FALSE)) ->  | U159: =IF(ISERROR(VLOOKUP($R159,'Curtailment Record'!$D$4:$I$3999,6,FALSE)),"",VLOOKUP($R159,'Curtailment Record'!$D$4:$I$3999,6,FALSE)) -> 
A160: 155 | B160: 399 | C160: Ag2 | D160: 3 | E160: 755 | F160: 256 | G160: 2.6 | H160: 99 | I160: 73.8 | J160: 95 | K160: 0.09 | L160: 25749 | M160: 14191 | N160: 11916 | O160: 238 | R160: 3_102 | S160: 102 | T160: =IF(ISERROR(VLOOKUP($R160,'Curtailment Record'!$D$4:$I$3999,5,FALSE)),"",VLOOKUP($R160,'Curtailment Record'!$D$4:$I$3999,5,FALSE)) ->  | U160: =IF(ISERROR(VLOOKUP($R160,'Curtailment Record'!$D$4:$I$3999,6,FALSE)),"",VLOOKUP($R160,'Curtailment Record'!$D$4:$I$3999,6,FALSE)) -> 
A161: 156 | B161: 406 | C161: Sep | D161: 5 | E161: 3441 | F161: 806 | G161: 4.7 | H161: 82 | I161: 67 | J161: 80 | K161: 0.12 | L161: 24275 | M161: 13224 | N161: 11342 | O161: 125 | R161: 3_103 | S161: 103 | T161: =IF(ISERROR(VLOOKUP($R161,'Curtailment Record'!$D$4:$I$3999,5,FALSE)),"",VLOOKUP($R161,'Curtailment Record'!$D$4:$I$3999,5,FALSE)) ->  | U161: =IF(ISERROR(VLOOKUP($R161,'Curtailment Record'!$D$4:$I$3999,6,FALSE)),"",VLOOKUP($R161,'Curtailment Record'!$D$4:$I$3999,6,FALSE)) -> 
A162: 157 | B162: 409 | C162: Jan | D162: 16 | E162: 18412 | F162: 1645 | G162: 2.3 | H162: 100 | I162: 14.3 | J162: 1 | K162: 0.05 | L162: 33028 | M162: 15362 | N162: 14618 | O162: 95 | R162: 3_104 | S162: 104 | T162: =IF(ISERROR(VLOOKUP($R162,'Curtailment Record'!$D$4:$I$3999,5,FALSE)),"",VLOOKUP($R162,'Curtailment Record'!$D$4:$I$3999,5,FALSE)) ->  | U162: =IF(ISERROR(VLOOKUP($R162,'Curtailment Record'!$D$4:$I$3999,6,FALSE)),"",VLOOKUP($R162,'Curtailment Record'!$D$4:$I$3999,6,FALSE)) -> 
A163: 158 | B163: 416 | C163: Jan | D163: 16 | E163: 44695 | F163: 3408 | G163: 3.4 | H163: 95 | I163: 14.7 | J163: 0 | K163: 0.09 | L163: 36026 | M163: 17350 | N163: 13739 | O163: 241 | R163: 3_105 | S163: 105 | T163: =IF(ISERROR(VLOOKUP($R163,'Curtailment Record'!$D$4:$I$3999,5,FALSE)),"",VLOOKUP($R163,'Curtailment Record'!$D$4:$I$3999,5,FALSE)) ->  | U163: =IF(ISERROR(VLOOKUP($R163,'Curtailment Record'!$D$4:$I$3999,6,FALSE)),"",VLOOKUP($R163,'Curtailment Record'!$D$4:$I$3999,6,FALSE)) -> 
A164: 159 | B164: 422 | C164: Dec | D164: 17 | E164: 50113 | F164: 3816 | G164: 5.7 | H164: 37 | I164: 7.8 | J164: 0 | K164: 0.07 | L164: 39929 | M164: 20043 | N164: 14130 | O164: 700 | R164: 3_106 | S164: 106 | T164: =IF(ISERROR(VLOOKUP($R164,'Curtailment Record'!$D$4:$I$3999,5,FALSE)),"",VLOOKUP($R164,'Curtailment Record'!$D$4:$I$3999,5,FALSE)) ->  | U164: =IF(ISERROR(VLOOKUP($R164,'Curtailment Record'!$D$4:$I$3999,6,FALSE)),"",VLOOKUP($R164,'Curtailment Record'!$D$4:$I$3999,6,FALSE)) -> 
A165: 160 | B165: 422 | C165: Dec | D165: 16 | E165: 15184 | F165: 1297 | G165: 5.7 | H165: 37 | I165: 15.4 | J165: 0 | K165: 0.03 | L165: 36411 | M165: 18342 | N165: 14979 | O165: 27 | R165: 3_107 | S165: 107 | T165: =IF(ISERROR(VLOOKUP($R165,'Curtailment Record'!$D$4:$I$3999,5,FALSE)),"",VLOOKUP($R165,'Curtailment Record'!$D$4:$I$3999,5,FALSE)) ->  | U165: =IF(ISERROR(VLOOKUP($R165,'Curtailment Record'!$D$4:$I$3999,6,FALSE)),"",VLOOKUP($R165,'Curtailment Record'!$D$4:$I$3999,6,FALSE)) -> 
A166: 161 | B166: 430 | C166: Dec | D166: 6 | E166: 7442 | F166: 1599 | G166: 4.7 | H166: 63 | I166: 11.2 | J166: 0 | K166: 0.06 | L166: 38933 | M166: 21017 | N166: 14351 | O166: 133 | R166: 3_108 | S166: 108 | T166: =IF(ISERROR(VLOOKUP($R166,'Curtailment Record'!$D$4:$I$3999,5,FALSE)),"",VLOOKUP($R166,'Curtailment Record'!$D$4:$I$3999,5,FALSE)) ->  | U166: =IF(ISERROR(VLOOKUP($R166,'Curtailment Record'!$D$4:$I$3999,6,FALSE)),"",VLOOKUP($R166,'Curtailment Record'!$D$4:$I$3999,6,FALSE)) -> 
A167: 162 | B167: 430 | C167: Dec | D167: 6 | E167: 3645 | F167: 813 | G167: 4.7 | H167: 63 | I167: 15.7 | J167: 0 | K167: 0.08 | L167: 37244 | M167: 20234 | N167: 13985 | O167: 550 | R167: 3_109 | S167: 109 | T167: =IF(ISERROR(VLOOKUP($R167,'Curtailment Record'!$D$4:$I$3999,5,FALSE)),"",VLOOKUP($R167,'Curtailment Record'!$D$4:$I$3999,5,FALSE)) ->  | U167: =IF(ISERROR(VLOOKUP($R167,'Curtailment Record'!$D$4:$I$3999,6,FALSE)),"",VLOOKUP($R167,'Curtailment Record'!$D$4:$I$3999,6,FALSE)) -> 
A168: 163 | B168: 430 | C168: Dec | D168: 10 | E168: 4716 | F168: 609 | G168: 4.7 | H168: 63 | I168: 15.2 | J168: 0 | K168: 0.05 | L168: 36051 | M168: 18780 | N168: 14479 | O168: 227 | R168: 3_110 | S168: 110 | T168: =IF(ISERROR(VLOOKUP($R168,'Curtailment Record'!$D$4:$I$3999,5,FALSE)),"",VLOOKUP($R168,'Curtailment Record'!$D$4:$I$3999,5,FALSE)) ->  | U168: =IF(ISERROR(VLOOKUP($R168,'Curtailment Record'!$D$4:$I$3999,6,FALSE)),"",VLOOKUP($R168,'Curtailment Record'!$D$4:$I$3999,6,FALSE)) -> 
A169: 164 | B169: 441 | C169: Dec | D169: 1 | E169: 0 | F169: 0 | G169: 6 | H169: 29 | I169: 7.5 | J169: 0 | K169: 0.12 | L169: 44589 | M169: 29748 | N169: 13205 | O169: 33 | R169: 3_111 | S169: 111 | T169: =IF(ISERROR(VLOOKUP($R169,'Curtailment Record'!$D$4:$I$3999,5,FALSE)),"",VLOOKUP($R169,'Curtailment Record'!$D$4:$I$3999,5,FALSE)) ->  | U169: =IF(ISERROR(VLOOKUP($R169,'Curtailment Record'!$D$4:$I$3999,6,FALSE)),"",VLOOKUP($R169,'Curtailment Record'!$D$4:$I$3999,6,FALSE)) -> 
A170: 165 | B170: 443 | C170: Nov | D170: 17 | E170: 29064 | F170: 2313 | G170: 4.7 | H170: 65 | I170: 10.5 | J170: 0 | K170: 0.09 | L170: 38058 | M170: 20190 | N170: 13517 | O170: 602 | R170: 3_112 | S170: 112 | T170: =IF(ISERROR(VLOOKUP($R170,'Curtailment Record'!$D$4:$I$3999,5,FALSE)),"",VLOOKUP($R170,'Curtailment Record'!$D$4:$I$3999,5,FALSE)) ->  | U170: =IF(ISERROR(VLOOKUP($R170,'Curtailment Record'!$D$4:$I$3999,6,FALSE)),"",VLOOKUP($R170,'Curtailment Record'!$D$4:$I$3999,6,FALSE)) -> 
A171: 166 | B171: 443 | C171: Nov | D171: 11 | E171: 1804 | F171: 168 | G171: 4.7 | H171: 65 | I171: 13.5 | J171: 0 | K171: 0.09 | L171: 36817 | M171: 17449 | N171: 13586 | O171: 3585 | R171: 3_113 | S171: 113 | T171: =IF(ISERROR(VLOOKUP($R171,'Curtailment Record'!$D$4:$I$3999,5,FALSE)),"",VLOOKUP($R171,'Curtailment Record'!$D$4:$I$3999,5,FALSE)) ->  | U171: =IF(ISERROR(VLOOKUP($R171,'Curtailment Record'!$D$4:$I$3999,6,FALSE)),"",VLOOKUP($R171,'Curtailment Record'!$D$4:$I$3999,6,FALSE)) -> 
A172: 167 | B172: 449 | C172: Ag2 | D172: 17 | E172: 2322 | F172: 330 | G172: 3.3 | H172: 63 | I172: 69.2 | J172: 86 | K172: 0.06 | L172: 23872 | M172: 11974 | N172: 12331 | O172: 347 | R172: 3_114 | S172: 114 | T172: =IF(ISERROR(VLOOKUP($R172,'Curtailment Record'!$D$4:$I$3999,5,FALSE)),"",VLOOKUP($R172,'Curtailment Record'!$D$4:$I$3999,5,FALSE)) ->  | U172: =IF(ISERROR(VLOOKUP($R172,'Curtailment Record'!$D$4:$I$3999,6,FALSE)),"",VLOOKUP($R172,'Curtailment Record'!$D$4:$I$3999,6,FALSE)) -> 
A173: 168 | B173: 449 | C173: Ag2 | D173: 13 | E173: 385 | F173: 63 | G173: 3.3 | H173: 63 | I173: 68.4 | J173: 80 | K173: 0.07 | L173: 24655 | M173: 12917 | N173: 12221 | O173: 406 | R173: 3_115 | S173: 115 | T173: =IF(ISERROR(VLOOKUP($R173,'Curtailment Record'!$D$4:$I$3999,5,FALSE)),"",VLOOKUP($R173,'Curtailment Record'!$D$4:$I$3999,5,FALSE)) ->  | U173: =IF(ISERROR(VLOOKUP($R173,'Curtailment Record'!$D$4:$I$3999,6,FALSE)),"",VLOOKUP($R173,'Curtailment Record'!$D$4:$I$3999,6,FALSE)) -> 
A174: 169 | B174: 457 | C174: Ag1 | D174: 2 | E174: 880 | F174: 698 | G174: 3.3 | H174: 92 | I174: 72.1 | J174: 86 | K174: 0.03 | L174: 25500 | M174: 10903 | N174: 12962 | O174: 1921 | R174: 3_116 | S174: 116 | T174: =IF(ISERROR(VLOOKUP($R174,'Curtailment Record'!$D$4:$I$3999,5,FALSE)),"",VLOOKUP($R174,'Curtailment Record'!$D$4:$I$3999,5,FALSE)) ->  | U174: =IF(ISERROR(VLOOKUP($R174,'Curtailment Record'!$D$4:$I$3999,6,FALSE)),"",VLOOKUP($R174,'Curtailment Record'!$D$4:$I$3999,6,FALSE)) -> 
A175: 170 | B175: 457 | C175: Ag1 | D175: 16 | E175: 9624 | F175: 749 | G175: 3.3 | H175: 92 | I175: 71.4 | J175: 82 | K175: 0.01 | L175: 25271 | M175: 12120 | N175: 13194 | O175: 294 | R175: 3_117 | S175: 117 | T175: =IF(ISERROR(VLOOKUP($R175,'Curtailment Record'!$D$4:$I$3999,5,FALSE)),"",VLOOKUP($R175,'Curtailment Record'!$D$4:$I$3999,5,FALSE)) ->  | U175: =IF(ISERROR(VLOOKUP($R175,'Curtailment Record'!$D$4:$I$3999,6,FALSE)),"",VLOOKUP($R175,'Curtailment Record'!$D$4:$I$3999,6,FALSE)) -> 
A176: 171 | B176: 464 | C176: Ag2 | D176: 2 | E176: 1059 | F176: 879 | G176: 2.6 | H176: 96 | I176: 69.8 | J176: 79 | K176: 0.16 | L176: 25216 | M176: 12472 | N176: 10819 | O176: 1984 | R176: 3_118 | S176: 118 | T176: =IF(ISERROR(VLOOKUP($R176,'Curtailment Record'!$D$4:$I$3999,5,FALSE)),"",VLOOKUP($R176,'Curtailment Record'!$D$4:$I$3999,5,FALSE)) ->  | U176: =IF(ISERROR(VLOOKUP($R176,'Curtailment Record'!$D$4:$I$3999,6,FALSE)),"",VLOOKUP($R176,'Curtailment Record'!$D$4:$I$3999,6,FALSE)) -> 
A177: 172 | B177: 474 | C177: Oct | D177: 1 | E177: 224 | F177: 224 | G177: 3.5 | H177: 97 | I177: 54.1 | J177: 29 | K177: 0.13 | L177: 21079 | M177: 9942 | N177: 11269 | O177: 59 | R177: 3_119 | S177: 119 | T177: =IF(ISERROR(VLOOKUP($R177,'Curtailment Record'!$D$4:$I$3999,5,FALSE)),"",VLOOKUP($R177,'Curtailment Record'!$D$4:$I$3999,5,FALSE)) ->  | U177: =IF(ISERROR(VLOOKUP($R177,'Curtailment Record'!$D$4:$I$3999,6,FALSE)),"",VLOOKUP($R177,'Curtailment Record'!$D$4:$I$3999,6,FALSE)) -> 
A178: 173 | B178: 474 | C178: Oct | D178: 16 | E178: 9105 | F178: 948 | G178: 3.5 | H178: 97 | I178: 53.5 | J178: 32 | K178: 0.16 | L178: 22548 | M178: 11707 | N178: 10695 | O178: 433 | R178: 3_120 | S178: 120 | T178: =IF(ISERROR(VLOOKUP($R178,'Curtailment Record'!$D$4:$I$3999,5,FALSE)),"",VLOOKUP($R178,'Curtailment Record'!$D$4:$I$3999,5,FALSE)) ->  | U178: =IF(ISERROR(VLOOKUP($R178,'Curtailment Record'!$D$4:$I$3999,6,FALSE)),"",VLOOKUP($R178,'Curtailment Record'!$D$4:$I$3999,6,FALSE)) -> 
A179: 174 | B179: 474 | C179: Oct | D179: 16 | E179: 8716 | F179: 886 | G179: 3.5 | H179: 97 | I179: 46 | J179: 7 | K179: 0.07 | L179: 23223 | M179: 11179 | N179: 12169 | O179: 185
A180: 175 | B180: 474 | C180: Oct | D180: 6 | E180: 437 | F180: 85 | G180: 3.5 | H180: 97 | I180: 52.9 | J180: 42 | K180: 0.08 | L180: 21926 | M180: 10326 | N180: 12001 | O180: 152
A181: 176 | B181: 474 | C181: Oct | D181: 2 | E181: 1978 | F181: 1106 | G181: 3.5 | H181: 97 | I181: 55.8 | J181: 79 | K181: 0.12 | L181: 22200 | M181: 10210 | N181: 11421 | O181: 134
A182: 177 | B182: 474 | C182: Oct | D182: 16 | E182: 7458 | F182: 594 | G182: 3.5 | H182: 97 | I182: 53.7 | J182: 66 | K182: 0.11 | L182: 22570 | M182: 11236 | N182: 11505 | O182: 219
A183: 178 | B183: 474 | C183: Oct | D183: 14 | E183: 6388 | F183: 491 | G183: 3.5 | H183: 97 | I183: 58 | J183: 97 | K183: 0.1 | L183: 21975 | M183: 10402 | N183: 11723 | O183: 133
A184: 179 | B184: 474 | C184: Oct | D184: 16 | E184: 10911 | F184: 911 | G184: 3.5 | H184: 97 | I184: 53.3 | J184: 75 | K184: 0.15 | L184: 22622 | M184: 10580 | N184: 10988 | O184: 1228
A185: 180 | B185: 475 | C185: Ag2 | D185: 15 | E185: 11643 | F185: 960 | G185: 2.8 | H185: 91 | I185: 69.6 | J185: 76 | K185: 0.14 | L185: 25480 | M185: 14535 | N185: 11066 | O185: 82
A186: 181 | B186: 484 | C186: Jan | D186: 17 | E186: 13108 | F186: 1211 | G186: 3.6 | H186: 90 | I186: 12.5 | J186: 0 | K186: 0.03 | L186: 35069 | M186: 15812 | N186: 14939 | O186: 46
A187: 182 | B187: 484 | C187: Jan | D187: 18 | E187: 53710 | F187: 3304 | G187: 3.6 | H187: 90 | I187: 17.1 | J187: 3 | K187: 0.08 | L187: 34651 | M187: 15551 | N187: 14062 | O187: 62
A188: 183 | B188: 484 | C188: Jan | D188: 6 | E188: 12526 | F188: 2263 | G188: 3.6 | H188: 90 | I188: 13.4 | J188: 0 | K188: 0.03 | L188: 36038 | M188: 16166 | N188: 14858 | O188: 896
A189: 184 | B189: 484 | C189: Jan | D189: 16 | E189: 4657 | F189: 692 | G189: 3.6 | H189: 90 | I189: 11.8 | J189: 0 | K189: 0.05 | L189: 33304 | M189: 15023 | N189: 14481 | O189: 701
A190: 185 | B190: 484 | C190: Jan | D190: 13 | E190: 10184 | F190: 1076 | G190: 3.6 | H190: 90 | I190: 10.3 | J190: 0 | K190: 0.06 | L190: 33254 | M190: 14594 | N190: 14357 | O190: 19
A191: 186 | B191: 484 | C191: Jan | D191: 18 | E191: 37052 | F191: 2226 | G191: 3.6 | H191: 90 | I191: 11.2 | J191: 1 | K191: 0.04 | L191: 35129 | M191: 15550 | N191: 14816 | O191: 713
A192: 187 | B192: 484 | C192: Feb | D192: 18 | E192: 51537 | F192: 3060 | G192: 3.4 | H192: 89 | I192: 6.6 | J192: 0 | K192: 0.06 | L192: 34304 | M192: 15180 | N192: 14238 | O192: 23
A193: 188 | B193: 484 | C193: Feb | D193: 18 | E193: 23123 | F193: 1525 | G193: 3.4 | H193: 89 | I193: 9.7 | J193: 1 | K193: 0.02 | L193: 32965 | M193: 14634 | N193: 15023 | O193: 24
A194: 189 | B194: 492 | C194: Ag2 | D194: 4 | E194: 193 | F194: 60 | G194: 3.1 | H194: 84 | I194: 72.8 | J194: 99 | K194: 0.05 | L194: 24069 | M194: 12478 | N194: 12624 | O194: 19
A195: 190 | B195: 492 | C195: Ag2 | D195: 3 | E195: 1979 | F195: 975 | G195: 3.1 | H195: 84 | I195: 75.9 | J195: 100 | K195: 0.01 | L195: 25890 | M195: 12831 | N195: 13158 | O195: 88
A196: 191 | B196: 492 | C196: Ag2 | D196: 13 | E196: 11931 | F196: 1131 | G196: 3.1 | H196: 84 | I196: 73.6 | J196: 99 | K196: 0.03 | L196: 25682 | M196: 12740 | N196: 12854 | O196: 91
A197: 192 | B197: 497 | C197: Jan | D197: 18 | E197: 37817 | F197: 2393 | G197: 4.4 | H197: 70 | I197: 10.9 | J197: 0 | K197: 0.04 | L197: 35150 | M197: 16139 | N197: 14761 | O197: 159
A198: 193 | B198: 497 | C198: Jan | D198: 18 | E198: 40953 | F198: 2528 | G198: 4.4 | H198: 70 | I198: 14.3 | J198: 0 | K198: 0.03 | L198: 35564 | M198: 16335 | N198: 14921 | O198: 43
A199: 194 | B199: 499 | C199: Dec | D199: 2 | E199: 0 | F199: 0 | G199: 8.8 | H199: 9 | I199: 7.8 | J199: 0 | K199: 0.1 | L199: 45694 | M199: 30455 | N199: 13512 | O199: 124
A200: 195 | B200: 501 | C200: Ag2 | D200: 14 | E200: 6831 | F200: 946 | G200: 3.1 | H200: 76 | I200: 80 | J200: 100 | K200: 0.07 | L200: 26539 | M200: 14650 | N200: 12245 | O200: 108
... 2182 more rows
